Workbook

Sheet Guide utilisateur
A1: Guide utilisateur
A3: Cette première version de l'outil "Analyse financière" est destinée à être utilisée par les Plateformes Locales de Rénovation Energétique (PLRE) et les professionnels de l'accompagnement de projets de rénovation énergétique de logements.
A5: Cet outil vous permet de calculer différents éléments financiers, tels que la rentabilité de votre investissement, la valeur verte de votre bien après travaux….
A6: Pour ce faire, il se base sur des HYPOTHESES fixes, ainsi que vos réponses à certaines questions.
A8: Il est important de noter qu'il s'agit d'un outil simplifié, vous permettant d'avoir une estimation rapide de la situation, sur base de ces hypothèses et de vos réponses.
A9: Cet outil ne permet pas de faire des calculs dans le cas où la surface de l'habitation varie (création d'une nouvelle pièce, par exemple).
A11: Veuillez également activer l'utilisation des macros à l'ouverture du fichier, sans quoi l'outil ne fonctionnera pas.
A13: Guide pratique
A14: En très bref…
B16: Veuillez remplir toutes les cellules colorées du cadre "Encodage des données" de la feuille "AnalyseFinanciere"
B17: Les données d'entrée attendues sont les suivantes:
D18: menu déroulant
D19: champs à remplir
B21: L'outil a besoin de l'estimation des consommations de votre maison avant et après travaux, par vecteur énergétique, ainsi que des labels associés.
B22: Il a également besoin de connaître l'investissement consenti, avec et sans primes.
B24: De l'aide est disponible pour certaines cellules: celles-ci sont identifiées via un le symbole [?] . En cliquant sur ces cellules, une bulle contenant des informations s'affiche.
A26: Remplissage pas à pas de l'onglet "Analyse financière"
B28: Données concernant votre maison
B29: Label énergétique: | D29: si vous ne connaissez pas le label de base de votre maison, le site | J29: www.monquickscan.be | M29: peut vous aider à l'estimer
B30: Aspect des finitions: | D30: l'aspect des finitions a une influence sur la valeur immobilière de votre bien.
D31: Plus un bien présente de belles finitions, tant intérieures qu'extérieures, plus sa valeur augmente.
D32: C'est à vous d'estimer dans quel état sont vos finitions.
B33: Chauffage et eau chaude sanitaire:
B34: Les différentes consommations à encoder correspondent aux valeurs annuelles.
B36: Consommation en électricité:
B37: AVANT TRAVAUX
D38: Encoder la consommation en déduisant la production d'électricité des panneaux photovoltaïques (PV) que vous possédez déjà (installation existante).
B39: APRES TRAVAUX
D40: Encoder la consommation en déduisant la production d'électricité des panneaux photovoltaïques (PV) que vous possédez déjà (installation existante).
D41: Si le chauffage et/ ou l'eau chaude sanitaire ne sont pas produits via électricité, la consommation après travaux est en général égale à la consommation avant travaux.
D43: Si installer des panneaux photovoltaïques fait partie de vos travaux:
F44: Je choisis "OUI" dans la cellule J25 et j'encode le nombre de panneaux ou de kWc en J26.
F45: Je précise en K26 si j'ai encodé le nombre de panneaux ou de kWc.
F46: La production d'électricité de la nouvelle installation sera calculée par l'outil.
B47: Données concernant le volet financier
B48: Encoder la somme que vous souhaitez investir, primes déduites et primes non déduites.
B50: Lancement des calculs
B51: Une fois toutes les données remplies, cliquer sur le bouton "Lancer les calculs".
B52: Si celui-ci est grisé, c'est que certaines données nécessaires au calcul sont manquantes.
B54: Création du rapport pdf
B55: Lorsque les résultats ont été générés, le bouton "Rapport pdf!" s'active et vous permet d'imprimer une copie des résultats.

Sheet HYPreno+ (hidden)
A1: Hypothèses de travail RENO+
A3: La feuille où s'effectuent tous les calculs est cachées, il s'agit de 'Calcul Financier'.
A4: Comme c'est un outil qui compile plusieurs outils différents, toutes les données d'entrées étaient un peu éparpillées; c'est dans 'Calcul Financier' qu'on fait le lien vers toutes les autres feuilles.
A6: Ne pas changer les noms des onglets, ils sont liés dans le code!
A8: L'outil permet de calculer les mensualités etc de deux cas extrêmes: avec prêt classique et sans primes, avec prêt 0% et primes
A10: Hypothèses de calcul
G11: à mettre à jour jusqu'en octobre 2024
C12: Hypothèses de calcul fixes
F13: source
C14: Prix du mazout/gaz de chauffage (T0) | D14: =[1]AnalyseFinanciere!F166 -> 0.107 | E14: € TVAC/kWh | F14: funnel | G14: ce sont les prix à l'année 0
C15: Prix de l'électricité (T0) | D15: =[1]AnalyseFinanciere!F167 -> 0.393 | E15: € TVAC/kWh | F15: funnel
C16: Prix bûches (T0) | D16: =[1]AnalyseFinanciere!F168 -> 0.045 | E16: € TVAC/kWh | F16: funnel
C17: Prix pellets (T0) | D17: =[1]AnalyseFinanciere!F169 -> 0.11 | E17: € TVAC/kWh | F17: US111
C18: Taux d'actualisation | D18: =[1]AnalyseFinanciere!F170 -> 0.03 | F18: SALIM
C19: Hypothèse d'évolution annuelle du prix de l'énergie | D19: =[1]AnalyseFinanciere!F171 -> 0.03 | F19: SALIM
C20: Durée de vie théorique de l'investissement | D20: =[1]AnalyseFinanciere!F172 -> 30 | E20: ans
C21: Taux d'emprunt classique | D21: =[1]AnalyseFinanciere!F173 -> 0.04 | F21: SALIM
C22: Taux d'emprunt crédit social | D22: =[1]AnalyseFinanciere!F174 -> 1e-11
C23: Facteur d'émission de CO2 - Mazout | D23: =[1]AnalyseFinanciere!F178 -> 0.073 | E23: kg/MJ | F23: Annexe X - méthode de calcul certification des unités résidentielles existantes v 2
C24: Facteur d'émission de CO2 - Gaz | D24: =[1]AnalyseFinanciere!F179 -> 0.056 | E24: kg/MJ | F24: Annexe X - méthode de calcul certification des unités résidentielles existantes v 2
C25: Facteur d'émission de CO2 - Electricité | D25: =[1]AnalyseFinanciere!F180 -> 0.198 | E25: kg/MJ | F25: Annexe X - méthode de calcul certification des unités résidentielles existantes v 2
C26: Facteur d'émission de CO2 - Bois | D26: =[1]AnalyseFinanciere!F181 -> 0 | E26: kg/MJ | F26: Annexe X - méthode de calcul certification des unités résidentielles existantes v 2
C27: Facteur d'émission de CO2 - Granulé (pellets) | D27: =[1]AnalyseFinanciere!F182 -> 0 | E27: kg/MJ | F27: Annexe X - méthode de calcul certification des unités résidentielles existantes v 2
C28: Facteur de conversion litres de mazout en kWh | D28: =[1]AnalyseFinanciere!F183 -> 10.1 | E28: kWh/l | F28: US111
C29: Facteur de conversion stères de bois en kWh | D29: =[1]AnalyseFinanciere!F184 -> 2000 | E29: kWh/stère | F29: US111
C30: Facteur de conversion kg de granulés en kWh | D30: =[1]AnalyseFinanciere!F185 -> 4.8 | E30: kWh/kg | F30: US111
A33: Onglet 'CalculFinancier'
A35: Légende: | C35: calculé via macro
C36: calcul dans la feuille | J36: théoriquement, valeurs des primes sont HTVA.
C37: Eléments liés à une autre feuille | J37: Mais on a décidé, puisque c'est un outil d'estimation, de ne pas tenir compte de point.
Q39: Le prêt 0% peut porter sur maximum 60000 euros.
E40: données encodées par utilisateur dans AnalyseFinancière | Q40: Donc on regarde quelle proportion de l'investissement avec primes pourra en bénéficier.
A42: HYPOTHESES
I49: Hypothèses FIXES de coûts, etc (redite de ce qui est mis précédemmentà
I50: Les infos en rose sont dépendantes du montant de l'investissement:
L51: (onglet Données)
A59: COUTS INVESTISSEMENT
I61: calcul effectué dans la feuille '1.t.de.fi (2)' (voir plus bas pour un peu plus de détails, sinon, voir SALIM)
I63: calcul effectué en interne à la feuille (mais aussi dans la feuille '1.t.de.fi ' (voir plus bas pour un peu plus de détails, sinon, voir SALIM)
A66: COUTS ENERGIE et EMISSIONS CO2
C74: Les coûts et émissions de CO2 associés à chaque vecteur énergétique sous calculés via une macro,pour les situations avant et après travaux
C76: Coûts: | D76: Coût associé à un vecteur = conso encodée utilisateur x facteur de conversion éventuel x (prix énergie x (1 + hyp.évolution du prix de l'énergie) ^1
E79: facteur fixes | M79: Hyp fixes | O79: L'exposant 1, c'est simplement parce que on calcule à l'année 1 dans ce cas.
E80: provenant de | M80: voir plus
E81: la US111 | M81: haut
C84: Emissions de CO2 par vecteur: | D84: CO2 associé à un vecteur = conso encodée utilisateur x facteur de conversion éventuel x facteur de conversion en énergie primaire x facteur d'émission de CO2
C87: Emissions de CO2 économisée par la nouvelle installation PV: | E87: formule du funnel
E88: utilisateur peut encoder les kWC ou le nombre de panneaux
F89: si utilisateur encode kWc
G90: production élec PV = | J90: 800 x (nbre kWc) | L90: (kWh)
G91: émission CO2: | J91: production élec PV x facteur conversion Ep élec x facteur émission CO2 élec
F93: si utilisateur encode nombre de panneaux
G94: production élec PV = | J94: nbre panneaux x 0.34 (kWc/panneau) x 800 | O94: (kWh)
G95: émission CO2: | J95: production élec PV x facteur conversion Ep élec x facteur émission CO2 élec
A96: CALCUL FINANCIER | B96: Lignes 71 à 105: tableau de calcul établi par Salim
B97: Pour plus d'infos, voir avec lui.
B98: Mais la logique est la suivante:
D99: colonne E | E99: on calcule le coût de la facture avant travaux, sur base des éléments devéloppés ci-dessus
E100: On somme les coûts pour chaque vecteur,
E101: et on fait ça sur 30, en tenant compte de l'évolution du prix de l'énergie
G103: Coût associé à un vecteur = conso encodée utilisateur x facteur de conversion éventuel x (prix énergie x (1 + hyp.évolution du prix de l'énergie) ^ i
D105: colonne F | E105: idem, mais avec les consos après travaux | U105: avec I = 1 à 30, soit les années
D107: colonne G | E107: simplement la différence des deux consos précédentes
D109: colonne H | E109: gain dû à la revente d'élec suite à la production via nouvelle installation PV
E110: même principe que pour les émissions de CO2
F112: si utilisateur encode kWc
G113: gain financier= | J113: production élec PV x (prix élec x (1 + hyp.évolution du prix de l'énergie) ^ i - nbre kWc x 85
R114: taxe prosumer: 85 euros par kWc
F115: si utilisateur encode nombre de panneaux
G116: émission CO2: | J116: production élec PV x (prix élec x (1 + hyp.évolution du prix de l'énergie) ^ i - nbre panneaux x 0.34 x 85
D118: colonne I | E118: gain financier annuel = somme colonne G + colonne H
D120: colonnes J à AA: calcul financier proprement dit --> SALIM
E121: colonnes J, K, L: | G121: cas du prêt 0%, avec primes
E122: colonne J | G122: ce qu'on rembourse annuellement, intérêts compris
G123: dans ce cas, il n'y a d'intérêts que sur la somme qui dépasse 60000 euros
G124: ce qui dépasse est considéré au taux classique
G126: voir onglet: '1.t.de.fi (2)'
H127: macro: Modules > ModCredit0
E129: colonnes M, N, O: | G129: cas du prêt classique, sans prime
G130: voir onglet: '1.t.de.fi'
H131: macro: Modules > ModCreditClassique
F134: PARTIE résumé de toute les valeurs liées au calcul financier, juste pour avoir toutes celles qui nous intéressent au même endroit
F137: vient de 1.t.de.fi (2), cellule AD15
F138: vient de 1.t.de.fi, cellule R15
F139: gain mensuel lié aux économies d'énergie à différentes années
F144: investissement de départ
F151: estimation de la plus-value immobilière liée aux travaux
F153: les valeurs sont calculées dans l'onglet 'Calcul Valeur PEB + finitions'
F154: qui utilise lui-même l'onglet 'Données'
E156: Onglet Données
E157: Les calculs ont été développés par Damien (si besoin de plus d'infos)
E158: La logique est la suivante:
F159: La plus-value immobilière d'un bien dépend de sa valeur verte (= label énergétique) et de l'état de ses finitions.
F160: Etablissement d'un tableau, reprenant, localité par localité pour la Wallonie:
G161: * les prix au m² (le tableau comprend aussi les apparts, mais on n'utilise que les données concernant les maisons)
I162: source: | J162: Immoweb. Ce sont des prix par commune
F163: Impact du label PEB sur la vente:
G164: Des coefficients (en rouge) sont donc appliqués au prix de base par localité
I165: source: | J165: baromètre de la Fednot https://www.notaire.be/download/news%2F63bf144d98cd8.pdf
I166: Ce document spécifie que les maisons wallone:
J167: avec certificat entre A et D | M167: --> 2022: se vendent environ 17.3% de plus que le prix de la maison moyenne en Wallonie
J168: avec certificat entre E et G | M168: --> 2022: se vendent environ 15.1% de moinss que le prix de la maison moyenne en Wallonie
G169: * de MA à MG, il s'agit du prix impacté par le label énergétique.
F171: Impact des finitions:
G172: Des coefficients (en vert) sont donc appliqués au prix de base par localité
H173: source: | I173: grille des loyers de la RW
F175: Un coefficient de négociation est aussi pris en compte: 0.9
E202: Onglet Calcul Valeur PEB et finitions
E204: En rose: les données encodées par l'utilisateur
E205: Et puis, la majorité des choses se passe dans la macro derrière (cellules en vert)
F206: sur base du code postal, on a le prix au m² | J206: --> | K206: estimation du prix de base de la maison
F207: ce prix est corrigé, sur base des labels avant et après travaux, en utilisant les coefficients rougges
F208: idem pour les finitions (coefficients verts)
F210: coef.negoc x prix m² x coef. Label avant x coef . Finitions avant
F211: coef.negoc x prix m² x coef. Label après x coef . Finitions après
F213: idem x surface maison
E218: calcul de la valeur verte seule (on considère que les finitions ont un coef de 1 avant et après)
E220: calcul de la valeur due aux finition: plus value totale - valeur verte

Sheet CalculFinancier (hidden)
D2: Analyse de l'investissement de la rentabilité liée aux travaux d'une maison
B4: Données concernant Uotre maison
D7: Code postal de l'endroit où se situe la maison
D8: Surface habitable | F8: m²
D10: avant travaux | H10: Après travaux
D11: Label énergétique | H11: Label énergétique
D12: Aspect des finitions | H12: Aspect des finitions
D13: Chauffage | H13: Chauffage
D14: Uecteur énergétique principal | H14: Uecteur énergétique
D15: Consommation en énergie associée à ce Uecteur | F15: =ULOOKUP(E14,listes!$H$3:$J$8,3,FALSE) ->  | H15: Consommation en énergie associée à ce Uecteur | K15: =ULOOKUP(J14,listes!$H$3:$J$7,3,FALSE) -> 
D16: Uecteur énergétique secondaire | H16: Uecteur énergétique
D17: Consommation en énergie associée à ce Uecteur | F17: =ULOOKUP(E16,listes!$H$3:$J$8,3,FALSE) ->  | H17: Consommation en énergie associée à ce Uecteur | K17: =ULOOKUP(J16,listes!$H$3:$J$7,3,FALSE) -> 
D18: Eau chaude sanitaire | H18: Eau chaude sanitaire
D19: Uecteur énergétique | H19: Uecteur énergétique
D20: Consommation en énergie associée à ce Uecteur | F20: =ULOOKUP(E19,listes!$H$3:$J$7,3,FALSE) ->  | H20: Consommation en énergie associée à ce Uecteur | K20: =ULOOKUP(J19,listes!$H$3:$J$7,3,FALSE) -> 
D21: Consommation électrique (PV déduit le cas échéant) | F21: kWh | H21: Consommation électrique | K21: kWh
D24: L'installation d'une installation photoUoltaïque est-elle préUue?
D25: Nombre de kWc ou de panneaux
B28: Données concernant le Volet financier
G29: quid primes sans TVA???? | H29: prêt 0% | I29: prêt classique
D30: Montant de l'investissement (primes déduites) | E30: =AnalyseFinanciere!E32 -> 100000 | F30: € TVAC | H30: =IF(E30<=60000,E30,60000) -> 60000 | I30: =E30-H30 -> 40000
D31: Montant de l'investissement (primes non déduites) | E31: =AnalyseFinanciere!E33 -> 120000 | F31: € TVAC
D34: Hypothèses de calcul
H35: calculé via macro
D36: Prix du mazout/gaz de chauffage (T0) | E36: 0.107 | F36: € TVAC/kWh | H36: calcul dans la feuille
D37: Prix de l'électricité (T0) | E37: 0.393 | F37: € TVAC/kWh | H37: Eléments liés à une autre feuille
D38: Prix bûches (T0) | E38: 0.045 | F38: € TVAC/kWh
D39: Prix pellets (T0) | E39: 0.11 | F39: € TVAC/kWh
D40: Taux d'actualisation | E40: 0.03
D41: Hypothèse d'évolution annuelle du prix de l'énergie | E41: 0.03
D42: Durée de vie théorique de l'investissement | E42: 30 | F42: ans | G42: HYP: fixe
D43: Taux d'emprunt classique | E43: 0.04
D44: Durée de l'emprunt classique | E44: ='1.t.de.fi'!Q7 -> 240 | F44: mois
D45: Taux d'emprunt crédit social | E45: 1e-11
D46: Durée de l'emprunt crédit social | E46: ='1.t.de.fi (2)'!E7 -> 240 | F46: mois
C48: Coût de l'investissement | D48: investissement total net (avec prime) | E48: =AnalyseFinanciere!E32 -> 100000
D49: Coût total remboursé de l'investissement net (avec prime et prêt social) | E49: ='1.t.de.fi (2)'!AK35 -> 118174.1066 | F49: €
D50: Mensualité totale de l'emprunt (avec prime et prêt social) | E50: ='1.t.de.fi (2)'!AD15 -> 492.392111 | F50: €
D51: investissement total brut total (hors prime) | E51: =AnalyseFinanciere!E33 -> 120000 | F51: €
D52: Coût total remboursé de l'investissement brut (hors prime) | E52: =(E51*E43/12)/(1-(1+(E43/12))^-E44)*E44 -> 174522.3348 | F52: €
D53: Mensualité totale de l'emprunt (hors prime) | E53: =(E51*E43/12)/(1-(1+(E43/12))^-E44) -> 727.1763952
D56: Coûts énergétiques | H56: Emissions de CO2 | I56: avant travaux | J56: APRES travaux
E57: AVANT travaux | F57: APRES travaux
C58: En T1 | D58: Coût associé au mazout | E58: 2226.242 | F58: 0 | H58: Emission CO2 associée au mazout | I58: 5308.56 | J58: 0
D59: Coût associé au gaz | E59: 0 | F59: 0 | H59: Emission CO2 associée au gaz | I59: 0 | J59: 0
D60: Coût associé aux pellets | E60: 0 | F60: 0 | H60: Emission CO2 associée aux pellets | I60: 0 | J60: 0
D61: Coût associé aux bûches | E61: 370.8 | F61: 370.8 | H61: Emission CO2 associée aux bûches | I61: 0 | J61: 0
D62: Coût associé à l'élec (PV existant déduit) | E62: 1052.454 | F62: 404.79 | H62: Emission CO2 associée à l'élec (PV existant déduit) | I62: 4633.2 | J62: 1782
D63: TOTAL | E63: =SUM(E58:E62) -> 3649.496 | F63: =SUM(F58:F62) -> 775.59 | H63: Emission CO2 économisée grace aux nouveaux PV | J63: 5816.448
I64: =SUM(I58:I62) -> 9941.76 | J64: =SUM(J58:J62)-J63 -> -4034.448
D65: Gain sur facture avant retrait PV | E65: =E63-F63 -> 2873.906 | F65: juste pour check avec valeur
F66: dans tableau ci-dessous
E69: .
D71: Flux financiers générés par l'investissement
D72: Périodes (T) | E72: Coût de la facture avant travaux | F72: Coût de la facture après travaux | G72: Gains financiers annuels estimés (delta facture corrigée ) | H72: Gain supplémentaires suite revente d'électricité (cas de la production) | I72: Gains financiers annuels estimés (delta facture corrigée + gain suite à la revente d'électricité ) | J72: Coût annuel du montant de l'emprunt (avec prime) et prêt social | K72: dont capital | L72: dont intérêts | M72: Coût annuel du montant de l'emprunt (hors prime) sur 5 ans | N72: dont capital | O72: dont intérêts | P72: CF annuel du projet, avec prime (Gains - charges financières de l'emprunt) | Q72: CF annuel du projet, hors prime (Gains - charges financières de l'emprunt) | R72: Calcul du temps de retour des flux non actualisés avec prime | S72: Calcul du temps de retour des flux non actualisés hors prime | T72: Calcul du temps de retour des flux actualisés avec prime | U72: Calcul du temps de retour des flux actualisés hors prime | V72: Calcul du temps de retour des flux actualisés avec prime, et plus-value immobilière au T0 | W72: Calcul du temps de retour des flux actualisés hors prime et plus-value immobilière au T0 | X72: Gains financiers annuels estimés actualisés avec prime | Y72: Gains financiers annuels estimés actualisés hors prime | Z72: VAN de l'investissement avec prime | AA72: VAN de l'investissement hors prime
E73: check gain annuel facture: | F73: =F75-E75-H75 -> -3848.34056 | K73: =SUM(K75:K94) -> 99999.99504 | L73: =SUM(L75:L94) -> 18174.11161 | N73: =SUM(N75:N94) -> 120000 | O73: =SUM(O75:O94) -> 54522.33484 | P73: Calcul TRI | Q73: Calcul TRI | R73: Calcul PBP (non actu) | S73: Calcul PBP (non actu) | T73: Calcul PBP (actu) | U73: Calcul PBP (actu) | V73: Calcul PBP (actu) | W73: Calcul PBP (actu) | X73: Calcul Gain financier total (actu) | Y73: Calcul Gain financier total (actu) | Z73: Calcul VAN | AA73: Calcul VAN
D74: 0 | J74: =-$E$48 -> -100000 | M74: =-$E$51 -> -120000 | P74: =-$E$48 -> -100000 | Q74: =-$E$51 -> -120000 | R74: =-$E$48 -> -100000 | S74: =-$E$51 -> -120000 | T74: =R74 -> -100000 | U74: =S74 -> -120000 | V74: =R74+E127 -> -31879 | W74: =S74+E127 -> -51879 | X74: =-$E$48 -> -100000 | Y74: =-$E$51 -> -120000 | Z74: =-$E$48 -> -100000 | AA74: =-$E$51 -> -120000
D75: 1 | E75: 3649.496 | F75: 775.59 | G75: =(E75-F75) -> 2873.906 | H75: 974.43456 | I75: =G75+H75 -> 3848.34056 | J75: =$E$50*12 -> 5908.705332 | K75: ='1.t.de.fi (2)'!AI15 -> 4332.966866 | L75: ='1.t.de.fi (2)'!AJ15 -> 1575.738466 | M75: =$E$53*12 -> 8726.116742 | N75: ='1.t.de.fi'!W15 -> 3998.901344 | O75: ='1.t.de.fi'!X15 -> 4727.215398 | P75: =I75-L75 -> 2272.602094 | Q75: =I75-O75 -> -878.8748382 | R75: =R74+P75 -> -97727.39791 | S75: =S74+Q75 -> -120878.8748 | T75: =T74+(P75/(1+$E$40)^D75) -> -97793.5902 | U75: =U74+(Q75/(1+$E$40)^D75) -> -120853.2765 | V75: =V74+(P75/(1+$E$40)^D75) -> -29672.5902 | W75: =W74+(Q75/(1+$E$40)^D75) -> -52732.27654 | X75: =P75/((1+$E$40)^D75) -> 2206.4098 | Y75: =Q75/((1+$E$40)^D75) -> -853.2765419 | Z75: =Z74+X75 -> -97793.5902 | AA75: =AA74+Y75 -> -120853.2765
D76: 2 | E76: 3758.98088 | F76: 798.8577 | G76: =(E76-F76) -> 2960.12318 | H76: 1014.071597 | I76: =G76+H76 -> 3974.194777 | J76: 5908.705332 | K76: ='1.t.de.fi (2)'!AI16 -> 4387.274003 | L76: ='1.t.de.fi (2)'!AJ16 -> 1521.431329 | M76: 8726.116742 | N76: ='1.t.de.fi'!W16 -> 4161.822754 | O76: ='1.t.de.fi'!X16 -> 4564.293987 | P76: =I76-L76 -> 2452.763448 | Q76: =I76-O76 -> -590.0992107 | R76: =R75+P76 -> -95274.63446 | S76: =S75+Q76 -> -121468.974 | T76: -95481.62541 | U76: -121409.5016 | V76: =V75+(P76/(1+$E$40)^D76) -> -27360.62541 | W76: -53288.50164 | X76: 2311.964792 | Y76: -556.225102 | Z76: =Z75+X76 -> -95481.62541 | AA76: -121409.5016
D77: 3 | E77: 3871.750306 | F77: 822.823431 | G77: =(E77-F77) -> 3048.926875 | H77: 1054.897745 | I77: 4103.82462 | J77: 5908.705332 | K77: ='1.t.de.fi (2)'!AI17 -> 4443.793697 | L77: ='1.t.de.fi (2)'!AJ17 -> 1464.911636 | M77: 8726.116742 | N77: ='1.t.de.fi'!W17 -> 4331.381835 | O77: ='1.t.de.fi'!X17 -> 4394.734907 | P77: =I77-L77 -> 2638.912984 | Q77: -290.910287 | R77: =R76+P77 -> -92635.72147 | S77: -121759.8843 | T77: -93066.6462 | U77: -121675.7258 | V77: -24945.6462 | W77: -53554.72577 | X77: 2414.979207 | Y77: -266.2241228 | Z77: -93066.6462 | AA77: -121675.7258
D78: 4 | E78: 3987.902816 | F78: 847.5081339 | G78: 3140.394682 | H78: 1096.948677 | I78: 4237.343359 | J78: 5908.705332 | K78: ='1.t.de.fi (2)'!AI18 -> 4502.61609 | L78: ='1.t.de.fi (2)'!AJ18 -> 1406.089243 | M78: 8726.116742 | N78: ='1.t.de.fi'!W18 -> 4507.849014 | O78: ='1.t.de.fi'!X18 -> 4218.267728 | P78: 2831.254116 | Q78: 19.07563054 | R78: -89804.46736 | S78: -121740.8087 | T78: -90551.11359 | U78: -121658.7773 | V78: -22430.11359 | W78: -53537.77732 | X78: 2515.532611 | Y78: 16.94845067 | Z78: -90551.11359 | AA78: -121658.7773
D79: 5 | E79: 4107.5399 | F79: 872.9333779 | G79: 3234.606522 | H79: 1140.261137 | I79: 4374.867659 | J79: 5908.705332 | K79: ='1.t.de.fi (2)'!AI19 -> 4563.834998 | L79: ='1.t.de.fi (2)'!AJ19 -> 1344.870335 | M79: 8726.116742 | N79: ='1.t.de.fi'!W19 -> 4691.505738 | O79: ='1.t.de.fi'!X19 -> 4034.611004 | P79: 3029.997325 | Q79: =I79-O79 -> 340.2566554 | R79: -86774.47003 | S79: -121400.552 | T79: -87937.41128 | U79: -121365.2689 | V79: -19816.41128 | W79: -53244.26894 | X79: 2613.702309 | Y79: 293.5083799 | Z79: -87937.41128 | AA79: -121365.2689
D80: 6 | E80: 4230.766097 | F80: 899.1213793 | G80: 3331.644718 | H80: 1184.872971 | I80: 4516.517689 | J80: 5908.705332 | K80: ='1.t.de.fi (2)'!AI20 -> 4627.548059 | L80: ='1.t.de.fi (2)'!AJ20 -> 1281.157274 | M80: 8726.116742 | N80: ='1.t.de.fi'!W20 -> 4882.64492 | O80: ='1.t.de.fi'!X20 -> 3843.471822 | P80: 3235.360415 | Q80: 673.0458675 | R80: -83539.10962 | S80: -120727.5062 | T80: -85227.84787 | U80: -120801.6036 | V80: -17106.84787 | W80: -52680.60362 | X80: 2709.563413 | Y80: 563.6653181 | Z80: -85227.84787 | AA80: -120801.6036
D81: 7 | E81: 4357.68908 | F81: 926.0950207 | G81: 3431.594059 | H81: 1230.823161 | I81: 4662.41722 | J81: 5908.705332 | K81: ='1.t.de.fi (2)'!AI21 -> 4693.856888 | L81: ='1.t.de.fi (2)'!AJ21 -> 1214.848445 | M81: 8726.116742 | N81: ='1.t.de.fi'!W21 -> 5081.571408 | O81: ='1.t.de.fi'!X21 -> 3644.545334 | P81: 3447.568775 | Q81: =I81-O81 -> 1017.871886 | R81: -80091.54084 | S81: -119709.6343 | T81: -82424.65896 | U81: -119973.9806 | V81: -14303.65896 | W81: -51852.98063 | X81: 2803.188906 | Y81: 827.62299 | Z81: -82424.65896 | AA81: -119973.9806
D82: 8 | E82: 4488.419752 | F82: 953.8778713 | G82: 3534.541881 | H82: 1278.151855 | I82: 4812.693737 | J82: 5908.705332 | K82: ='1.t.de.fi (2)'!AI22 -> 4762.867241 | L82: ='1.t.de.fi (2)'!AJ22 -> 1145.838092 | M82: 8726.116742 | N82: ='1.t.de.fi'!W22 -> 5288.602467 | O82: ='1.t.de.fi'!X22 -> 3437.514275 | P82: 3666.855645 | Q82: 1375.179462 | R82: -76424.6852 | S82: -118334.4548 | T82: -79530.00925 | U82: -118888.4013 | V82: -11409.00925 | W82: -50767.40126 | X82: 2894.649707 | Y82: 1085.579366 | Z82: -79530.00925 | AA82: -118888.4013
D83: 9 | E83: 4623.072345 | F83: 982.4942074 | G83: 3640.578138 | H83: 1326.900411 | I83: 4967.478549 | J83: 5908.705332 | K83: ='1.t.de.fi (2)'!AI23 -> 4834.689182 | L83: ='1.t.de.fi (2)'!AJ23 -> 1074.01615 | M83: 8726.116742 | N83: ='1.t.de.fi'!W23 -> 5504.068292 | O83: ='1.t.de.fi'!X23 -> 3222.04845 | P83: 3893.462399 | Q83: 1745.430098 | R83: -72531.2228 | S83: -116589.0247 | T83: -76545.99453 | U83: -117550.6744 | V83: -8424.994526 | W83: -49429.67443 | X83: 2984.014729 | Y83: 1337.726833 | Z83: -76545.99453 | AA83: -117550.6744
D84: 10 | E84: 4761.764515 | F84: 1011.969034 | G84: 3749.795482 | H84: 1377.111423 | I84: 5126.906905 | J84: 5908.705332 | K84: ='1.t.de.fi (2)'!AI24 -> 4909.437261 | L84: ='1.t.de.fi (2)'!AJ24 -> 999.2680719 | M84: 8726.116742 | N84: ='1.t.de.fi'!W24 -> 5728.312526 | O84: ='1.t.de.fi'!X24 -> 2997.804216 | P84: 4127.638833 | Q84: =I84-O84 -> 2129.10269 | R84: -68403.58397 | S84: -114459.922 | T84: -73474.64359 | U84: -115966.4221 | V84: -5353.643587 | W84: -47845.42207 | X84: 3071.350939 | Y84: 1584.252355 | Z84: -73474.64359 | AA84: -115966.4221
D85: 11 | E85: 4904.617451 | F85: 1042.328105 | G85: 3862.289346 | H85: 1428.828766 | I85: 5291.118112 | J85: 5908.705332 | K85: ='1.t.de.fi (2)'!AI25 -> 4987.230691 | L85: ='1.t.de.fi (2)'!AJ25 -> 921.4746416 | M85: 8726.116742 | N85: ='1.t.de.fi'!W25 -> 5961.692817 | O85: ='1.t.de.fi'!X25 -> 2764.423925 | P85: 4369.643471 | Q85: 2526.694187 | R85: -64033.9405 | S85: -111933.2279 | T85: -70317.92017 | U85: -114141.0844 | V85: -2196.920173 | W85: -46020.08443 | X85: 3156.723414 | Y85: 1825.33764 | Z85: -70317.92017 | AA85: -114141.0844
D86: 12 | E86: 5051.755974 | F86: 1073.597948 | G86: 3978.158026 | H86: 1482.097629 | I86: 5460.255656 | J86: 5908.705332 | K86: ='1.t.de.fi (2)'!AI26 -> 5068.193545 | L86: ='1.t.de.fi (2)'!AJ26 -> 840.5117871 | M86: 8726.116742 | N86: ='1.t.de.fi'!W26 -> 6204.581381 | O86: ='1.t.de.fi'!X26 -> 2521.535361 | P86: 4619.743869 | Q86: 2938.720294 | R86: -59414.19663 | S86: -108994.5076 | T86: -67077.72477 | U86: -112079.9251 | V86: 1043.275228 | W86: -43958.92515 | X86: 3240.195401 | Y86: 2061.159288 | Z86: -67077.72477 | AA86: -112079.9251
D87: 13 | E87: 5203.308654 | F87: 1105.805886 | G87: 4097.502767 | H87: 1536.964558 | I87: 5634.467325 | J87: 5908.705332 | K87: ='1.t.de.fi (2)'!AI27 -> 5152.454952 | L87: ='1.t.de.fi (2)'!AJ27 -> 756.2503808 | M87: 8726.116742 | N87: ='1.t.de.fi'!W27 -> 6457.365599 | O87: ='1.t.de.fi'!X27 -> 2268.751143 | P87: 4878.216944 | Q87: 3365.716183 | R87: -54535.97968 | S87: -105628.7914 | T87: -63755.89641 | U87: -109788.0362 | V87: 4365.103593 | W87: -41667.0362 | X87: 3321.828365 | Y87: 2291.888945 | Z87: -63755.89641 | AA87: -109788.0362
D88: 14 | E88: 5359.407913 | F88: 1138.980063 | G88: 4220.42785 | H88: 1593.477495 | I88: 5813.905345 | J88: 5908.705332 | K88: ='1.t.de.fi (2)'!AI28 -> 5240.149297 | L88: ='1.t.de.fi (2)'!AJ28 -> 668.5560349 | M88: 8726.116742 | N88: ='1.t.de.fi'!W28 -> 6720.448637 | O88: ='1.t.de.fi'!X28 -> 2005.668105 | P88: 5145.34931 | Q88: 3808.23724 | R88: -49390.63037 | S88: -101820.5541 | T88: -60354.21436 | U88: -107270.3428 | V88: 7766.785639 | W88: -39149.34275 | X88: 3401.682046 | Y88: 2517.693448 | Z88: -60354.21436 | AA88: -107270.3428
D89: 15 | E89: 5520.19015 | F89: 1173.149465 | G89: 4347.040686 | H89: 1651.68582 | I89: 5998.726505 | J89: 5908.705332 | K89: ='1.t.de.fi (2)'!AI29 -> 5331.416446 | L89: ='1.t.de.fi (2)'!AJ29 -> 577.2888861 | M89: 8726.116742 | N89: ='1.t.de.fi'!W29 -> 6994.250084 | O89: ='1.t.de.fi'!X29 -> 1731.866658 | P89: 5421.437619 | Q89: 4266.859847 | R89: -43969.19275 | S89: -97553.69429 | T89: -56874.39985 | U89: -104531.6078 | V89: 11246.60015 | W89: -36410.60778 | X89: 3479.814508 | Y89: 2738.734971 | Z89: -56874.39985 | AA89: -104531.6078
D90: 16 | E90: 5685.795855 | F90: 1208.343949 | G90: 4477.451906 | H90: 1711.640394 | I90: 6189.092301 | J90: 5908.705332 | K90: ='1.t.de.fi (2)'!AI30 -> 5426.40196 | L90: ='1.t.de.fi (2)'!AJ30 -> 482.3033727 | M90: 8726.116742 | N90: ='1.t.de.fi'!W30 -> 7279.206624 | O90: ='1.t.de.fi'!X30 -> 1446.910118 | P90: 5706.788928 | Q90: 4742.182182 | R90: -38262.40383 | S90: -92811.51211 | T90: -53318.11766 | U90: -101576.4366 | V90: 14802.88234 | W90: -33455.43663 | X90: 3556.282189 | Y90: 2955.171156 | Z90: -53318.11766 | AA90: -101576.4366
D91: 17 | E91: 5856.369731 | F91: 1244.594267 | G91: 4611.775464 | H91: 1773.393606 | I91: 6385.16907 | J91: 5908.705332 | K91: ='1.t.de.fi (2)'!AI31 -> 5525.257329 | L91: ='1.t.de.fi (2)'!AJ31 -> 383.4480031 | M91: 8726.116742 | N91: ='1.t.de.fi'!W31 -> 7575.772733 | O91: ='1.t.de.fi'!X31 -> 1150.344009 | P91: 6001.721066 | Q91: =I91-O91 -> 5234.82506 | R91: -32260.68276 | S91: -87576.68705 | T91: -49686.97772 | U91: -98409.28137 | V91: 18434.02228 | W91: -30288.28137 | X91: 3631.139949 | Y91: 3167.155253 | Z91: -49686.97772 | AA91: -98409.28137
D92: 18 | E92: 6032.060823 | F92: 1281.932095 | G92: 4750.128727 | H92: 1836.999414 | I92: 6587.128142 | J92: 5908.705332 | K92: ='1.t.de.fi (2)'!AI32 -> 5628.140219 | L92: ='1.t.de.fi (2)'!AJ32 -> 280.5651131 | M92: 8726.116742 | N92: ='1.t.de.fi'!W32 -> 7884.421403 | O92: ='1.t.de.fi'!X32 -> 841.6953392 | P92: 6306.563029 | Q92: 5745.432802 | R92: -25954.11973 | S92: -81831.25425 | T92: -45982.5366 | U92: -95034.44513 | V92: 22138.4634 | W92: -26913.44513 | X92: 3704.441116 | Y92: 3374.836247 | Z92: =Z91+X92 -> -45982.5366 | AA92: -95034.44513
D93: 19 | E93: 6213.022647 | F93: 1320.390058 | G93: 4892.632589 | H93: 1902.513397 | I93: 6795.145986 | J93: 5908.705332 | K93: ='1.t.de.fi (2)'!AI33 -> 5735.214717 | L93: ='1.t.de.fi (2)'!AJ33 -> 173.4906154 | M93: 8726.116742 | N93: ='1.t.de.fi'!W33 -> 8205.644896 | O93: ='1.t.de.fi'!X33 -> 520.4718463 | P93: 6621.65537 | Q93: 6274.67414 | R93: =R92+P93 -> -19332.46436 | S93: -75556.58011 | T93: -42206.29907 | U93: -91456.08614 | V93: 25914.70093 | W93: -23335.08614 | X93: 3776.237532 | Y93: 3578.358985 | Z93: -42206.29907 | AA93: -91456.08614
D94: 20 | E94: 6399.413327 | F94: 1360.00176 | G94: 5039.411567 | H94: 1969.992798 | I94: 7009.404365 | J94: 5908.705332 | K94: ='1.t.de.fi (2)'!AI34 -> 5846.651595 | L94: ='1.t.de.fi (2)'!AJ34 -> 62.05373752 | M94: 8726.116742 | N94: ='1.t.de.fi'!W34 -> 8539.955529 | O94: ='1.t.de.fi'!X34 -> 186.1612126 | P94: 6947.350628 | Q94: 6823.243153 | R94: -12385.11373 | S94: -68733.33696 | T94: -38359.71947 | U94: -87678.22184 | V94: 29761.28053 | W94: -19557.22184 | X94: 3846.579599 | Y94: 3777.864299 | Z94: -38359.71947 | AA94: -87678.22184
D95: 21 | E95: 6591.395726 | F95: 1400.801812 | G95: 5190.593914 | H95: 2039.496582 | I95: 7230.090496 | P95: 7230.090496 | Q95: 7230.090496 | R95: -5155.023235 | S95: -61503.24646 | T95: -34473.18956 | U95: -83791.69193 | V95: 33647.81044 | W95: -15670.69193 | X95: 3886.529911 | Y95: 3886.529911 | Z95: -34473.18956 | AA95: -83791.69193
D96: 22 | E96: 6789.137598 | F96: 1442.825867 | G96: 5346.311731 | H96: 2111.08548 | I96: 7457.397211 | P96: 7457.397211 | Q96: 7457.397211 | R96: 2302.373976 | S96: -54045.84925 | T96: -30581.22988 | U96: -79899.73225 | V96: 37539.77012 | W96: -11778.73225 | X96: 3891.959681 | Y96: 3891.959681 | Z96: -30581.22988 | AA96: -79899.73225
D97: 23 | E97: 6992.811726 | F97: 1486.110643 | G97: 5506.701083 | H97: 2184.822044 | I97: 7691.523128 | P97: 7691.523128 | Q97: 7691.523128 | R97: 9993.897104 | S97: -46354.32612 | T97: -26683.99858 | U97: -76002.50095 | V97: 41437.00142 | W97: -7881.50095 | X97: 3897.231302 | Y97: 3897.231302 | Z97: -26683.99858 | AA97: -76002.50095
D98: 24 | E98: 7202.596078 | F98: 1530.693962 | G98: 5671.902116 | H98: 2260.770706 | I98: 7932.672821 | P98: 7932.672821 | Q98: 7932.672821 | R98: 17926.56993 | S98: -38421.6533 | T98: -22781.6492 | U98: -72100.15157 | V98: 45339.3508 | W98: -3979.15157 | X98: 3902.34938 | Y98: 3902.34938 | Z98: -22781.6492 | AA98: -72100.15157
D99: 25 | E99: 7418.67396 | F99: 1576.614781 | G99: 5842.059179 | H99: 2338.997827 | I99: 8181.057006 | P99: 8181.057006 | Q99: 8181.057006 | R99: 26107.62693 | S99: -30240.59629 | T99: -18874.33081 | U99: -68192.83318 | V99: 49246.66919 | W99: -71.83318116 | X99: 3907.318389 | Y99: 3907.318389 | Z99: -18874.33081 | AA99: -68192.83318
D100: 26 | E100: 7641.234179 | F100: 1623.913224 | G100: 6017.320955 | H100: 2419.571762 | I100: 8436.892716 | P100: 8436.892716 | Q100: 8436.892716 | R100: 34544.51965 | S100: -21803.70358 | T100: -14962.18814 | U100: -64280.69051 | V100: 53158.81186 | W100: 3840.309487 | X100: 3912.142669 | Y100: 3912.142669 | Z100: -14962.18814 | AA100: -64280.69051
D101: 27 | E101: 7870.471205 | F101: 1672.630621 | G101: 6197.840583 | H101: 2502.562914 | I101: 8700.403498 | P101: 8700.403498 | Q101: 8700.403498 | R101: 43244.92315 | S101: -13103.30008 | T101: -11045.3617 | U101: -60363.86408 | V101: 57075.6383 | W101: 7757.135923 | X101: 3916.826435 | Y101: 3916.826435 | Z101: -11045.3617 | AA101: -60363.86408
D102: 28 | E102: 8106.585341 | F102: 1722.80954 | G102: 6383.775801 | H102: 2588.043802 | I102: 8971.819603 | P102: 8971.819603 | Q102: 8971.819603 | R102: 52216.74275 | S102: -4131.480477 | T102: -7123.987921 | U102: -56442.4903 | V102: 60997.01208 | W102: 11678.5097 | X102: 3921.373782 | Y102: 3921.373782 | Z102: -7123.987921 | AA102: -56442.4903
D103: 29 | E103: 8349.782901 | F103: 1774.493826 | G103: 6575.289075 | H103: 2676.089116 | I103: 9251.378191 | P103: 9251.378191 | Q103: 9251.378191 | R103: 61468.12094 | S103: 5119.897714 | T103: -3198.199239 | U103: -52516.70161 | V103: 64922.80076 | W103: 15604.29839 | X103: 3925.788682 | Y103: 3925.788682 | Z103: -3198.199239 | AA103: -52516.70161
D104: 30 | E104: 8600.276388 | F104: 1827.728641 | G104: 6772.547747 | H104: 2766.775789 | I104: 9539.323537 | P104: 9539.323537 | Q104: 9539.323537 | R104: 71007.44448 | S104: 14659.22125 | T104: 731.8757527 | U104: -48586.62662 | V104: 68852.87575 | W104: 19534.37338 | X104: 3930.074992 | Y104: 3930.074992 | Z104: 731.8757527 | AA104: -48586.62662
D106: Résultats de l'opération, mensualités
D108: Mensualité de l'emprunt (avec prime et prêt à taux zéro) | E108: =E50 -> 492.392111
D109: Mensualité totale de l'emprunt (hors prime et hors prêt à taux zéro) | E109: =E53 -> 727.1763952
D111: Gain mensuel sur facture estimé, année 1 | E111: =I75/12 -> 320.6950467
D112: Gain mensuel sur facture estimé, année 10 | E112: =I84/12 -> 427.2422421
D113: Gain sur facture estimé, année 20 | E113: =I94/12 -> 584.1170305
D116: Résultats globaux de l'opération
D118: investissement total net (avec prime et prêt à taux zéro) | E118: =E48 -> 100000
D119: investissement total brut total (hors prime et hors prêt à taux zéro) | E119: =E51 -> 120000
D121: Gain financier total actualisé (avec prime et prêt à taux zéro) | E121: =SUM(X75:X104) -> 100731.8758
D122: Gain financier total actualisé (hors prime et hors prêt à taux zéro) | E122: =SUM(Y75:Y104) -> 71413.37338
D124: VAN (avec prime et prêt à taux zéro) sur la durée de vie de l'investissement | E124: =NPV(0.02,P75:P104)-E48 -> 19173.60263
D125: VAN (hors prime et hors prêt à taux zéro) sur la durée de vie de l'investissement | E125: =NPV(0.02,Q75:Q104)-E51 -> -32232.14647
D127: Estimation de la plus-value immobilière liée au travaux : PV immobilière | E127: ='Calcul Valeur PEB + finitions'!C6 -> 68121
D128: dont Valeur verte | E128: ='Calcul Valeur PEB + finitions'!F11 -> 46980
D129: dont amélioration des finitions | E129: ='Calcul Valeur PEB + finitions'!F12 -> 21141
D131: VAN (avec prime et prêt à taux zéro) sur la durée de vie de l'investissement, avec prise en considération de la plus-value estimée | E131: =E124+E127 -> 87294.60263
D132: VAN (hors prime et hors prêt à taux zéro) sur la durée de vie de l'investissement, avec prise en considération de la plus-value estimée | E132: =E125+E127 -> 35888.85353
D134: Temps de retour
G135: dernier négatif | H135: premier positif
C136: colonne U | D136: PBP des flux actualisés (avec prime et prêt à taux zéro) | E136: =COUNTIF(T75:T104,"<0") -> 29 | F136: =IF(E136=30,0,((-G136)/(-G136+H136))*365) -> 297.0281037 | G136: =LOOKUP(9.99999999999999E+307,IF($T$75:$T$104<0,$T$75:$T$104)) -> -3198.199239 | H136: =INDEX($T$75:$T$104,MATCH(TRUE,$T$75:$T$104>0,0)) -> 731.8757527 | I136: =ROUND((E136+F136/365),1) -> 29.8
D137: PBP des flux actualisés (hors prime et hors prêt à taux zéro) | E137: =COUNTIF(U75:U104,"<0") -> 30 | F137: =IF(E137=30,0,((-G137)/(-G137+H137))*365) -> 0 | G137: =LOOKUP(9.99999999999999E+307,IF($U$75:$U$104<0,$U$75:$U$104)) -> -48586.62662 | H137: =INDEX($U$75:$U$104,MATCH(TRUE,$U$75:$U$104>0,0)) ->  | I137: =ROUND((E137+F137/365),1) -> 30
E138: années | F138: jours | G138: dernier négatif | H138: premier positif
D139: PBP des flux actualisés (avec prime et prêt à taux zéro), et prise en considération de la plus-value estimée | E139: =COUNTIF(V75:V104,"<0") -> 11 | F139: =IF(E139=30,0,((-G139)/(-G139+H139))*365) -> 247.4776252 | G139: =LOOKUP(9.99999999999999E+307,IF($V$75:$V$104<0,$V$75:$V$104)) -> -2196.920173 | H139: =INDEX($V$75:$V$104,MATCH(TRUE,$V$75:$V$104>0,0)) -> 1043.275228 | I139: =ROUND((E139+F139/365),1) -> 11.7
D140: PBP des flux actualisés (hors prime et hors prêt à taux zéro), et prise en considération de la plus-value estimée | E140: =COUNTIF(W75:W104,"<0") -> 25 | F140: =IF(E140=30,0,((-G140)/(-G140+H140))*365) -> 6.701982352 | G140: =LOOKUP(9.99999999999999E+307,IF($W$75:$W$104<0,$W$75:$W$104)) -> -71.83318116 | H140: =INDEX($W$75:$W$104,MATCH(TRUE,$W$75:$W$104>0,0)) -> 3840.309487 | I140: =ROUND((E140+F140/365),1) -> 25
D143: Résultats environnementaux de l'opération | F143: =IF(E136=0,"0",IF(E136=30,"30",I136)) -> 29.8
F144: =IF(E137=0,"0",IF(E137=30,"30",I137)) -> 30
D145: Gain estimé en équivalent CO2 (T) | E145: =IF(E147<0,E146/1000,(E146-E147)/1000) -> 9.94176
D146: CO2 avant (kg) | E146: =SUM(I58:I62) -> 9941.76 | F146: =IF(E139=0,"0",IF(E139=30,"30",I139)) -> 11.7
D147: CO2 après (kg) | E147: =IF(AnalyseFinanciere!J25="Non",SUM(J58:J62),SUM(J59:J62)-J63) -> -4034.448 | F147: 25
F148: Idée pour aller plus loin (nice to have) : Quid de l'énergie grise? Ou un autre indicateur qui favorise les matériaux biosourcés
F149: Comparer économies de CO2 suite aux travaux, à la production de CO2 (énergie grise pour la réno), avec option matériaux trad et matériaux biosourcés, afin d'estimer le nombre d'année de récupération
D150: Autres bénéfices liés à la rénovation
D152: - Augmentation du confort (thermique, acoustique, surchauffe...) - Maintien de l'état du bien (Entretien et pérennisation) - Amélioration esthétique - Valorisation du patrimoine immobilier - Amélioration de l'empreinte écologique - Anticipation des obligations de rénovation - Augmentation, et optimisation des loyers (cas du propriétaire bailleur) - Anticipation des augmentations de coûts (matériaux, main-d'oeuvre) - ...

Sheet Calcul Valeur PEB + finitions (hidden)
E1: AVANT | F1: APRES
B2: type de bien | C2: Code Postal | D2: Surface habitable | E2: PEB | I2: prix base m² | J2: correction | K2: total
B3: Maison | C3: =AnalyseFinanciere!E7 -> 5640 | D3: =AnalyseFinanciere!E8 -> 180 | E3: =AnalyseFinanciere!E13 -> F | F3: =AnalyseFinanciere!J13 -> B | H3: avant travaux | I3: 1450 | J3: 1057.05 | K3: 190269
E4: Finitions | H4: après travaux | J4: 1435.5 | K4: 258390
E5: =AnalyseFinanciere!E14 -> 5 - à rénover | F5: =AnalyseFinanciere!J14 -> 3 - correctes | H5: différence | J5: =J4-J3 -> 378.45 | K5: 68121
B6: Estimation augmentation de valeur | C6: =K5 -> 68121
B7: Estimation valeur du bien temps T0 | C7: =K3 -> 190269
E10: Valeur immo totale | F10: =C6 -> 68121
E11: Check valeur verte | F11: 46980
E12: Valeur finition | F12: =F10-F11 -> 21141 | G12: différence de valeur immo totale et valeur verte
B15: calculé via macro
B16: calcul dans la feuille
B17: Eléments liés à une autre feuille

Sheet AnalyseFinanciere
B2: Analyse de l'investissement et de la rentabilité liés aux travaux d'une maison
B3: Encodage des données
C5: Données concernant votre maison
D7: Code postal de l'endroit où se situe la maison | E7: 5640
D8: Surface habitable | E8: 180 | F8: m²
D10: Avant travaux | I10: Après travaux
D13: Label énergétique [?] | E13: F | I13: Label énergétique | J13: B
D14: Aspect des finitions [?] | E14: 5 - à rénover | I14: Aspect des finitions | J14: 3 - correctes
D16: Consommations annuelles par vecteur énergétique | I16: Consommations annuelles par vecteur énergétique
D18: Mazout | E18: 2000 | F18: litres/an | I18: Mazout | J18: 0 | K18: litres/an
D19: Gaz | E19: 0 | F19: kWh/an | I19: Gaz | J19: 0 | K19: kWh/an
D20: Bois (pellets) | E20: 0 | F20: kg/an | I20: Bois (pellets) | J20: 0 | K20: kg/an
D21: Bois (bûches) | E21: 4 | F21: stères/an | I21: Bois (bûches) | J21: 4 | K21: stères/an
D22: Electricité (PV existant déduit le cas échéant) | E22: 2600 | F22: kWh/an | I22: Electricité (PV existant déduit le cas échéant) | J22: 1000 | K22: kWh/an
E23: =E18*10.1+E19+E20*4.8+E21*2000+E22 -> 30800 | J23: =J18*10.1+J19+J20*4.8+J21*2000+J22 -> 9000
I25: Une installation photovoltaïque est-elle prévue? | J25: Oui
I26: Nombre de kWc ou de panneaux | J26: 12 | K26: panneaux
C30: Données concernant le volet financier
D32: Montant de l'investissement (primes déduites) | E32: 100000 | F32: € TVAC
D33: Montant de l'investissement (primes non déduites) | E33: 120000 | F33: € TVAC
B47: Analyse de l'investissement et de la rentabilité liés aux travaux d'une maison
C49: Résultats
D51: Les résultats présentés ci-dessous sont des ESTIMATIONS, sur base des informations fournies par vos soins et des hypothèses énoncées ci-dessus.
D53: Les résultats de la colonne de gauche correspondent au cas où l'obtention d'un crédit social est possible, ainsi que l'obtention de primes.
D54: Le calcul est effectué de manière simplifiée, en considérant que le montant des primes est déduit au temps 0 de votre investissement.
D55: Dans la réalité, le montant des primes sera versé plus tard dans le processus de rénovation.
D57: Les résultats de la colonne de droite correspondent au cas où ni l'obtention d'un crédit social ni l'obtention de primes ne sont possibles.
D59: Ces deux cas forment deux cas extrêmes; il existe une multitude d'autres cas, non traités dans cet outil, qui présenteront des résultats intermédiaires.
C62: Résultats - en bref
D65: Avec obtention d'un crédit social et primes | H65: Sans l'obtention d'un crédit social ni primes
D70: Mensualités totales à rembourser (année 1) | E70: =ROUNDUP(CalculFinancier!E108,-1) -> 500 | F70: € TVAC | I70: Mensualités totales à rembourser (année 1) | J70: =ROUNDUP(CalculFinancier!E109,-1) -> 730 | K70: € TVAC
D71: Temps de retour (plus value immobilière incluse) [?] | E71: =IF(CalculFinancier!E139=0,"Moins d'un",IF(CalculFinancier!E139=30,"Plus de 30",CalculFinancier!I139)) -> 11.7 | F71: an(s) | I71: Temps de retour (plus value immobilière incluse) [?] | J71: =IF(CalculFinancier!E140=0,"Moins d'un",IF(CalculFinancier!E140=30,"Plus de 30",CalculFinancier!I140)) -> 25 | K71: an(s)
D73: Résultats communs, indépendants du type de crédit ou des primes
D79: Gain mensuel sur facture (année 1) | E79: =ROUNDUP(CalculFinancier!$E$111,-1) -> 330 | F79: € TVAC | I79: Economie de CO2 | J79: =CalculFinancier!E145 -> 9.94176 | K79: T /an
D80: Plus value immobilière (valeur verte + finitions) [?] | E80: =ROUNDUP(CalculFinancier!E127,-2) -> 68200 | F80: € TVAC | I80: ce qui correspond à une moyenne annuelle de | J80: =ROUNDUP(J79*12048.19,-1) -> 119790 | K80: km en voiture*
H83: Impacts non chiffrables
E86: Augmentation du confort (thermique, acoustique, surchauffe,…) | I86: Amélioration de l'empreinte écologique
E88: Maintien de l'état du bien (entretien et pérennisation) | I88: Anticipation des futures obligations de rénovation
E90: Amélioration esthétique | I90: Anticipation des augmentations de coûts (matériaux, main-d'oeuvre)
E92: Valorisation du patrimoine immobilier | I92: Impact positif sur la santé des occupants
C96: * calcul effectué sur base de 83g de CO2 émis par km parcouru.
C99: Note sur le calcul d'économie de CO2:
D100: Le calcul des émissions de CO2 implémentés dans cet outil prend uniquement en compte les émissions dues au chauffage, à l'eau chaude sanitaire et à l'électricité consommés dans votre habitation.
D101: Les émissions de CO2 pour produire, transporter, mettre en oeuvre,… les différents matériaux nécessaires à votre rénovation ne sont donc pas pris pris en compte.
C103: Note concernant le calcul du temps de retour:
D104: Le temps de retour calculé est un temps de retour simple, basé sur les flux non actualisés.
D105: Tous les calculs sont effectués hors réinvestissement pour la maintenance, les réparations, le remplacement,…
C107: Note concernant le revenu cadastral
D108: Il est de votre responsabilité de vérifier que vos travaux n'impliquent pas une modification du revenu cadastral.
D109: (Remarque : une série de travaux visant l’amélioration énergétique n’ont pas d’influence directe sur le revenu cadastral)
B115: Analyse de l'investissement et de la rentabilité liés aux travaux d'une maison - Annexes
C117: Annexes
C119: Résultats détaillés
D122: Avec obtention d'un crédit social et primes | H122: Sans l'obtention d'un crédit social ni primes
D125: Mensualités à rembourser (année 1, prêt 0%) | E125: =ROUNDUP('1.t.de.fi (2)'!$F$15,-1) -> 250 | F125: € TVAC
D126: Durée de l'emprunt à 0 % | E126: ='1.t.de.fi (2)'!$E$7 -> 240 | F126: mois | I126: Durée de l'emprunt à taux classique | J126: ='1.t.de.fi'!$Q$7 -> 240 | K126: mois
D127: Mensualités à rembourser (année 1, prêt à taux classique) | E127: =ROUNDUP('1.t.de.fi (2)'!$R$15,-1) -> 250 | F127: € TVAC | I127: Mensualités TOTALES à rembourser (taux classique, année 1) | J127: =ROUNDUP('1.t.de.fi'!$R$15,-1) -> 730 | K127: € TVAC
D128: Durée de l'emprunt à taux classique | E128: ='1.t.de.fi (2)'!$Q$7 -> 240 | F128: mois
D129: Mensualités TOTALES à rembourser (année 1) | E129: =ROUNDUP(CalculFinancier!$E$108,-1) -> 500 | F129: € TVAC
D131: Temps de retour (plus value immobilière incluse) [?] | E131: =$E$71 -> 11.7 | F131: an(s) | I131: Temps de retour (plus value immobilière incluse) [?] | J131: =$J$71 -> 25 | K131: an(s)
D133: Résultats communs, indépendants du type de crédit ou des primes
D137: Gain annuel sur facture (année 1) | E137: =ROUNDUP(CalculFinancier!$I$75,-1) -> 3850 | F137: € TVAC
D138: Gain mensuel sur facture (année 1) | E138: =ROUNDUP(CalculFinancier!$E$111,-1) -> 330 | F138: € TVAC | I138: Economie de CO2 | J138: =CalculFinancier!$E$145 -> 9.94176 | K138: T /an
D139: Gain mensuel sur facture (année 20) [?] | E139: =ROUNDUP(CalculFinancier!$E$113,-1) -> 590 | F139: € TVAC | I139: ce qui correspond à une moyenne annuelle de | J139: =$J$80 -> 119790 | K139: km en voiture*
D140: Plus value immobilière (valeur verte + finitions) [?] | E140: =ROUNDUP(CalculFinancier!$E$127,-2) -> 68200 | F140: € TVAC
D141: dont plus-value due à la valeur verte [?] | E141: =ROUNDUP(CalculFinancier!$E$128,-2) -> 47000 | F141: € TVAC
D142: dont plus-value due aux finitions [?] | E142: =ROUNDUP(CalculFinancier!$E$129,-2) -> 21200 | F142: € TVAC
D144: Estimation du bien avant travaux (année 0) | E144: =ROUNDUP('Calcul Valeur PEB + finitions'!$C$7,-2) -> 190300 | F144: € TVAC
H147: Impacts non chiffrables
E150: Augmentation du confort (thermique, acoustique, surchauffe,…) | I150: Amélioration de l'empreinte écologique
E152: Maintien de l'état du bien (entretien et pérennisation) | I152: Anticipation des futures obligations de rénovation
E154: Amélioration esthétique | I154: Anticipation des augmentations de coûts (matériaux, main-d'oeuvre)
E156: Valorisation du patrimoine immobilier | I156: Impact positif sur la santé des occupants
C161: * calcul effectué sur base de 83g de CO2 émis par km parcouru.
C163: Hypothèses de calcul fixes
D165: Calcul financier
E166: Prix du mazout/gaz de chauffage (T0) | F166: 0.107 | G166: € TVAC/kWh
E167: Prix de l'électricité (T0) | F167: 0.393 | G167: € TVAC/kWh
E168: Prix bûches (T0) | F168: 0.045 | G168: € TVAC/kWh
E169: Prix pellets (T0) | F169: 0.11 | G169: € TVAC/kWh
E170: Taux d'actualisation | F170: 0.03
E171: Hypothèse d'évolution annuelle du prix de l'énergie | F171: 0.03
E172: Durée de vie théorique de l'investissement | F172: 30 | G172: ans
E173: Taux d'emprunt classique | F173: 0.04
E174: Taux d'emprunt crédit social | F174: 1e-11
D177: Calcul énergétique
E178: Facteur d'émission de CO2 - Mazout | F178: 0.073 | G178: kg/MJ
E179: Facteur d'émission de CO2 - Gaz | F179: 0.056 | G179: kg/MJ
E180: Facteur d'émission de CO2 - Electricité | F180: 0.198 | G180: kg/MJ
E181: Facteur d'émission de CO2 - Bois | F181: 0 | G181: kg/MJ
E182: Facteur d'émission de CO2 - Granulé (pellets) | F182: 0 | G182: kg/MJ
E183: Facteur de conversion litres de mazout en kWh | F183: 10.1 | G183: kWh/l
E184: Facteur de conversion stères de bois en kWh | F184: 2000 | G184: kWh/stère
E185: Facteur de conversion kg de granulés en kWh | F185: 4.8 | G185: kWh/kg

Sheet Données (hidden)
B2: Coefficient PEB (arbitraires pour le moment) | J2: Coeff negoc immoweb | M2: Coefficient finitions (grilles des loyers)
B3: A | C3: B | D3: C | E3: D | F3: E | G3: F | H3: G | M3: 1 | N3: 2 | O3: 3 | P3: 4 | Q3: 5
B4: 1.15 | C4: 1.1 | D4: 1.05 | E4: 1 | F4: 0.95 | G4: 0.9 | H4: 0.85 | J4: 0.9 | M4: 1.1 | N4: 1.05 | O4: 1 | P4: 0.95 | Q4: 0.9
AB5: durée de l'investissement
B6: CP | C6: Localité | D6: Commune | E6: m²appart | F6: m²maison | G6: AA | H6: AB | I6: AC | J6: AD | K6: AE | L6: AF | M6: AG | N6: MA | O6: MB | P6: MC | Q6: MD | R6: ME | S6: MF | T6: MG | W6: Montant emprunté | Y6: Durée maximale de remboursement | AC6: prêt classique | AE6: pret 0% | AF6: complément pret classique
B7: 1300 | C7: Wavre | D7: Wavre | E7: 2786 | F7: 2313 | G7: =Données!$E7*B$4 -> 3203.9 | H7: =Données!$E7*C$4 -> 3064.6 | I7: =Données!$E7*D$4 -> 2925.3 | J7: =Données!$E7*E$4 -> 2786 | K7: =Données!$E7*F$4 -> 2646.7 | L7: =Données!$E7*G$4 -> 2507.4 | M7: =Données!$E7*H$4 -> 2368.1 | N7: =Données!$F7*B$4 -> 2659.95 | O7: =Données!$F7*C$4 -> 2544.3 | P7: =Données!$F7*D$4 -> 2428.65 | Q7: =Données!$F7*E$4 -> 2313 | R7: =Données!$F7*F$4 -> 2197.35 | S7: =Données!$F7*G$4 -> 2081.7 | T7: =Données!$F7*H$4 -> 1966.05 | W7: min | X7: max
B8: 1300 | C8: Limal | D8: Wavre | E8: 2786 | F8: 2313 | G8: =Données!$E8*B$4 -> 3203.9 | H8: =Données!$E8*C$4 -> 3064.6 | I8: =Données!$E8*D$4 -> 2925.3 | J8: =Données!$E8*E$4 -> 2786 | K8: =Données!$E8*F$4 -> 2646.7 | L8: =Données!$E8*G$4 -> 2507.4 | M8: =Données!$E8*H$4 -> 2368.1 | N8: =Données!$F8*B$4 -> 2659.95 | O8: =Données!$F8*C$4 -> 2544.3 | P8: =Données!$F8*D$4 -> 2428.65 | Q8: =Données!$F8*E$4 -> 2313 | R8: =Données!$F8*F$4 -> 2197.35 | S8: =Données!$F8*G$4 -> 2081.7 | T8: =Données!$F8*H$4 -> 1966.05 | W8: 501 | X8: 2500 | Y8: 24 | AC8: =IF(AND(CalculFinancier!$E$31>=Données!W8,CalculFinancier!$E$31<=X8),Y8,0) -> 0 | AE8: =IF(AND(CalculFinancier!$H$30>=Données!W8,CalculFinancier!$H$30<=X8),Y8,0) -> 0 | AF8: =IF(AND(CalculFinancier!$I$30>=Données!W8,CalculFinancier!$I$30<=X8),Y8,0) -> 0
B9: 1301 | C9: Bierges | D9: Wavre | E9: 2786 | F9: 2313 | G9: =Données!$E9*B$4 -> 3203.9 | H9: =Données!$E9*C$4 -> 3064.6 | I9: =Données!$E9*D$4 -> 2925.3 | J9: =Données!$E9*E$4 -> 2786 | K9: =Données!$E9*F$4 -> 2646.7 | L9: =Données!$E9*G$4 -> 2507.4 | M9: =Données!$E9*H$4 -> 2368.1 | N9: =Données!$F9*B$4 -> 2659.95 | O9: =Données!$F9*C$4 -> 2544.3 | P9: =Données!$F9*D$4 -> 2428.65 | Q9: =Données!$F9*E$4 -> 2313 | R9: =Données!$F9*F$4 -> 2197.35 | S9: =Données!$F9*G$4 -> 2081.7 | T9: =Données!$F9*H$4 -> 1966.05 | W9: 2501 | X9: 3700 | Y9: 30 | AC9: =IF(AND(CalculFinancier!$E$31>=Données!W9,CalculFinancier!$E$31<=X9),Y9,0) -> 0 | AE9: =IF(AND(CalculFinancier!$H$30>=Données!W9,CalculFinancier!$H$30<=X9),Y9,0) -> 0 | AF9: =IF(AND(CalculFinancier!$I$30>=Données!W9,CalculFinancier!$I$30<=X9),Y9,0) -> 0
B10: 1310 | C10: La Hulpe | D10: La Hulpe | E10: 2786 | F10: 2313 | G10: =Données!$E10*B$4 -> 3203.9 | H10: =Données!$E10*C$4 -> 3064.6 | I10: =Données!$E10*D$4 -> 2925.3 | J10: =Données!$E10*E$4 -> 2786 | K10: =Données!$E10*F$4 -> 2646.7 | L10: =Données!$E10*G$4 -> 2507.4 | M10: =Données!$E10*H$4 -> 2368.1 | N10: =Données!$F10*B$4 -> 2659.95 | O10: =Données!$F10*C$4 -> 2544.3 | P10: =Données!$F10*D$4 -> 2428.65 | Q10: =Données!$F10*E$4 -> 2313 | R10: =Données!$F10*F$4 -> 2197.35 | S10: =Données!$F10*G$4 -> 2081.7 | T10: =Données!$F10*H$4 -> 1966.05 | W10: 3701 | X10: 5600 | Y10: 36 | AC10: =IF(AND(CalculFinancier!$E$31>=Données!W10,CalculFinancier!$E$31<=X10),Y10,0) -> 0 | AE10: =IF(AND(CalculFinancier!$H$30>=Données!W10,CalculFinancier!$H$30<=X10),Y10,0) -> 0 | AF10: =IF(AND(CalculFinancier!$I$30>=Données!W10,CalculFinancier!$I$30<=X10),Y10,0) -> 0
B11: 1315 | C11: Glimes | D11: Incourt | E11: 3578 | F11: 2842 | G11: =Données!$E11*B$4 -> 4114.7 | H11: =Données!$E11*C$4 -> 3935.8 | I11: =Données!$E11*D$4 -> 3756.9 | J11: =Données!$E11*E$4 -> 3578 | K11: =Données!$E11*F$4 -> 3399.1 | L11: =Données!$E11*G$4 -> 3220.2 | M11: =Données!$E11*H$4 -> 3041.3 | N11: =Données!$F11*B$4 -> 3268.3 | O11: =Données!$F11*C$4 -> 3126.2 | P11: =Données!$F11*D$4 -> 2984.1 | Q11: =Données!$F11*E$4 -> 2842 | R11: =Données!$F11*F$4 -> 2699.9 | S11: =Données!$F11*G$4 -> 2557.8 | T11: =Données!$F11*H$4 -> 2415.7 | W11: 5601 | X11: 7500 | Y11: 42 | AC11: =IF(AND(CalculFinancier!$E$31>=Données!W11,CalculFinancier!$E$31<=X11),Y11,0) -> 0 | AE11: =IF(AND(CalculFinancier!$H$30>=Données!W11,CalculFinancier!$H$30<=X11),Y11,0) -> 0 | AF11: =IF(AND(CalculFinancier!$I$30>=Données!W11,CalculFinancier!$I$30<=X11),Y11,0) -> 0
B12: 1315 | C12: Opprebais | D12: Incourt | E12: 3578 | F12: 2842 | G12: =Données!$E12*B$4 -> 4114.7 | H12: =Données!$E12*C$4 -> 3935.8 | I12: =Données!$E12*D$4 -> 3756.9 | J12: =Données!$E12*E$4 -> 3578 | K12: =Données!$E12*F$4 -> 3399.1 | L12: =Données!$E12*G$4 -> 3220.2 | M12: =Données!$E12*H$4 -> 3041.3 | N12: =Données!$F12*B$4 -> 3268.3 | O12: =Données!$F12*C$4 -> 3126.2 | P12: =Données!$F12*D$4 -> 2984.1 | Q12: =Données!$F12*E$4 -> 2842 | R12: =Données!$F12*F$4 -> 2699.9 | S12: =Données!$F12*G$4 -> 2557.8 | T12: =Données!$F12*H$4 -> 2415.7 | W12: 7501 | X12: 10000 | Y12: 48 | AC12: =IF(AND(CalculFinancier!$E$31>=Données!W12,CalculFinancier!$E$31<=X12),Y12,0) -> 0 | AE12: =IF(AND(CalculFinancier!$H$30>=Données!W12,CalculFinancier!$H$30<=X12),Y12,0) -> 0 | AF12: =IF(AND(CalculFinancier!$I$30>=Données!W12,CalculFinancier!$I$30<=X12),Y12,0) -> 0
B13: 1315 | C13: Incourt | D13: Incourt | E13: 3578 | F13: 2842 | G13: =Données!$E13*B$4 -> 4114.7 | H13: =Données!$E13*C$4 -> 3935.8 | I13: =Données!$E13*D$4 -> 3756.9 | J13: =Données!$E13*E$4 -> 3578 | K13: =Données!$E13*F$4 -> 3399.1 | L13: =Données!$E13*G$4 -> 3220.2 | M13: =Données!$E13*H$4 -> 3041.3 | N13: =Données!$F13*B$4 -> 3268.3 | O13: =Données!$F13*C$4 -> 3126.2 | P13: =Données!$F13*D$4 -> 2984.1 | Q13: =Données!$F13*E$4 -> 2842 | R13: =Données!$F13*F$4 -> 2699.9 | S13: =Données!$F13*G$4 -> 2557.8 | T13: =Données!$F13*H$4 -> 2415.7 | W13: 10001 | X13: 15000 | Y13: 60 | AC13: =IF(AND(CalculFinancier!$E$31>=Données!W13,CalculFinancier!$E$31<=X13),Y13,0) -> 0 | AE13: =IF(AND(CalculFinancier!$H$30>=Données!W13,CalculFinancier!$H$30<=X13),Y13,0) -> 0 | AF13: =IF(AND(CalculFinancier!$I$30>=Données!W13,CalculFinancier!$I$30<=X13),Y13,0) -> 0
B14: 1315 | C14: Piètrebais | D14: Incourt | E14: 3578 | F14: 2842 | G14: =Données!$E14*B$4 -> 4114.7 | H14: =Données!$E14*C$4 -> 3935.8 | I14: =Données!$E14*D$4 -> 3756.9 | J14: =Données!$E14*E$4 -> 3578 | K14: =Données!$E14*F$4 -> 3399.1 | L14: =Données!$E14*G$4 -> 3220.2 | M14: =Données!$E14*H$4 -> 3041.3 | N14: =Données!$F14*B$4 -> 3268.3 | O14: =Données!$F14*C$4 -> 3126.2 | P14: =Données!$F14*D$4 -> 2984.1 | Q14: =Données!$F14*E$4 -> 2842 | R14: =Données!$F14*F$4 -> 2699.9 | S14: =Données!$F14*G$4 -> 2557.8 | T14: =Données!$F14*H$4 -> 2415.7 | W14: 15001 | X14: 20000 | Y14: 84 | AC14: =IF(AND(CalculFinancier!$E$31>=Données!W14,CalculFinancier!$E$31<=X14),Y14,0) -> 0 | AE14: =IF(AND(CalculFinancier!$H$30>=Données!W14,CalculFinancier!$H$30<=X14),Y14,0) -> 0 | AF14: =IF(AND(CalculFinancier!$I$30>=Données!W14,CalculFinancier!$I$30<=X14),Y14,0) -> 0
B15: 1315 | C15: Roux-Miroir | D15: Incourt | E15: 3578 | F15: 2842 | G15: =Données!$E15*B$4 -> 4114.7 | H15: =Données!$E15*C$4 -> 3935.8 | I15: =Données!$E15*D$4 -> 3756.9 | J15: =Données!$E15*E$4 -> 3578 | K15: =Données!$E15*F$4 -> 3399.1 | L15: =Données!$E15*G$4 -> 3220.2 | M15: =Données!$E15*H$4 -> 3041.3 | N15: =Données!$F15*B$4 -> 3268.3 | O15: =Données!$F15*C$4 -> 3126.2 | P15: =Données!$F15*D$4 -> 2984.1 | Q15: =Données!$F15*E$4 -> 2842 | R15: =Données!$F15*F$4 -> 2699.9 | S15: =Données!$F15*G$4 -> 2557.8 | T15: =Données!$F15*H$4 -> 2415.7 | W15: 20001 | X15: 37000 | Y15: 100 | AC15: =IF(AND(CalculFinancier!$E$31>=Données!W15,CalculFinancier!$E$31<=X15),Y15,0) -> 0 | AE15: =IF(AND(CalculFinancier!$H$30>=Données!W15,CalculFinancier!$H$30<=X15),Y15,0) -> 0 | AF15: =IF(AND(CalculFinancier!$I$30>=Données!W15,CalculFinancier!$I$30<=X15),Y15,0) -> 0
B16: 1320 | C16: Beauvechain | D16: Beauvechain | E16: 2329 | F16: 1931 | G16: =Données!$E16*B$4 -> 2678.35 | H16: =Données!$E16*C$4 -> 2561.9 | I16: =Données!$E16*D$4 -> 2445.45 | J16: =Données!$E16*E$4 -> 2329 | K16: =Données!$E16*F$4 -> 2212.55 | L16: =Données!$E16*G$4 -> 2096.1 | M16: =Données!$E16*H$4 -> 1979.65 | N16: =Données!$F16*B$4 -> 2220.65 | O16: =Données!$F16*C$4 -> 2124.1 | P16: =Données!$F16*D$4 -> 2027.55 | Q16: =Données!$F16*E$4 -> 1931 | R16: =Données!$F16*F$4 -> 1834.45 | S16: =Données!$F16*G$4 -> 1737.9 | T16: =Données!$F16*H$4 -> 1641.35 | W16: 37001 | Y16: 240 | AC16: =IF(CalculFinancier!$E$31>=Données!W16,Y16,0) -> 240 | AE16: =IF(CalculFinancier!$H$30>=Données!W16,Y16,0) -> 240 | AF16: =IF(CalculFinancier!$I$30>=Données!W16,Y16,0) -> 240
B17: 1320 | C17: Hamme-Mille | D17: Beauvechain | E17: 2329 | F17: 1931 | G17: =Données!$E17*B$4 -> 2678.35 | H17: =Données!$E17*C$4 -> 2561.9 | I17: =Données!$E17*D$4 -> 2445.45 | J17: =Données!$E17*E$4 -> 2329 | K17: =Données!$E17*F$4 -> 2212.55 | L17: =Données!$E17*G$4 -> 2096.1 | M17: =Données!$E17*H$4 -> 1979.65 | N17: =Données!$F17*B$4 -> 2220.65 | O17: =Données!$F17*C$4 -> 2124.1 | P17: =Données!$F17*D$4 -> 2027.55 | Q17: =Données!$F17*E$4 -> 1931 | R17: =Données!$F17*F$4 -> 1834.45 | S17: =Données!$F17*G$4 -> 1737.9 | T17: =Données!$F17*H$4 -> 1641.35 | AC17: =SUM(AC8:AC16) -> 240 | AE17: =SUM(AE8:AE16) -> 240 | AF17: =SUM(AF8:AF16) -> 240
B18: 1320 | C18: Nodebais | D18: Beauvechain | E18: 2329 | F18: 1931 | G18: =Données!$E18*B$4 -> 2678.35 | H18: =Données!$E18*C$4 -> 2561.9 | I18: =Données!$E18*D$4 -> 2445.45 | J18: =Données!$E18*E$4 -> 2329 | K18: =Données!$E18*F$4 -> 2212.55 | L18: =Données!$E18*G$4 -> 2096.1 | M18: =Données!$E18*H$4 -> 1979.65 | N18: =Données!$F18*B$4 -> 2220.65 | O18: =Données!$F18*C$4 -> 2124.1 | P18: =Données!$F18*D$4 -> 2027.55 | Q18: =Données!$F18*E$4 -> 1931 | R18: =Données!$F18*F$4 -> 1834.45 | S18: =Données!$F18*G$4 -> 1737.9 | T18: =Données!$F18*H$4 -> 1641.35
B19: 1320 | C19: L'ecluse | D19: Beauvechain | E19: 2329 | F19: 1931 | G19: =Données!$E19*B$4 -> 2678.35 | H19: =Données!$E19*C$4 -> 2561.9 | I19: =Données!$E19*D$4 -> 2445.45 | J19: =Données!$E19*E$4 -> 2329 | K19: =Données!$E19*F$4 -> 2212.55 | L19: =Données!$E19*G$4 -> 2096.1 | M19: =Données!$E19*H$4 -> 1979.65 | N19: =Données!$F19*B$4 -> 2220.65 | O19: =Données!$F19*C$4 -> 2124.1 | P19: =Données!$F19*D$4 -> 2027.55 | Q19: =Données!$F19*E$4 -> 1931 | R19: =Données!$F19*F$4 -> 1834.45 | S19: =Données!$F19*G$4 -> 1737.9 | T19: =Données!$F19*H$4 -> 1641.35
B20: 1320 | C20: Tourinnes-La-Grosse | D20: Beauvechain | E20: 2329 | F20: 1931 | G20: =Données!$E20*B$4 -> 2678.35 | H20: =Données!$E20*C$4 -> 2561.9 | I20: =Données!$E20*D$4 -> 2445.45 | J20: =Données!$E20*E$4 -> 2329 | K20: =Données!$E20*F$4 -> 2212.55 | L20: =Données!$E20*G$4 -> 2096.1 | M20: =Données!$E20*H$4 -> 1979.65 | N20: =Données!$F20*B$4 -> 2220.65 | O20: =Données!$F20*C$4 -> 2124.1 | P20: =Données!$F20*D$4 -> 2027.55 | Q20: =Données!$F20*E$4 -> 1931 | R20: =Données!$F20*F$4 -> 1834.45 | S20: =Données!$F20*G$4 -> 1737.9 | T20: =Données!$F20*H$4 -> 1641.35
B21: 1325 | C21: Chaumont-Gistoux | D21: Chaumont-Gistoux | E21: 3024 | F21: 2303 | G21: =Données!$E21*B$4 -> 3477.6 | H21: =Données!$E21*C$4 -> 3326.4 | I21: =Données!$E21*D$4 -> 3175.2 | J21: =Données!$E21*E$4 -> 3024 | K21: =Données!$E21*F$4 -> 2872.8 | L21: =Données!$E21*G$4 -> 2721.6 | M21: =Données!$E21*H$4 -> 2570.4 | N21: =Données!$F21*B$4 -> 2648.45 | O21: =Données!$F21*C$4 -> 2533.3 | P21: =Données!$F21*D$4 -> 2418.15 | Q21: =Données!$F21*E$4 -> 2303 | R21: =Données!$F21*F$4 -> 2187.85 | S21: =Données!$F21*G$4 -> 2072.7 | T21: =Données!$F21*H$4 -> 1957.55
B22: 1325 | C22: Longueville | D22: Chaumont-Gistoux | E22: 3024 | F22: 2303 | G22: =Données!$E22*B$4 -> 3477.6 | H22: =Données!$E22*C$4 -> 3326.4 | I22: =Données!$E22*D$4 -> 3175.2 | J22: =Données!$E22*E$4 -> 3024 | K22: =Données!$E22*F$4 -> 2872.8 | L22: =Données!$E22*G$4 -> 2721.6 | M22: =Données!$E22*H$4 -> 2570.4 | N22: =Données!$F22*B$4 -> 2648.45 | O22: =Données!$F22*C$4 -> 2533.3 | P22: =Données!$F22*D$4 -> 2418.15 | Q22: =Données!$F22*E$4 -> 2303 | R22: =Données!$F22*F$4 -> 2187.85 | S22: =Données!$F22*G$4 -> 2072.7 | T22: =Données!$F22*H$4 -> 1957.55
B23: 1325 | C23: Bonlez | D23: Chaumont-Gistoux | E23: 3024 | F23: 2303 | G23: =Données!$E23*B$4 -> 3477.6 | H23: =Données!$E23*C$4 -> 3326.4 | I23: =Données!$E23*D$4 -> 3175.2 | J23: =Données!$E23*E$4 -> 3024 | K23: =Données!$E23*F$4 -> 2872.8 | L23: =Données!$E23*G$4 -> 2721.6 | M23: =Données!$E23*H$4 -> 2570.4 | N23: =Données!$F23*B$4 -> 2648.45 | O23: =Données!$F23*C$4 -> 2533.3 | P23: =Données!$F23*D$4 -> 2418.15 | Q23: =Données!$F23*E$4 -> 2303 | R23: =Données!$F23*F$4 -> 2187.85 | S23: =Données!$F23*G$4 -> 2072.7 | T23: =Données!$F23*H$4 -> 1957.55
B24: 1325 | C24: Corroy-Le-Grand | D24: Chaumont-Gistoux | E24: 3024 | F24: 2303 | G24: =Données!$E24*B$4 -> 3477.6 | H24: =Données!$E24*C$4 -> 3326.4 | I24: =Données!$E24*D$4 -> 3175.2 | J24: =Données!$E24*E$4 -> 3024 | K24: =Données!$E24*F$4 -> 2872.8 | L24: =Données!$E24*G$4 -> 2721.6 | M24: =Données!$E24*H$4 -> 2570.4 | N24: =Données!$F24*B$4 -> 2648.45 | O24: =Données!$F24*C$4 -> 2533.3 | P24: =Données!$F24*D$4 -> 2418.15 | Q24: =Données!$F24*E$4 -> 2303 | R24: =Données!$F24*F$4 -> 2187.85 | S24: =Données!$F24*G$4 -> 2072.7 | T24: =Données!$F24*H$4 -> 1957.55
B25: 1325 | C25: Dion-Valmont | D25: Chaumont-Gistoux | E25: 3024 | F25: 2303 | G25: =Données!$E25*B$4 -> 3477.6 | H25: =Données!$E25*C$4 -> 3326.4 | I25: =Données!$E25*D$4 -> 3175.2 | J25: =Données!$E25*E$4 -> 3024 | K25: =Données!$E25*F$4 -> 2872.8 | L25: =Données!$E25*G$4 -> 2721.6 | M25: =Données!$E25*H$4 -> 2570.4 | N25: =Données!$F25*B$4 -> 2648.45 | O25: =Données!$F25*C$4 -> 2533.3 | P25: =Données!$F25*D$4 -> 2418.15 | Q25: =Données!$F25*E$4 -> 2303 | R25: =Données!$F25*F$4 -> 2187.85 | S25: =Données!$F25*G$4 -> 2072.7 | T25: =Données!$F25*H$4 -> 1957.55
B26: 1330 | C26: Rixensart | D26: Rixensart | E26: 3168 | F26: 2605 | G26: =Données!$E26*B$4 -> 3643.2 | H26: =Données!$E26*C$4 -> 3484.8 | I26: =Données!$E26*D$4 -> 3326.4 | J26: =Données!$E26*E$4 -> 3168 | K26: =Données!$E26*F$4 -> 3009.6 | L26: =Données!$E26*G$4 -> 2851.2 | M26: =Données!$E26*H$4 -> 2692.8 | N26: =Données!$F26*B$4 -> 2995.75 | O26: =Données!$F26*C$4 -> 2865.5 | P26: =Données!$F26*D$4 -> 2735.25 | Q26: =Données!$F26*E$4 -> 2605 | R26: =Données!$F26*F$4 -> 2474.75 | S26: =Données!$F26*G$4 -> 2344.5 | T26: =Données!$F26*H$4 -> 2214.25
B27: 1331 | C27: Rosières | D27: Rixensart | E27: 3168 | F27: 2605 | G27: =Données!$E27*B$4 -> 3643.2 | H27: =Données!$E27*C$4 -> 3484.8 | I27: =Données!$E27*D$4 -> 3326.4 | J27: =Données!$E27*E$4 -> 3168 | K27: =Données!$E27*F$4 -> 3009.6 | L27: =Données!$E27*G$4 -> 2851.2 | M27: =Données!$E27*H$4 -> 2692.8 | N27: =Données!$F27*B$4 -> 2995.75 | O27: =Données!$F27*C$4 -> 2865.5 | P27: =Données!$F27*D$4 -> 2735.25 | Q27: =Données!$F27*E$4 -> 2605 | R27: =Données!$F27*F$4 -> 2474.75 | S27: =Données!$F27*G$4 -> 2344.5 | T27: =Données!$F27*H$4 -> 2214.25
B28: 1332 | C28: Genval | D28: Rixensart | E28: 3168 | F28: 2605 | G28: =Données!$E28*B$4 -> 3643.2 | H28: =Données!$E28*C$4 -> 3484.8 | I28: =Données!$E28*D$4 -> 3326.4 | J28: =Données!$E28*E$4 -> 3168 | K28: =Données!$E28*F$4 -> 3009.6 | L28: =Données!$E28*G$4 -> 2851.2 | M28: =Données!$E28*H$4 -> 2692.8 | N28: =Données!$F28*B$4 -> 2995.75 | O28: =Données!$F28*C$4 -> 2865.5 | P28: =Données!$F28*D$4 -> 2735.25 | Q28: =Données!$F28*E$4 -> 2605 | R28: =Données!$F28*F$4 -> 2474.75 | S28: =Données!$F28*G$4 -> 2344.5 | T28: =Données!$F28*H$4 -> 2214.25
B29: 1340 | C29: Ottignies | D29: Ottignies-Louvain-La-Neuve | E29: 3908 | F29: 2544 | G29: =Données!$E29*B$4 -> 4494.2 | H29: =Données!$E29*C$4 -> 4298.8 | I29: =Données!$E29*D$4 -> 4103.4 | J29: =Données!$E29*E$4 -> 3908 | K29: =Données!$E29*F$4 -> 3712.6 | L29: =Données!$E29*G$4 -> 3517.2 | M29: =Données!$E29*H$4 -> 3321.8 | N29: =Données!$F29*B$4 -> 2925.6 | O29: =Données!$F29*C$4 -> 2798.4 | P29: =Données!$F29*D$4 -> 2671.2 | Q29: =Données!$F29*E$4 -> 2544 | R29: =Données!$F29*F$4 -> 2416.8 | S29: =Données!$F29*G$4 -> 2289.6 | T29: =Données!$F29*H$4 -> 2162.4
B30: 1340 | C30: Ottignies-Louvain-La-Neuve | D30: Ottignies-Louvain-La-Neuve | E30: 3908 | F30: 2544 | G30: =Données!$E30*B$4 -> 4494.2 | H30: =Données!$E30*C$4 -> 4298.8 | I30: =Données!$E30*D$4 -> 4103.4 | J30: =Données!$E30*E$4 -> 3908 | K30: =Données!$E30*F$4 -> 3712.6 | L30: =Données!$E30*G$4 -> 3517.2 | M30: =Données!$E30*H$4 -> 3321.8 | N30: =Données!$F30*B$4 -> 2925.6 | O30: =Données!$F30*C$4 -> 2798.4 | P30: =Données!$F30*D$4 -> 2671.2 | Q30: =Données!$F30*E$4 -> 2544 | R30: =Données!$F30*F$4 -> 2416.8 | S30: =Données!$F30*G$4 -> 2289.6 | T30: =Données!$F30*H$4 -> 2162.4
B31: 1341 | C31: Céroux-Mousty | D31: Ottignies-Louvain-La-Neuve | E31: 3908 | F31: 2544 | G31: =Données!$E31*B$4 -> 4494.2 | H31: =Données!$E31*C$4 -> 4298.8 | I31: =Données!$E31*D$4 -> 4103.4 | J31: =Données!$E31*E$4 -> 3908 | K31: =Données!$E31*F$4 -> 3712.6 | L31: =Données!$E31*G$4 -> 3517.2 | M31: =Données!$E31*H$4 -> 3321.8 | N31: =Données!$F31*B$4 -> 2925.6 | O31: =Données!$F31*C$4 -> 2798.4 | P31: =Données!$F31*D$4 -> 2671.2 | Q31: =Données!$F31*E$4 -> 2544 | R31: =Données!$F31*F$4 -> 2416.8 | S31: =Données!$F31*G$4 -> 2289.6 | T31: =Données!$F31*H$4 -> 2162.4
B32: 1342 | C32: Limelette | D32: Ottignies-Louvain-La-Neuve | E32: 3908 | F32: 2544 | G32: =Données!$E32*B$4 -> 4494.2 | H32: =Données!$E32*C$4 -> 4298.8 | I32: =Données!$E32*D$4 -> 4103.4 | J32: =Données!$E32*E$4 -> 3908 | K32: =Données!$E32*F$4 -> 3712.6 | L32: =Données!$E32*G$4 -> 3517.2 | M32: =Données!$E32*H$4 -> 3321.8 | N32: =Données!$F32*B$4 -> 2925.6 | O32: =Données!$F32*C$4 -> 2798.4 | P32: =Données!$F32*D$4 -> 2671.2 | Q32: =Données!$F32*E$4 -> 2544 | R32: =Données!$F32*F$4 -> 2416.8 | S32: =Données!$F32*G$4 -> 2289.6 | T32: =Données!$F32*H$4 -> 2162.4
B33: 1348 | C33: Louvain-La-Neuve | D33: Ottignies-Louvain-La-Neuve | E33: 3908 | F33: 2544 | G33: =Données!$E33*B$4 -> 4494.2 | H33: =Données!$E33*C$4 -> 4298.8 | I33: =Données!$E33*D$4 -> 4103.4 | J33: =Données!$E33*E$4 -> 3908 | K33: =Données!$E33*F$4 -> 3712.6 | L33: =Données!$E33*G$4 -> 3517.2 | M33: =Données!$E33*H$4 -> 3321.8 | N33: =Données!$F33*B$4 -> 2925.6 | O33: =Données!$F33*C$4 -> 2798.4 | P33: =Données!$F33*D$4 -> 2671.2 | Q33: =Données!$F33*E$4 -> 2544 | R33: =Données!$F33*F$4 -> 2416.8 | S33: =Données!$F33*G$4 -> 2289.6 | T33: =Données!$F33*H$4 -> 2162.4
B34: 1350 | C34: Noduwez | D34: Orp-Jauche | E34: 2051 | F34: 1663 | G34: =Données!$E34*B$4 -> 2358.65 | H34: =Données!$E34*C$4 -> 2256.1 | I34: =Données!$E34*D$4 -> 2153.55 | J34: =Données!$E34*E$4 -> 2051 | K34: =Données!$E34*F$4 -> 1948.45 | L34: =Données!$E34*G$4 -> 1845.9 | M34: =Données!$E34*H$4 -> 1743.35 | N34: =Données!$F34*B$4 -> 1912.45 | O34: =Données!$F34*C$4 -> 1829.3 | P34: =Données!$F34*D$4 -> 1746.15 | Q34: =Données!$F34*E$4 -> 1663 | R34: =Données!$F34*F$4 -> 1579.85 | S34: =Données!$F34*G$4 -> 1496.7 | T34: =Données!$F34*H$4 -> 1413.55
B35: 1350 | C35: Orp-Jauche | D35: Orp-Jauche | E35: 2051 | F35: 1663 | G35: =Données!$E35*B$4 -> 2358.65 | H35: =Données!$E35*C$4 -> 2256.1 | I35: =Données!$E35*D$4 -> 2153.55 | J35: =Données!$E35*E$4 -> 2051 | K35: =Données!$E35*F$4 -> 1948.45 | L35: =Données!$E35*G$4 -> 1845.9 | M35: =Données!$E35*H$4 -> 1743.35 | N35: =Données!$F35*B$4 -> 1912.45 | O35: =Données!$F35*C$4 -> 1829.3 | P35: =Données!$F35*D$4 -> 1746.15 | Q35: =Données!$F35*E$4 -> 1663 | R35: =Données!$F35*F$4 -> 1579.85 | S35: =Données!$F35*G$4 -> 1496.7 | T35: =Données!$F35*H$4 -> 1413.55
B36: 1350 | C36: Enines | D36: Orp-Jauche | E36: 2051 | F36: 1663 | G36: =Données!$E36*B$4 -> 2358.65 | H36: =Données!$E36*C$4 -> 2256.1 | I36: =Données!$E36*D$4 -> 2153.55 | J36: =Données!$E36*E$4 -> 2051 | K36: =Données!$E36*F$4 -> 1948.45 | L36: =Données!$E36*G$4 -> 1845.9 | M36: =Données!$E36*H$4 -> 1743.35 | N36: =Données!$F36*B$4 -> 1912.45 | O36: =Données!$F36*C$4 -> 1829.3 | P36: =Données!$F36*D$4 -> 1746.15 | Q36: =Données!$F36*E$4 -> 1663 | R36: =Données!$F36*F$4 -> 1579.85 | S36: =Données!$F36*G$4 -> 1496.7 | T36: =Données!$F36*H$4 -> 1413.55
B37: 1350 | C37: Jauche | D37: Orp-Jauche | E37: 2051 | F37: 1663 | G37: =Données!$E37*B$4 -> 2358.65 | H37: =Données!$E37*C$4 -> 2256.1 | I37: =Données!$E37*D$4 -> 2153.55 | J37: =Données!$E37*E$4 -> 2051 | K37: =Données!$E37*F$4 -> 1948.45 | L37: =Données!$E37*G$4 -> 1845.9 | M37: =Données!$E37*H$4 -> 1743.35 | N37: =Données!$F37*B$4 -> 1912.45 | O37: =Données!$F37*C$4 -> 1829.3 | P37: =Données!$F37*D$4 -> 1746.15 | Q37: =Données!$F37*E$4 -> 1663 | R37: =Données!$F37*F$4 -> 1579.85 | S37: =Données!$F37*G$4 -> 1496.7 | T37: =Données!$F37*H$4 -> 1413.55
B38: 1350 | C38: Orp-Le-Grand | D38: Orp-Jauche | E38: 2051 | F38: 1663 | G38: =Données!$E38*B$4 -> 2358.65 | H38: =Données!$E38*C$4 -> 2256.1 | I38: =Données!$E38*D$4 -> 2153.55 | J38: =Données!$E38*E$4 -> 2051 | K38: =Données!$E38*F$4 -> 1948.45 | L38: =Données!$E38*G$4 -> 1845.9 | M38: =Données!$E38*H$4 -> 1743.35 | N38: =Données!$F38*B$4 -> 1912.45 | O38: =Données!$F38*C$4 -> 1829.3 | P38: =Données!$F38*D$4 -> 1746.15 | Q38: =Données!$F38*E$4 -> 1663 | R38: =Données!$F38*F$4 -> 1579.85 | S38: =Données!$F38*G$4 -> 1496.7 | T38: =Données!$F38*H$4 -> 1413.55
B39: 1350 | C39: Folx-Les-Caves | D39: Orp-Jauche | E39: 2051 | F39: 1663 | G39: =Données!$E39*B$4 -> 2358.65 | H39: =Données!$E39*C$4 -> 2256.1 | I39: =Données!$E39*D$4 -> 2153.55 | J39: =Données!$E39*E$4 -> 2051 | K39: =Données!$E39*F$4 -> 1948.45 | L39: =Données!$E39*G$4 -> 1845.9 | M39: =Données!$E39*H$4 -> 1743.35 | N39: =Données!$F39*B$4 -> 1912.45 | O39: =Données!$F39*C$4 -> 1829.3 | P39: =Données!$F39*D$4 -> 1746.15 | Q39: =Données!$F39*E$4 -> 1663 | R39: =Données!$F39*F$4 -> 1579.85 | S39: =Données!$F39*G$4 -> 1496.7 | T39: =Données!$F39*H$4 -> 1413.55
B40: 1350 | C40: Marilles | D40: Orp-Jauche | E40: 2051 | F40: 1663 | G40: =Données!$E40*B$4 -> 2358.65 | H40: =Données!$E40*C$4 -> 2256.1 | I40: =Données!$E40*D$4 -> 2153.55 | J40: =Données!$E40*E$4 -> 2051 | K40: =Données!$E40*F$4 -> 1948.45 | L40: =Données!$E40*G$4 -> 1845.9 | M40: =Données!$E40*H$4 -> 1743.35 | N40: =Données!$F40*B$4 -> 1912.45 | O40: =Données!$F40*C$4 -> 1829.3 | P40: =Données!$F40*D$4 -> 1746.15 | Q40: =Données!$F40*E$4 -> 1663 | R40: =Données!$F40*F$4 -> 1579.85 | S40: =Données!$F40*G$4 -> 1496.7 | T40: =Données!$F40*H$4 -> 1413.55
B41: 1350 | C41: Jandrain-Jandrenouille | D41: Orp-Jauche | E41: 2051 | F41: 1663 | G41: =Données!$E41*B$4 -> 2358.65 | H41: =Données!$E41*C$4 -> 2256.1 | I41: =Données!$E41*D$4 -> 2153.55 | J41: =Données!$E41*E$4 -> 2051 | K41: =Données!$E41*F$4 -> 1948.45 | L41: =Données!$E41*G$4 -> 1845.9 | M41: =Données!$E41*H$4 -> 1743.35 | N41: =Données!$F41*B$4 -> 1912.45 | O41: =Données!$F41*C$4 -> 1829.3 | P41: =Données!$F41*D$4 -> 1746.15 | Q41: =Données!$F41*E$4 -> 1663 | R41: =Données!$F41*F$4 -> 1579.85 | S41: =Données!$F41*G$4 -> 1496.7 | T41: =Données!$F41*H$4 -> 1413.55
B42: 1357 | C42: Opheylissem | D42: Hélécine | E42: 2132 | F42: 1618 | G42: =Données!$E42*B$4 -> 2451.8 | H42: =Données!$E42*C$4 -> 2345.2 | I42: =Données!$E42*D$4 -> 2238.6 | J42: =Données!$E42*E$4 -> 2132 | K42: =Données!$E42*F$4 -> 2025.4 | L42: =Données!$E42*G$4 -> 1918.8 | M42: =Données!$E42*H$4 -> 1812.2 | N42: =Données!$F42*B$4 -> 1860.7 | O42: =Données!$F42*C$4 -> 1779.8 | P42: =Données!$F42*D$4 -> 1698.9 | Q42: =Données!$F42*E$4 -> 1618 | R42: =Données!$F42*F$4 -> 1537.1 | S42: =Données!$F42*G$4 -> 1456.2 | T42: =Données!$F42*H$4 -> 1375.3
B43: 1357 | C43: Neerheylissem | D43: Hélécine | E43: 2132 | F43: 1618 | G43: =Données!$E43*B$4 -> 2451.8 | H43: =Données!$E43*C$4 -> 2345.2 | I43: =Données!$E43*D$4 -> 2238.6 | J43: =Données!$E43*E$4 -> 2132 | K43: =Données!$E43*F$4 -> 2025.4 | L43: =Données!$E43*G$4 -> 1918.8 | M43: =Données!$E43*H$4 -> 1812.2 | N43: =Données!$F43*B$4 -> 1860.7 | O43: =Données!$F43*C$4 -> 1779.8 | P43: =Données!$F43*D$4 -> 1698.9 | Q43: =Données!$F43*E$4 -> 1618 | R43: =Données!$F43*F$4 -> 1537.1 | S43: =Données!$F43*G$4 -> 1456.2 | T43: =Données!$F43*H$4 -> 1375.3
B44: 1357 | C44: Hélécine | D44: Hélécine | E44: 2132 | F44: 1618 | G44: =Données!$E44*B$4 -> 2451.8 | H44: =Données!$E44*C$4 -> 2345.2 | I44: =Données!$E44*D$4 -> 2238.6 | J44: =Données!$E44*E$4 -> 2132 | K44: =Données!$E44*F$4 -> 2025.4 | L44: =Données!$E44*G$4 -> 1918.8 | M44: =Données!$E44*H$4 -> 1812.2 | N44: =Données!$F44*B$4 -> 1860.7 | O44: =Données!$F44*C$4 -> 1779.8 | P44: =Données!$F44*D$4 -> 1698.9 | Q44: =Données!$F44*E$4 -> 1618 | R44: =Données!$F44*F$4 -> 1537.1 | S44: =Données!$F44*G$4 -> 1456.2 | T44: =Données!$F44*H$4 -> 1375.3
B45: 1357 | C45: Linsmeau | D45: Hélécine | E45: 2132 | F45: 1618 | G45: =Données!$E45*B$4 -> 2451.8 | H45: =Données!$E45*C$4 -> 2345.2 | I45: =Données!$E45*D$4 -> 2238.6 | J45: =Données!$E45*E$4 -> 2132 | K45: =Données!$E45*F$4 -> 2025.4 | L45: =Données!$E45*G$4 -> 1918.8 | M45: =Données!$E45*H$4 -> 1812.2 | N45: =Données!$F45*B$4 -> 1860.7 | O45: =Données!$F45*C$4 -> 1779.8 | P45: =Données!$F45*D$4 -> 1698.9 | Q45: =Données!$F45*E$4 -> 1618 | R45: =Données!$F45*F$4 -> 1537.1 | S45: =Données!$F45*G$4 -> 1456.2 | T45: =Données!$F45*H$4 -> 1375.3
B46: 1360 | C46: Thorembais-Les-Béguines | D46: Perwez | E46: 2435 | F46: 1861 | G46: =Données!$E46*B$4 -> 2800.25 | H46: =Données!$E46*C$4 -> 2678.5 | I46: =Données!$E46*D$4 -> 2556.75 | J46: =Données!$E46*E$4 -> 2435 | K46: =Données!$E46*F$4 -> 2313.25 | L46: =Données!$E46*G$4 -> 2191.5 | M46: =Données!$E46*H$4 -> 2069.75 | N46: =Données!$F46*B$4 -> 2140.15 | O46: =Données!$F46*C$4 -> 2047.1 | P46: =Données!$F46*D$4 -> 1954.05 | Q46: =Données!$F46*E$4 -> 1861 | R46: =Données!$F46*F$4 -> 1767.95 | S46: =Données!$F46*G$4 -> 1674.9 | T46: =Données!$F46*H$4 -> 1581.85
B47: 1360 | C47: Thorembais-Saint-Trond | D47: Perwez | E47: 2435 | F47: 1861 | G47: =Données!$E47*B$4 -> 2800.25 | H47: =Données!$E47*C$4 -> 2678.5 | I47: =Données!$E47*D$4 -> 2556.75 | J47: =Données!$E47*E$4 -> 2435 | K47: =Données!$E47*F$4 -> 2313.25 | L47: =Données!$E47*G$4 -> 2191.5 | M47: =Données!$E47*H$4 -> 2069.75 | N47: =Données!$F47*B$4 -> 2140.15 | O47: =Données!$F47*C$4 -> 2047.1 | P47: =Données!$F47*D$4 -> 1954.05 | Q47: =Données!$F47*E$4 -> 1861 | R47: =Données!$F47*F$4 -> 1767.95 | S47: =Données!$F47*G$4 -> 1674.9 | T47: =Données!$F47*H$4 -> 1581.85
B48: 1360 | C48: Malèves-Sainte-Marie-Wastines | D48: Perwez | E48: 2435 | F48: 1861 | G48: =Données!$E48*B$4 -> 2800.25 | H48: =Données!$E48*C$4 -> 2678.5 | I48: =Données!$E48*D$4 -> 2556.75 | J48: =Données!$E48*E$4 -> 2435 | K48: =Données!$E48*F$4 -> 2313.25 | L48: =Données!$E48*G$4 -> 2191.5 | M48: =Données!$E48*H$4 -> 2069.75 | N48: =Données!$F48*B$4 -> 2140.15 | O48: =Données!$F48*C$4 -> 2047.1 | P48: =Données!$F48*D$4 -> 1954.05 | Q48: =Données!$F48*E$4 -> 1861 | R48: =Données!$F48*F$4 -> 1767.95 | S48: =Données!$F48*G$4 -> 1674.9 | T48: =Données!$F48*H$4 -> 1581.85
B49: 1360 | C49: Perwez | D49: Perwez | E49: 2435 | F49: 1861 | G49: =Données!$E49*B$4 -> 2800.25 | H49: =Données!$E49*C$4 -> 2678.5 | I49: =Données!$E49*D$4 -> 2556.75 | J49: =Données!$E49*E$4 -> 2435 | K49: =Données!$E49*F$4 -> 2313.25 | L49: =Données!$E49*G$4 -> 2191.5 | M49: =Données!$E49*H$4 -> 2069.75 | N49: =Données!$F49*B$4 -> 2140.15 | O49: =Données!$F49*C$4 -> 2047.1 | P49: =Données!$F49*D$4 -> 1954.05 | Q49: =Données!$F49*E$4 -> 1861 | R49: =Données!$F49*F$4 -> 1767.95 | S49: =Données!$F49*G$4 -> 1674.9 | T49: =Données!$F49*H$4 -> 1581.85
B50: 1360 | C50: Orbais | D50: Perwez | E50: 2435 | F50: 1861 | G50: =Données!$E50*B$4 -> 2800.25 | H50: =Données!$E50*C$4 -> 2678.5 | I50: =Données!$E50*D$4 -> 2556.75 | J50: =Données!$E50*E$4 -> 2435 | K50: =Données!$E50*F$4 -> 2313.25 | L50: =Données!$E50*G$4 -> 2191.5 | M50: =Données!$E50*H$4 -> 2069.75 | N50: =Données!$F50*B$4 -> 2140.15 | O50: =Données!$F50*C$4 -> 2047.1 | P50: =Données!$F50*D$4 -> 1954.05 | Q50: =Données!$F50*E$4 -> 1861 | R50: =Données!$F50*F$4 -> 1767.95 | S50: =Données!$F50*G$4 -> 1674.9 | T50: =Données!$F50*H$4 -> 1581.85
B51: 1367 | C51: Autre-Eglise | D51: Ramillies | E51: 2081 | F51: 1653 | G51: =Données!$E51*B$4 -> 2393.15 | H51: =Données!$E51*C$4 -> 2289.1 | I51: =Données!$E51*D$4 -> 2185.05 | J51: =Données!$E51*E$4 -> 2081 | K51: =Données!$E51*F$4 -> 1976.95 | L51: =Données!$E51*G$4 -> 1872.9 | M51: =Données!$E51*H$4 -> 1768.85 | N51: =Données!$F51*B$4 -> 1900.95 | O51: =Données!$F51*C$4 -> 1818.3 | P51: =Données!$F51*D$4 -> 1735.65 | Q51: =Données!$F51*E$4 -> 1653 | R51: =Données!$F51*F$4 -> 1570.35 | S51: =Données!$F51*G$4 -> 1487.7 | T51: =Données!$F51*H$4 -> 1405.05
B52: 1367 | C52: Huppaye | D52: Ramillies | E52: 2081 | F52: 1653 | G52: =Données!$E52*B$4 -> 2393.15 | H52: =Données!$E52*C$4 -> 2289.1 | I52: =Données!$E52*D$4 -> 2185.05 | J52: =Données!$E52*E$4 -> 2081 | K52: =Données!$E52*F$4 -> 1976.95 | L52: =Données!$E52*G$4 -> 1872.9 | M52: =Données!$E52*H$4 -> 1768.85 | N52: =Données!$F52*B$4 -> 1900.95 | O52: =Données!$F52*C$4 -> 1818.3 | P52: =Données!$F52*D$4 -> 1735.65 | Q52: =Données!$F52*E$4 -> 1653 | R52: =Données!$F52*F$4 -> 1570.35 | S52: =Données!$F52*G$4 -> 1487.7 | T52: =Données!$F52*H$4 -> 1405.05
B53: 1367 | C53: Ramillies | D53: Ramillies | E53: 2081 | F53: 1653 | G53: =Données!$E53*B$4 -> 2393.15 | H53: =Données!$E53*C$4 -> 2289.1 | I53: =Données!$E53*D$4 -> 2185.05 | J53: =Données!$E53*E$4 -> 2081 | K53: =Données!$E53*F$4 -> 1976.95 | L53: =Données!$E53*G$4 -> 1872.9 | M53: =Données!$E53*H$4 -> 1768.85 | N53: =Données!$F53*B$4 -> 1900.95 | O53: =Données!$F53*C$4 -> 1818.3 | P53: =Données!$F53*D$4 -> 1735.65 | Q53: =Données!$F53*E$4 -> 1653 | R53: =Données!$F53*F$4 -> 1570.35 | S53: =Données!$F53*G$4 -> 1487.7 | T53: =Données!$F53*H$4 -> 1405.05
B54: 1367 | C54: Grand-Rosière-Hottomont | D54: Ramillies | E54: 2081 | F54: 1653 | G54: =Données!$E54*B$4 -> 2393.15 | H54: =Données!$E54*C$4 -> 2289.1 | I54: =Données!$E54*D$4 -> 2185.05 | J54: =Données!$E54*E$4 -> 2081 | K54: =Données!$E54*F$4 -> 1976.95 | L54: =Données!$E54*G$4 -> 1872.9 | M54: =Données!$E54*H$4 -> 1768.85 | N54: =Données!$F54*B$4 -> 1900.95 | O54: =Données!$F54*C$4 -> 1818.3 | P54: =Données!$F54*D$4 -> 1735.65 | Q54: =Données!$F54*E$4 -> 1653 | R54: =Données!$F54*F$4 -> 1570.35 | S54: =Données!$F54*G$4 -> 1487.7 | T54: =Données!$F54*H$4 -> 1405.05
B55: 1367 | C55: Bomal | D55: Ramillies | E55: 2081 | F55: 1653 | G55: =Données!$E55*B$4 -> 2393.15 | H55: =Données!$E55*C$4 -> 2289.1 | I55: =Données!$E55*D$4 -> 2185.05 | J55: =Données!$E55*E$4 -> 2081 | K55: =Données!$E55*F$4 -> 1976.95 | L55: =Données!$E55*G$4 -> 1872.9 | M55: =Données!$E55*H$4 -> 1768.85 | N55: =Données!$F55*B$4 -> 1900.95 | O55: =Données!$F55*C$4 -> 1818.3 | P55: =Données!$F55*D$4 -> 1735.65 | Q55: =Données!$F55*E$4 -> 1653 | R55: =Données!$F55*F$4 -> 1570.35 | S55: =Données!$F55*G$4 -> 1487.7 | T55: =Données!$F55*H$4 -> 1405.05
B56: 1367 | C56: Gérompont | D56: Ramillies | E56: 2081 | F56: 1653 | G56: =Données!$E56*B$4 -> 2393.15 | H56: =Données!$E56*C$4 -> 2289.1 | I56: =Données!$E56*D$4 -> 2185.05 | J56: =Données!$E56*E$4 -> 2081 | K56: =Données!$E56*F$4 -> 1976.95 | L56: =Données!$E56*G$4 -> 1872.9 | M56: =Données!$E56*H$4 -> 1768.85 | N56: =Données!$F56*B$4 -> 1900.95 | O56: =Données!$F56*C$4 -> 1818.3 | P56: =Données!$F56*D$4 -> 1735.65 | Q56: =Données!$F56*E$4 -> 1653 | R56: =Données!$F56*F$4 -> 1570.35 | S56: =Données!$F56*G$4 -> 1487.7 | T56: =Données!$F56*H$4 -> 1405.05
B57: 1367 | C57: Mont-Saint-André | D57: Ramillies | E57: 2081 | F57: 1653 | G57: =Données!$E57*B$4 -> 2393.15 | H57: =Données!$E57*C$4 -> 2289.1 | I57: =Données!$E57*D$4 -> 2185.05 | J57: =Données!$E57*E$4 -> 2081 | K57: =Données!$E57*F$4 -> 1976.95 | L57: =Données!$E57*G$4 -> 1872.9 | M57: =Données!$E57*H$4 -> 1768.85 | N57: =Données!$F57*B$4 -> 1900.95 | O57: =Données!$F57*C$4 -> 1818.3 | P57: =Données!$F57*D$4 -> 1735.65 | Q57: =Données!$F57*E$4 -> 1653 | R57: =Données!$F57*F$4 -> 1570.35 | S57: =Données!$F57*G$4 -> 1487.7 | T57: =Données!$F57*H$4 -> 1405.05
B58: 1370 | C58: Dongelberg | D58: Jodoigne | E58: 2425 | F58: 1823 | G58: =Données!$E58*B$4 -> 2788.75 | H58: =Données!$E58*C$4 -> 2667.5 | I58: =Données!$E58*D$4 -> 2546.25 | J58: =Données!$E58*E$4 -> 2425 | K58: =Données!$E58*F$4 -> 2303.75 | L58: =Données!$E58*G$4 -> 2182.5 | M58: =Données!$E58*H$4 -> 2061.25 | N58: =Données!$F58*B$4 -> 2096.45 | O58: =Données!$F58*C$4 -> 2005.3 | P58: =Données!$F58*D$4 -> 1914.15 | Q58: =Données!$F58*E$4 -> 1823 | R58: =Données!$F58*F$4 -> 1731.85 | S58: =Données!$F58*G$4 -> 1640.7 | T58: =Données!$F58*H$4 -> 1549.55
B59: 1370 | C59: Jauchelette | D59: Jodoigne | E59: 2425 | F59: 1823 | G59: =Données!$E59*B$4 -> 2788.75 | H59: =Données!$E59*C$4 -> 2667.5 | I59: =Données!$E59*D$4 -> 2546.25 | J59: =Données!$E59*E$4 -> 2425 | K59: =Données!$E59*F$4 -> 2303.75 | L59: =Données!$E59*G$4 -> 2182.5 | M59: =Données!$E59*H$4 -> 2061.25 | N59: =Données!$F59*B$4 -> 2096.45 | O59: =Données!$F59*C$4 -> 2005.3 | P59: =Données!$F59*D$4 -> 1914.15 | Q59: =Données!$F59*E$4 -> 1823 | R59: =Données!$F59*F$4 -> 1731.85 | S59: =Données!$F59*G$4 -> 1640.7 | T59: =Données!$F59*H$4 -> 1549.55
B60: 1370 | C60: Saint-Jean-Geest | D60: Jodoigne | E60: 2425 | F60: 1823 | G60: =Données!$E60*B$4 -> 2788.75 | H60: =Données!$E60*C$4 -> 2667.5 | I60: =Données!$E60*D$4 -> 2546.25 | J60: =Données!$E60*E$4 -> 2425 | K60: =Données!$E60*F$4 -> 2303.75 | L60: =Données!$E60*G$4 -> 2182.5 | M60: =Données!$E60*H$4 -> 2061.25 | N60: =Données!$F60*B$4 -> 2096.45 | O60: =Données!$F60*C$4 -> 2005.3 | P60: =Données!$F60*D$4 -> 1914.15 | Q60: =Données!$F60*E$4 -> 1823 | R60: =Données!$F60*F$4 -> 1731.85 | S60: =Données!$F60*G$4 -> 1640.7 | T60: =Données!$F60*H$4 -> 1549.55
B61: 1370 | C61: Jodoigne-Souveraine | D61: Jodoigne | E61: 2425 | F61: 1823 | G61: =Données!$E61*B$4 -> 2788.75 | H61: =Données!$E61*C$4 -> 2667.5 | I61: =Données!$E61*D$4 -> 2546.25 | J61: =Données!$E61*E$4 -> 2425 | K61: =Données!$E61*F$4 -> 2303.75 | L61: =Données!$E61*G$4 -> 2182.5 | M61: =Données!$E61*H$4 -> 2061.25 | N61: =Données!$F61*B$4 -> 2096.45 | O61: =Données!$F61*C$4 -> 2005.3 | P61: =Données!$F61*D$4 -> 1914.15 | Q61: =Données!$F61*E$4 -> 1823 | R61: =Données!$F61*F$4 -> 1731.85 | S61: =Données!$F61*G$4 -> 1640.7 | T61: =Données!$F61*H$4 -> 1549.55
B62: 1370 | C62: Piétrain | D62: Jodoigne | E62: 2425 | F62: 1823 | G62: =Données!$E62*B$4 -> 2788.75 | H62: =Données!$E62*C$4 -> 2667.5 | I62: =Données!$E62*D$4 -> 2546.25 | J62: =Données!$E62*E$4 -> 2425 | K62: =Données!$E62*F$4 -> 2303.75 | L62: =Données!$E62*G$4 -> 2182.5 | M62: =Données!$E62*H$4 -> 2061.25 | N62: =Données!$F62*B$4 -> 2096.45 | O62: =Données!$F62*C$4 -> 2005.3 | P62: =Données!$F62*D$4 -> 1914.15 | Q62: =Données!$F62*E$4 -> 1823 | R62: =Données!$F62*F$4 -> 1731.85 | S62: =Données!$F62*G$4 -> 1640.7 | T62: =Données!$F62*H$4 -> 1549.55
B63: 1370 | C63: Jodoigne | D63: Jodoigne | E63: 2425 | F63: 1823 | G63: =Données!$E63*B$4 -> 2788.75 | H63: =Données!$E63*C$4 -> 2667.5 | I63: =Données!$E63*D$4 -> 2546.25 | J63: =Données!$E63*E$4 -> 2425 | K63: =Données!$E63*F$4 -> 2303.75 | L63: =Données!$E63*G$4 -> 2182.5 | M63: =Données!$E63*H$4 -> 2061.25 | N63: =Données!$F63*B$4 -> 2096.45 | O63: =Données!$F63*C$4 -> 2005.3 | P63: =Données!$F63*D$4 -> 1914.15 | Q63: =Données!$F63*E$4 -> 1823 | R63: =Données!$F63*F$4 -> 1731.85 | S63: =Données!$F63*G$4 -> 1640.7 | T63: =Données!$F63*H$4 -> 1549.55
B64: 1370 | C64: Mélin | D64: Jodoigne | E64: 2425 | F64: 1823 | G64: =Données!$E64*B$4 -> 2788.75 | H64: =Données!$E64*C$4 -> 2667.5 | I64: =Données!$E64*D$4 -> 2546.25 | J64: =Données!$E64*E$4 -> 2425 | K64: =Données!$E64*F$4 -> 2303.75 | L64: =Données!$E64*G$4 -> 2182.5 | M64: =Données!$E64*H$4 -> 2061.25 | N64: =Données!$F64*B$4 -> 2096.45 | O64: =Données!$F64*C$4 -> 2005.3 | P64: =Données!$F64*D$4 -> 1914.15 | Q64: =Données!$F64*E$4 -> 1823 | R64: =Données!$F64*F$4 -> 1731.85 | S64: =Données!$F64*G$4 -> 1640.7 | T64: =Données!$F64*H$4 -> 1549.55
B65: 1370 | C65: Saint-Remy-Geest | D65: Jodoigne | E65: 2425 | F65: 1823 | G65: =Données!$E65*B$4 -> 2788.75 | H65: =Données!$E65*C$4 -> 2667.5 | I65: =Données!$E65*D$4 -> 2546.25 | J65: =Données!$E65*E$4 -> 2425 | K65: =Données!$E65*F$4 -> 2303.75 | L65: =Données!$E65*G$4 -> 2182.5 | M65: =Données!$E65*H$4 -> 2061.25 | N65: =Données!$F65*B$4 -> 2096.45 | O65: =Données!$F65*C$4 -> 2005.3 | P65: =Données!$F65*D$4 -> 1914.15 | Q65: =Données!$F65*E$4 -> 1823 | R65: =Données!$F65*F$4 -> 1731.85 | S65: =Données!$F65*G$4 -> 1640.7 | T65: =Données!$F65*H$4 -> 1549.55
B66: 1370 | C66: Lathuy | D66: Jodoigne | E66: 2425 | F66: 1823 | G66: =Données!$E66*B$4 -> 2788.75 | H66: =Données!$E66*C$4 -> 2667.5 | I66: =Données!$E66*D$4 -> 2546.25 | J66: =Données!$E66*E$4 -> 2425 | K66: =Données!$E66*F$4 -> 2303.75 | L66: =Données!$E66*G$4 -> 2182.5 | M66: =Données!$E66*H$4 -> 2061.25 | N66: =Données!$F66*B$4 -> 2096.45 | O66: =Données!$F66*C$4 -> 2005.3 | P66: =Données!$F66*D$4 -> 1914.15 | Q66: =Données!$F66*E$4 -> 1823 | R66: =Données!$F66*F$4 -> 1731.85 | S66: =Données!$F66*G$4 -> 1640.7 | T66: =Données!$F66*H$4 -> 1549.55
B67: 1370 | C67: Zétrud-Lumay | D67: Jodoigne | E67: 2425 | F67: 1823 | G67: =Données!$E67*B$4 -> 2788.75 | H67: =Données!$E67*C$4 -> 2667.5 | I67: =Données!$E67*D$4 -> 2546.25 | J67: =Données!$E67*E$4 -> 2425 | K67: =Données!$E67*F$4 -> 2303.75 | L67: =Données!$E67*G$4 -> 2182.5 | M67: =Données!$E67*H$4 -> 2061.25 | N67: =Données!$F67*B$4 -> 2096.45 | O67: =Données!$F67*C$4 -> 2005.3 | P67: =Données!$F67*D$4 -> 1914.15 | Q67: =Données!$F67*E$4 -> 1823 | R67: =Données!$F67*F$4 -> 1731.85 | S67: =Données!$F67*G$4 -> 1640.7 | T67: =Données!$F67*H$4 -> 1549.55
B68: 1380 | C68: Lasne-Chapelle-Saint-Lambert | D68: Lasne | E68: 3376 | F68: 2840 | G68: =Données!$E68*B$4 -> 3882.4 | H68: =Données!$E68*C$4 -> 3713.6 | I68: =Données!$E68*D$4 -> 3544.8 | J68: =Données!$E68*E$4 -> 3376 | K68: =Données!$E68*F$4 -> 3207.2 | L68: =Données!$E68*G$4 -> 3038.4 | M68: =Données!$E68*H$4 -> 2869.6 | N68: =Données!$F68*B$4 -> 3266 | O68: =Données!$F68*C$4 -> 3124 | P68: =Données!$F68*D$4 -> 2982 | Q68: =Données!$F68*E$4 -> 2840 | R68: =Données!$F68*F$4 -> 2698 | S68: =Données!$F68*G$4 -> 2556 | T68: =Données!$F68*H$4 -> 2414
B69: 1380 | C69: Maransart | D69: Lasne | E69: 3376 | F69: 2840 | G69: =Données!$E69*B$4 -> 3882.4 | H69: =Données!$E69*C$4 -> 3713.6 | I69: =Données!$E69*D$4 -> 3544.8 | J69: =Données!$E69*E$4 -> 3376 | K69: =Données!$E69*F$4 -> 3207.2 | L69: =Données!$E69*G$4 -> 3038.4 | M69: =Données!$E69*H$4 -> 2869.6 | N69: =Données!$F69*B$4 -> 3266 | O69: =Données!$F69*C$4 -> 3124 | P69: =Données!$F69*D$4 -> 2982 | Q69: =Données!$F69*E$4 -> 2840 | R69: =Données!$F69*F$4 -> 2698 | S69: =Données!$F69*G$4 -> 2556 | T69: =Données!$F69*H$4 -> 2414
B70: 1380 | C70: Ohain | D70: Lasne | E70: 3376 | F70: 2840 | G70: =Données!$E70*B$4 -> 3882.4 | H70: =Données!$E70*C$4 -> 3713.6 | I70: =Données!$E70*D$4 -> 3544.8 | J70: =Données!$E70*E$4 -> 3376 | K70: =Données!$E70*F$4 -> 3207.2 | L70: =Données!$E70*G$4 -> 3038.4 | M70: =Données!$E70*H$4 -> 2869.6 | N70: =Données!$F70*B$4 -> 3266 | O70: =Données!$F70*C$4 -> 3124 | P70: =Données!$F70*D$4 -> 2982 | Q70: =Données!$F70*E$4 -> 2840 | R70: =Données!$F70*F$4 -> 2698 | S70: =Données!$F70*G$4 -> 2556 | T70: =Données!$F70*H$4 -> 2414
B71: 1380 | C71: Couture-Saint-Germain | D71: Lasne | E71: 3376 | F71: 2840 | G71: =Données!$E71*B$4 -> 3882.4 | H71: =Données!$E71*C$4 -> 3713.6 | I71: =Données!$E71*D$4 -> 3544.8 | J71: =Données!$E71*E$4 -> 3376 | K71: =Données!$E71*F$4 -> 3207.2 | L71: =Données!$E71*G$4 -> 3038.4 | M71: =Données!$E71*H$4 -> 2869.6 | N71: =Données!$F71*B$4 -> 3266 | O71: =Données!$F71*C$4 -> 3124 | P71: =Données!$F71*D$4 -> 2982 | Q71: =Données!$F71*E$4 -> 2840 | R71: =Données!$F71*F$4 -> 2698 | S71: =Données!$F71*G$4 -> 2556 | T71: =Données!$F71*H$4 -> 2414
B72: 1380 | C72: Plancenoit | D72: Lasne | E72: 3376 | F72: 2840 | G72: =Données!$E72*B$4 -> 3882.4 | H72: =Données!$E72*C$4 -> 3713.6 | I72: =Données!$E72*D$4 -> 3544.8 | J72: =Données!$E72*E$4 -> 3376 | K72: =Données!$E72*F$4 -> 3207.2 | L72: =Données!$E72*G$4 -> 3038.4 | M72: =Données!$E72*H$4 -> 2869.6 | N72: =Données!$F72*B$4 -> 3266 | O72: =Données!$F72*C$4 -> 3124 | P72: =Données!$F72*D$4 -> 2982 | Q72: =Données!$F72*E$4 -> 2840 | R72: =Données!$F72*F$4 -> 2698 | S72: =Données!$F72*G$4 -> 2556 | T72: =Données!$F72*H$4 -> 2414
B73: 1380 | C73: Lasne | D73: Lasne | E73: 3376 | F73: 2840 | G73: =Données!$E73*B$4 -> 3882.4 | H73: =Données!$E73*C$4 -> 3713.6 | I73: =Données!$E73*D$4 -> 3544.8 | J73: =Données!$E73*E$4 -> 3376 | K73: =Données!$E73*F$4 -> 3207.2 | L73: =Données!$E73*G$4 -> 3038.4 | M73: =Données!$E73*H$4 -> 2869.6 | N73: =Données!$F73*B$4 -> 3266 | O73: =Données!$F73*C$4 -> 3124 | P73: =Données!$F73*D$4 -> 2982 | Q73: =Données!$F73*E$4 -> 2840 | R73: =Données!$F73*F$4 -> 2698 | S73: =Données!$F73*G$4 -> 2556 | T73: =Données!$F73*H$4 -> 2414
B74: 1390 | C74: Grez-Doiceau | D74: Grez-Doiceau | E74: 2757 | F74: 2227 | G74: =Données!$E74*B$4 -> 3170.55 | H74: =Données!$E74*C$4 -> 3032.7 | I74: =Données!$E74*D$4 -> 2894.85 | J74: =Données!$E74*E$4 -> 2757 | K74: =Données!$E74*F$4 -> 2619.15 | L74: =Données!$E74*G$4 -> 2481.3 | M74: =Données!$E74*H$4 -> 2343.45 | N74: =Données!$F74*B$4 -> 2561.05 | O74: =Données!$F74*C$4 -> 2449.7 | P74: =Données!$F74*D$4 -> 2338.35 | Q74: =Données!$F74*E$4 -> 2227 | R74: =Données!$F74*F$4 -> 2115.65 | S74: =Données!$F74*G$4 -> 2004.3 | T74: =Données!$F74*H$4 -> 1892.95
B75: 1390 | C75: Bossut-Gottechain | D75: Grez-Doiceau | E75: 2757 | F75: 2227 | G75: =Données!$E75*B$4 -> 3170.55 | H75: =Données!$E75*C$4 -> 3032.7 | I75: =Données!$E75*D$4 -> 2894.85 | J75: =Données!$E75*E$4 -> 2757 | K75: =Données!$E75*F$4 -> 2619.15 | L75: =Données!$E75*G$4 -> 2481.3 | M75: =Données!$E75*H$4 -> 2343.45 | N75: =Données!$F75*B$4 -> 2561.05 | O75: =Données!$F75*C$4 -> 2449.7 | P75: =Données!$F75*D$4 -> 2338.35 | Q75: =Données!$F75*E$4 -> 2227 | R75: =Données!$F75*F$4 -> 2115.65 | S75: =Données!$F75*G$4 -> 2004.3 | T75: =Données!$F75*H$4 -> 1892.95
B76: 1390 | C76: Biez | D76: Grez-Doiceau | E76: 2757 | F76: 2227 | G76: =Données!$E76*B$4 -> 3170.55 | H76: =Données!$E76*C$4 -> 3032.7 | I76: =Données!$E76*D$4 -> 2894.85 | J76: =Données!$E76*E$4 -> 2757 | K76: =Données!$E76*F$4 -> 2619.15 | L76: =Données!$E76*G$4 -> 2481.3 | M76: =Données!$E76*H$4 -> 2343.45 | N76: =Données!$F76*B$4 -> 2561.05 | O76: =Données!$F76*C$4 -> 2449.7 | P76: =Données!$F76*D$4 -> 2338.35 | Q76: =Données!$F76*E$4 -> 2227 | R76: =Données!$F76*F$4 -> 2115.65 | S76: =Données!$F76*G$4 -> 2004.3 | T76: =Données!$F76*H$4 -> 1892.95
B77: 1390 | C77: Nethen | D77: Grez-Doiceau | E77: 2757 | F77: 2227 | G77: =Données!$E77*B$4 -> 3170.55 | H77: =Données!$E77*C$4 -> 3032.7 | I77: =Données!$E77*D$4 -> 2894.85 | J77: =Données!$E77*E$4 -> 2757 | K77: =Données!$E77*F$4 -> 2619.15 | L77: =Données!$E77*G$4 -> 2481.3 | M77: =Données!$E77*H$4 -> 2343.45 | N77: =Données!$F77*B$4 -> 2561.05 | O77: =Données!$F77*C$4 -> 2449.7 | P77: =Données!$F77*D$4 -> 2338.35 | Q77: =Données!$F77*E$4 -> 2227 | R77: =Données!$F77*F$4 -> 2115.65 | S77: =Données!$F77*G$4 -> 2004.3 | T77: =Données!$F77*H$4 -> 1892.95
B78: 1390 | C78: Archennes | D78: Grez-Doiceau | E78: 2757 | F78: 2227 | G78: =Données!$E78*B$4 -> 3170.55 | H78: =Données!$E78*C$4 -> 3032.7 | I78: =Données!$E78*D$4 -> 2894.85 | J78: =Données!$E78*E$4 -> 2757 | K78: =Données!$E78*F$4 -> 2619.15 | L78: =Données!$E78*G$4 -> 2481.3 | M78: =Données!$E78*H$4 -> 2343.45 | N78: =Données!$F78*B$4 -> 2561.05 | O78: =Données!$F78*C$4 -> 2449.7 | P78: =Données!$F78*D$4 -> 2338.35 | Q78: =Données!$F78*E$4 -> 2227 | R78: =Données!$F78*F$4 -> 2115.65 | S78: =Données!$F78*G$4 -> 2004.3 | T78: =Données!$F78*H$4 -> 1892.95
B79: 1400 | C79: Nivelles | D79: Nivelles | E79: 2542 | F79: 2142 | G79: =Données!$E79*B$4 -> 2923.3 | H79: =Données!$E79*C$4 -> 2796.2 | I79: =Données!$E79*D$4 -> 2669.1 | J79: =Données!$E79*E$4 -> 2542 | K79: =Données!$E79*F$4 -> 2414.9 | L79: =Données!$E79*G$4 -> 2287.8 | M79: =Données!$E79*H$4 -> 2160.7 | N79: =Données!$F79*B$4 -> 2463.3 | O79: =Données!$F79*C$4 -> 2356.2 | P79: =Données!$F79*D$4 -> 2249.1 | Q79: =Données!$F79*E$4 -> 2142 | R79: =Données!$F79*F$4 -> 2034.9 | S79: =Données!$F79*G$4 -> 1927.8 | T79: =Données!$F79*H$4 -> 1820.7
B80: 1400 | C80: Monstreux | D80: Nivelles | E80: 2542 | F80: 2142 | G80: =Données!$E80*B$4 -> 2923.3 | H80: =Données!$E80*C$4 -> 2796.2 | I80: =Données!$E80*D$4 -> 2669.1 | J80: =Données!$E80*E$4 -> 2542 | K80: =Données!$E80*F$4 -> 2414.9 | L80: =Données!$E80*G$4 -> 2287.8 | M80: =Données!$E80*H$4 -> 2160.7 | N80: =Données!$F80*B$4 -> 2463.3 | O80: =Données!$F80*C$4 -> 2356.2 | P80: =Données!$F80*D$4 -> 2249.1 | Q80: =Données!$F80*E$4 -> 2142 | R80: =Données!$F80*F$4 -> 2034.9 | S80: =Données!$F80*G$4 -> 1927.8 | T80: =Données!$F80*H$4 -> 1820.7
B81: 1401 | C81: Baulers | D81: Nivelles | E81: 2542 | F81: 2142 | G81: =Données!$E81*B$4 -> 2923.3 | H81: =Données!$E81*C$4 -> 2796.2 | I81: =Données!$E81*D$4 -> 2669.1 | J81: =Données!$E81*E$4 -> 2542 | K81: =Données!$E81*F$4 -> 2414.9 | L81: =Données!$E81*G$4 -> 2287.8 | M81: =Données!$E81*H$4 -> 2160.7 | N81: =Données!$F81*B$4 -> 2463.3 | O81: =Données!$F81*C$4 -> 2356.2 | P81: =Données!$F81*D$4 -> 2249.1 | Q81: =Données!$F81*E$4 -> 2142 | R81: =Données!$F81*F$4 -> 2034.9 | S81: =Données!$F81*G$4 -> 1927.8 | T81: =Données!$F81*H$4 -> 1820.7
B82: 1402 | C82: Thines | D82: Nivelles | E82: 2542 | F82: 2142 | G82: =Données!$E82*B$4 -> 2923.3 | H82: =Données!$E82*C$4 -> 2796.2 | I82: =Données!$E82*D$4 -> 2669.1 | J82: =Données!$E82*E$4 -> 2542 | K82: =Données!$E82*F$4 -> 2414.9 | L82: =Données!$E82*G$4 -> 2287.8 | M82: =Données!$E82*H$4 -> 2160.7 | N82: =Données!$F82*B$4 -> 2463.3 | O82: =Données!$F82*C$4 -> 2356.2 | P82: =Données!$F82*D$4 -> 2249.1 | Q82: =Données!$F82*E$4 -> 2142 | R82: =Données!$F82*F$4 -> 2034.9 | S82: =Données!$F82*G$4 -> 1927.8 | T82: =Données!$F82*H$4 -> 1820.7
B83: 1404 | C83: Bornival | D83: Nivelles | E83: 2542 | F83: 2142 | G83: =Données!$E83*B$4 -> 2923.3 | H83: =Données!$E83*C$4 -> 2796.2 | I83: =Données!$E83*D$4 -> 2669.1 | J83: =Données!$E83*E$4 -> 2542 | K83: =Données!$E83*F$4 -> 2414.9 | L83: =Données!$E83*G$4 -> 2287.8 | M83: =Données!$E83*H$4 -> 2160.7 | N83: =Données!$F83*B$4 -> 2463.3 | O83: =Données!$F83*C$4 -> 2356.2 | P83: =Données!$F83*D$4 -> 2249.1 | Q83: =Données!$F83*E$4 -> 2142 | R83: =Données!$F83*F$4 -> 2034.9 | S83: =Données!$F83*G$4 -> 1927.8 | T83: =Données!$F83*H$4 -> 1820.7
B84: 1410 | C84: Waterloo | D84: Waterloo | E84: 3425 | F84: 2802 | G84: =Données!$E84*B$4 -> 3938.75 | H84: =Données!$E84*C$4 -> 3767.5 | I84: =Données!$E84*D$4 -> 3596.25 | J84: =Données!$E84*E$4 -> 3425 | K84: =Données!$E84*F$4 -> 3253.75 | L84: =Données!$E84*G$4 -> 3082.5 | M84: =Données!$E84*H$4 -> 2911.25 | N84: =Données!$F84*B$4 -> 3222.3 | O84: =Données!$F84*C$4 -> 3082.2 | P84: =Données!$F84*D$4 -> 2942.1 | Q84: =Données!$F84*E$4 -> 2802 | R84: =Données!$F84*F$4 -> 2661.9 | S84: =Données!$F84*G$4 -> 2521.8 | T84: =Données!$F84*H$4 -> 2381.7
B85: 1420 | C85: Braine-L'alleud | D85: Braine-L'alleud | E85: 2768 | F85: 2436 | G85: =Données!$E85*B$4 -> 3183.2 | H85: =Données!$E85*C$4 -> 3044.8 | I85: =Données!$E85*D$4 -> 2906.4 | J85: =Données!$E85*E$4 -> 2768 | K85: =Données!$E85*F$4 -> 2629.6 | L85: =Données!$E85*G$4 -> 2491.2 | M85: =Données!$E85*H$4 -> 2352.8 | N85: =Données!$F85*B$4 -> 2801.4 | O85: =Données!$F85*C$4 -> 2679.6 | P85: =Données!$F85*D$4 -> 2557.8 | Q85: =Données!$F85*E$4 -> 2436 | R85: =Données!$F85*F$4 -> 2314.2 | S85: =Données!$F85*G$4 -> 2192.4 | T85: =Données!$F85*H$4 -> 2070.6
B86: 1421 | C86: Ophain-Bois-Seigneur-Isaac | D86: Braine-L'alleud | E86: 2768 | F86: 2436 | G86: =Données!$E86*B$4 -> 3183.2 | H86: =Données!$E86*C$4 -> 3044.8 | I86: =Données!$E86*D$4 -> 2906.4 | J86: =Données!$E86*E$4 -> 2768 | K86: =Données!$E86*F$4 -> 2629.6 | L86: =Données!$E86*G$4 -> 2491.2 | M86: =Données!$E86*H$4 -> 2352.8 | N86: =Données!$F86*B$4 -> 2801.4 | O86: =Données!$F86*C$4 -> 2679.6 | P86: =Données!$F86*D$4 -> 2557.8 | Q86: =Données!$F86*E$4 -> 2436 | R86: =Données!$F86*F$4 -> 2314.2 | S86: =Données!$F86*G$4 -> 2192.4 | T86: =Données!$F86*H$4 -> 2070.6
B87: 1428 | C87: Lillois-Witterzée | D87: Braine-L'alleud | E87: 2768 | F87: 2436 | G87: =Données!$E87*B$4 -> 3183.2 | H87: =Données!$E87*C$4 -> 3044.8 | I87: =Données!$E87*D$4 -> 2906.4 | J87: =Données!$E87*E$4 -> 2768 | K87: =Données!$E87*F$4 -> 2629.6 | L87: =Données!$E87*G$4 -> 2491.2 | M87: =Données!$E87*H$4 -> 2352.8 | N87: =Données!$F87*B$4 -> 2801.4 | O87: =Données!$F87*C$4 -> 2679.6 | P87: =Données!$F87*D$4 -> 2557.8 | Q87: =Données!$F87*E$4 -> 2436 | R87: =Données!$F87*F$4 -> 2314.2 | S87: =Données!$F87*G$4 -> 2192.4 | T87: =Données!$F87*H$4 -> 2070.6
B88: 1430 | C88: Rebecq-Rognon | D88: Rebecq | E88: 2034 | F88: 1835 | G88: =Données!$E88*B$4 -> 2339.1 | H88: =Données!$E88*C$4 -> 2237.4 | I88: =Données!$E88*D$4 -> 2135.7 | J88: =Données!$E88*E$4 -> 2034 | K88: =Données!$E88*F$4 -> 1932.3 | L88: =Données!$E88*G$4 -> 1830.6 | M88: =Données!$E88*H$4 -> 1728.9 | N88: =Données!$F88*B$4 -> 2110.25 | O88: =Données!$F88*C$4 -> 2018.5 | P88: =Données!$F88*D$4 -> 1926.75 | Q88: =Données!$F88*E$4 -> 1835 | R88: =Données!$F88*F$4 -> 1743.25 | S88: =Données!$F88*G$4 -> 1651.5 | T88: =Données!$F88*H$4 -> 1559.75
B89: 1430 | C89: Rebecq | D89: Rebecq | E89: 2034 | F89: 1835 | G89: =Données!$E89*B$4 -> 2339.1 | H89: =Données!$E89*C$4 -> 2237.4 | I89: =Données!$E89*D$4 -> 2135.7 | J89: =Données!$E89*E$4 -> 2034 | K89: =Données!$E89*F$4 -> 1932.3 | L89: =Données!$E89*G$4 -> 1830.6 | M89: =Données!$E89*H$4 -> 1728.9 | N89: =Données!$F89*B$4 -> 2110.25 | O89: =Données!$F89*C$4 -> 2018.5 | P89: =Données!$F89*D$4 -> 1926.75 | Q89: =Données!$F89*E$4 -> 1835 | R89: =Données!$F89*F$4 -> 1743.25 | S89: =Données!$F89*G$4 -> 1651.5 | T89: =Données!$F89*H$4 -> 1559.75
B90: 1430 | C90: Bierghes | D90: Rebecq | E90: 2034 | F90: 1835 | G90: =Données!$E90*B$4 -> 2339.1 | H90: =Données!$E90*C$4 -> 2237.4 | I90: =Données!$E90*D$4 -> 2135.7 | J90: =Données!$E90*E$4 -> 2034 | K90: =Données!$E90*F$4 -> 1932.3 | L90: =Données!$E90*G$4 -> 1830.6 | M90: =Données!$E90*H$4 -> 1728.9 | N90: =Données!$F90*B$4 -> 2110.25 | O90: =Données!$F90*C$4 -> 2018.5 | P90: =Données!$F90*D$4 -> 1926.75 | Q90: =Données!$F90*E$4 -> 1835 | R90: =Données!$F90*F$4 -> 1743.25 | S90: =Données!$F90*G$4 -> 1651.5 | T90: =Données!$F90*H$4 -> 1559.75
B91: 1430 | C91: Quenast | D91: Rebecq | E91: 2034 | F91: 1835 | G91: =Données!$E91*B$4 -> 2339.1 | H91: =Données!$E91*C$4 -> 2237.4 | I91: =Données!$E91*D$4 -> 2135.7 | J91: =Données!$E91*E$4 -> 2034 | K91: =Données!$E91*F$4 -> 1932.3 | L91: =Données!$E91*G$4 -> 1830.6 | M91: =Données!$E91*H$4 -> 1728.9 | N91: =Données!$F91*B$4 -> 2110.25 | O91: =Données!$F91*C$4 -> 2018.5 | P91: =Données!$F91*D$4 -> 1926.75 | Q91: =Données!$F91*E$4 -> 1835 | R91: =Données!$F91*F$4 -> 1743.25 | S91: =Données!$F91*G$4 -> 1651.5 | T91: =Données!$F91*H$4 -> 1559.75
B92: 1435 | C92: Corbais | D92: Mont-Saint-Guibert | E92: 2917 | F92: 2132 | G92: =Données!$E92*B$4 -> 3354.55 | H92: =Données!$E92*C$4 -> 3208.7 | I92: =Données!$E92*D$4 -> 3062.85 | J92: =Données!$E92*E$4 -> 2917 | K92: =Données!$E92*F$4 -> 2771.15 | L92: =Données!$E92*G$4 -> 2625.3 | M92: =Données!$E92*H$4 -> 2479.45 | N92: =Données!$F92*B$4 -> 2451.8 | O92: =Données!$F92*C$4 -> 2345.2 | P92: =Données!$F92*D$4 -> 2238.6 | Q92: =Données!$F92*E$4 -> 2132 | R92: =Données!$F92*F$4 -> 2025.4 | S92: =Données!$F92*G$4 -> 1918.8 | T92: =Données!$F92*H$4 -> 1812.2
B93: 1435 | C93: Hévillers | D93: Mont-Saint-Guibert | E93: 2917 | F93: 2132 | G93: =Données!$E93*B$4 -> 3354.55 | H93: =Données!$E93*C$4 -> 3208.7 | I93: =Données!$E93*D$4 -> 3062.85 | J93: =Données!$E93*E$4 -> 2917 | K93: =Données!$E93*F$4 -> 2771.15 | L93: =Données!$E93*G$4 -> 2625.3 | M93: =Données!$E93*H$4 -> 2479.45 | N93: =Données!$F93*B$4 -> 2451.8 | O93: =Données!$F93*C$4 -> 2345.2 | P93: =Données!$F93*D$4 -> 2238.6 | Q93: =Données!$F93*E$4 -> 2132 | R93: =Données!$F93*F$4 -> 2025.4 | S93: =Données!$F93*G$4 -> 1918.8 | T93: =Données!$F93*H$4 -> 1812.2
B94: 1435 | C94: Mont-Saint-Guibert | D94: Mont-Saint-Guibert | E94: 2917 | F94: 2132 | G94: =Données!$E94*B$4 -> 3354.55 | H94: =Données!$E94*C$4 -> 3208.7 | I94: =Données!$E94*D$4 -> 3062.85 | J94: =Données!$E94*E$4 -> 2917 | K94: =Données!$E94*F$4 -> 2771.15 | L94: =Données!$E94*G$4 -> 2625.3 | M94: =Données!$E94*H$4 -> 2479.45 | N94: =Données!$F94*B$4 -> 2451.8 | O94: =Données!$F94*C$4 -> 2345.2 | P94: =Données!$F94*D$4 -> 2238.6 | Q94: =Données!$F94*E$4 -> 2132 | R94: =Données!$F94*F$4 -> 2025.4 | S94: =Données!$F94*G$4 -> 1918.8 | T94: =Données!$F94*H$4 -> 1812.2
B95: 1440 | C95: Wauthier-Braine | D95: Braine-Le-Château | E95: 2537 | F95: 2179 | G95: =Données!$E95*B$4 -> 2917.55 | H95: =Données!$E95*C$4 -> 2790.7 | I95: =Données!$E95*D$4 -> 2663.85 | J95: =Données!$E95*E$4 -> 2537 | K95: =Données!$E95*F$4 -> 2410.15 | L95: =Données!$E95*G$4 -> 2283.3 | M95: =Données!$E95*H$4 -> 2156.45 | N95: =Données!$F95*B$4 -> 2505.85 | O95: =Données!$F95*C$4 -> 2396.9 | P95: =Données!$F95*D$4 -> 2287.95 | Q95: =Données!$F95*E$4 -> 2179 | R95: =Données!$F95*F$4 -> 2070.05 | S95: =Données!$F95*G$4 -> 1961.1 | T95: =Données!$F95*H$4 -> 1852.15
B96: 1440 | C96: Braine-Le-Château | D96: Braine-Le-Château | E96: 2537 | F96: 2179 | G96: =Données!$E96*B$4 -> 2917.55 | H96: =Données!$E96*C$4 -> 2790.7 | I96: =Données!$E96*D$4 -> 2663.85 | J96: =Données!$E96*E$4 -> 2537 | K96: =Données!$E96*F$4 -> 2410.15 | L96: =Données!$E96*G$4 -> 2283.3 | M96: =Données!$E96*H$4 -> 2156.45 | N96: =Données!$F96*B$4 -> 2505.85 | O96: =Données!$F96*C$4 -> 2396.9 | P96: =Données!$F96*D$4 -> 2287.95 | Q96: =Données!$F96*E$4 -> 2179 | R96: =Données!$F96*F$4 -> 2070.05 | S96: =Données!$F96*G$4 -> 1961.1 | T96: =Données!$F96*H$4 -> 1852.15
B97: 1450 | C97: Cortil-Noirmont | D97: Chastre | E97: 2156 | F97: 2036 | G97: =Données!$E97*B$4 -> 2479.4 | H97: =Données!$E97*C$4 -> 2371.6 | I97: =Données!$E97*D$4 -> 2263.8 | J97: =Données!$E97*E$4 -> 2156 | K97: =Données!$E97*F$4 -> 2048.2 | L97: =Données!$E97*G$4 -> 1940.4 | M97: =Données!$E97*H$4 -> 1832.6 | N97: =Données!$F97*B$4 -> 2341.4 | O97: =Données!$F97*C$4 -> 2239.6 | P97: =Données!$F97*D$4 -> 2137.8 | Q97: =Données!$F97*E$4 -> 2036 | R97: =Données!$F97*F$4 -> 1934.2 | S97: =Données!$F97*G$4 -> 1832.4 | T97: =Données!$F97*H$4 -> 1730.6
B98: 1450 | C98: Gentinnes | D98: Chastre | E98: 2156 | F98: 2036 | G98: =Données!$E98*B$4 -> 2479.4 | H98: =Données!$E98*C$4 -> 2371.6 | I98: =Données!$E98*D$4 -> 2263.8 | J98: =Données!$E98*E$4 -> 2156 | K98: =Données!$E98*F$4 -> 2048.2 | L98: =Données!$E98*G$4 -> 1940.4 | M98: =Données!$E98*H$4 -> 1832.6 | N98: =Données!$F98*B$4 -> 2341.4 | O98: =Données!$F98*C$4 -> 2239.6 | P98: =Données!$F98*D$4 -> 2137.8 | Q98: =Données!$F98*E$4 -> 2036 | R98: =Données!$F98*F$4 -> 1934.2 | S98: =Données!$F98*G$4 -> 1832.4 | T98: =Données!$F98*H$4 -> 1730.6
B99: 1450 | C99: Chastre | D99: Chastre | E99: 2156 | F99: 2036 | G99: =Données!$E99*B$4 -> 2479.4 | H99: =Données!$E99*C$4 -> 2371.6 | I99: =Données!$E99*D$4 -> 2263.8 | J99: =Données!$E99*E$4 -> 2156 | K99: =Données!$E99*F$4 -> 2048.2 | L99: =Données!$E99*G$4 -> 1940.4 | M99: =Données!$E99*H$4 -> 1832.6 | N99: =Données!$F99*B$4 -> 2341.4 | O99: =Données!$F99*C$4 -> 2239.6 | P99: =Données!$F99*D$4 -> 2137.8 | Q99: =Données!$F99*E$4 -> 2036 | R99: =Données!$F99*F$4 -> 1934.2 | S99: =Données!$F99*G$4 -> 1832.4 | T99: =Données!$F99*H$4 -> 1730.6
B100: 1450 | C100: Chastre-Villeroux-Blanmont | D100: Chastre | E100: 2156 | F100: 2036 | G100: =Données!$E100*B$4 -> 2479.4 | H100: =Données!$E100*C$4 -> 2371.6 | I100: =Données!$E100*D$4 -> 2263.8 | J100: =Données!$E100*E$4 -> 2156 | K100: =Données!$E100*F$4 -> 2048.2 | L100: =Données!$E100*G$4 -> 1940.4 | M100: =Données!$E100*H$4 -> 1832.6 | N100: =Données!$F100*B$4 -> 2341.4 | O100: =Données!$F100*C$4 -> 2239.6 | P100: =Données!$F100*D$4 -> 2137.8 | Q100: =Données!$F100*E$4 -> 2036 | R100: =Données!$F100*F$4 -> 1934.2 | S100: =Données!$F100*G$4 -> 1832.4 | T100: =Données!$F100*H$4 -> 1730.6
B101: 1450 | C101: Saint-Géry | D101: Chastre | E101: 2156 | F101: 2036 | G101: =Données!$E101*B$4 -> 2479.4 | H101: =Données!$E101*C$4 -> 2371.6 | I101: =Données!$E101*D$4 -> 2263.8 | J101: =Données!$E101*E$4 -> 2156 | K101: =Données!$E101*F$4 -> 2048.2 | L101: =Données!$E101*G$4 -> 1940.4 | M101: =Données!$E101*H$4 -> 1832.6 | N101: =Données!$F101*B$4 -> 2341.4 | O101: =Données!$F101*C$4 -> 2239.6 | P101: =Données!$F101*D$4 -> 2137.8 | Q101: =Données!$F101*E$4 -> 2036 | R101: =Données!$F101*F$4 -> 1934.2 | S101: =Données!$F101*G$4 -> 1832.4 | T101: =Données!$F101*H$4 -> 1730.6
B102: 1457 | C102: Walhain | D102: Walhain | E102: 2655 | F102: 2062 | G102: =Données!$E102*B$4 -> 3053.25 | H102: =Données!$E102*C$4 -> 2920.5 | I102: =Données!$E102*D$4 -> 2787.75 | J102: =Données!$E102*E$4 -> 2655 | K102: =Données!$E102*F$4 -> 2522.25 | L102: =Données!$E102*G$4 -> 2389.5 | M102: =Données!$E102*H$4 -> 2256.75 | N102: =Données!$F102*B$4 -> 2371.3 | O102: =Données!$F102*C$4 -> 2268.2 | P102: =Données!$F102*D$4 -> 2165.1 | Q102: =Données!$F102*E$4 -> 2062 | R102: =Données!$F102*F$4 -> 1958.9 | S102: =Données!$F102*G$4 -> 1855.8 | T102: =Données!$F102*H$4 -> 1752.7
B103: 1457 | C103: Nil-Saint-Vincent-Saint-Martin | D103: Walhain | E103: 2655 | F103: 2062 | G103: =Données!$E103*B$4 -> 3053.25 | H103: =Données!$E103*C$4 -> 2920.5 | I103: =Données!$E103*D$4 -> 2787.75 | J103: =Données!$E103*E$4 -> 2655 | K103: =Données!$E103*F$4 -> 2522.25 | L103: =Données!$E103*G$4 -> 2389.5 | M103: =Données!$E103*H$4 -> 2256.75 | N103: =Données!$F103*B$4 -> 2371.3 | O103: =Données!$F103*C$4 -> 2268.2 | P103: =Données!$F103*D$4 -> 2165.1 | Q103: =Données!$F103*E$4 -> 2062 | R103: =Données!$F103*F$4 -> 1958.9 | S103: =Données!$F103*G$4 -> 1855.8 | T103: =Données!$F103*H$4 -> 1752.7
B104: 1457 | C104: Tourinnes-Saint-Lambert | D104: Walhain | E104: 2655 | F104: 2062 | G104: =Données!$E104*B$4 -> 3053.25 | H104: =Données!$E104*C$4 -> 2920.5 | I104: =Données!$E104*D$4 -> 2787.75 | J104: =Données!$E104*E$4 -> 2655 | K104: =Données!$E104*F$4 -> 2522.25 | L104: =Données!$E104*G$4 -> 2389.5 | M104: =Données!$E104*H$4 -> 2256.75 | N104: =Données!$F104*B$4 -> 2371.3 | O104: =Données!$F104*C$4 -> 2268.2 | P104: =Données!$F104*D$4 -> 2165.1 | Q104: =Données!$F104*E$4 -> 2062 | R104: =Données!$F104*F$4 -> 1958.9 | S104: =Données!$F104*G$4 -> 1855.8 | T104: =Données!$F104*H$4 -> 1752.7
B105: 1457 | C105: Walhain-Saint-Paul | D105: Walhain | E105: 2655 | F105: 2062 | G105: =Données!$E105*B$4 -> 3053.25 | H105: =Données!$E105*C$4 -> 2920.5 | I105: =Données!$E105*D$4 -> 2787.75 | J105: =Données!$E105*E$4 -> 2655 | K105: =Données!$E105*F$4 -> 2522.25 | L105: =Données!$E105*G$4 -> 2389.5 | M105: =Données!$E105*H$4 -> 2256.75 | N105: =Données!$F105*B$4 -> 2371.3 | O105: =Données!$F105*C$4 -> 2268.2 | P105: =Données!$F105*D$4 -> 2165.1 | Q105: =Données!$F105*E$4 -> 2062 | R105: =Données!$F105*F$4 -> 1958.9 | S105: =Données!$F105*G$4 -> 1855.8 | T105: =Données!$F105*H$4 -> 1752.7
B106: 1460 | C106: Ittre | D106: Ittre | E106: 2383 | F106: 1964 | G106: =Données!$E106*B$4 -> 2740.45 | H106: =Données!$E106*C$4 -> 2621.3 | I106: =Données!$E106*D$4 -> 2502.15 | J106: =Données!$E106*E$4 -> 2383 | K106: =Données!$E106*F$4 -> 2263.85 | L106: =Données!$E106*G$4 -> 2144.7 | M106: =Données!$E106*H$4 -> 2025.55 | N106: =Données!$F106*B$4 -> 2258.6 | O106: =Données!$F106*C$4 -> 2160.4 | P106: =Données!$F106*D$4 -> 2062.2 | Q106: =Données!$F106*E$4 -> 1964 | R106: =Données!$F106*F$4 -> 1865.8 | S106: =Données!$F106*G$4 -> 1767.6 | T106: =Données!$F106*H$4 -> 1669.4
B107: 1460 | C107: Virginal-Samme | D107: Ittre | E107: 2383 | F107: 1964 | G107: =Données!$E107*B$4 -> 2740.45 | H107: =Données!$E107*C$4 -> 2621.3 | I107: =Données!$E107*D$4 -> 2502.15 | J107: =Données!$E107*E$4 -> 2383 | K107: =Données!$E107*F$4 -> 2263.85 | L107: =Données!$E107*G$4 -> 2144.7 | M107: =Données!$E107*H$4 -> 2025.55 | N107: =Données!$F107*B$4 -> 2258.6 | O107: =Données!$F107*C$4 -> 2160.4 | P107: =Données!$F107*D$4 -> 2062.2 | Q107: =Données!$F107*E$4 -> 1964 | R107: =Données!$F107*F$4 -> 1865.8 | S107: =Données!$F107*G$4 -> 1767.6 | T107: =Données!$F107*H$4 -> 1669.4
B108: 1461 | C108: Haut-Ittre | D108: Ittre | E108: 2383 | F108: 1964 | G108: =Données!$E108*B$4 -> 2740.45 | H108: =Données!$E108*C$4 -> 2621.3 | I108: =Données!$E108*D$4 -> 2502.15 | J108: =Données!$E108*E$4 -> 2383 | K108: =Données!$E108*F$4 -> 2263.85 | L108: =Données!$E108*G$4 -> 2144.7 | M108: =Données!$E108*H$4 -> 2025.55 | N108: =Données!$F108*B$4 -> 2258.6 | O108: =Données!$F108*C$4 -> 2160.4 | P108: =Données!$F108*D$4 -> 2062.2 | Q108: =Données!$F108*E$4 -> 1964 | R108: =Données!$F108*F$4 -> 1865.8 | S108: =Données!$F108*G$4 -> 1767.6 | T108: =Données!$F108*H$4 -> 1669.4
B109: 1470 | C109: Baisy-Thy | D109: Genappe | E109: 2416 | F109: 2097 | G109: =Données!$E109*B$4 -> 2778.4 | H109: =Données!$E109*C$4 -> 2657.6 | I109: =Données!$E109*D$4 -> 2536.8 | J109: =Données!$E109*E$4 -> 2416 | K109: =Données!$E109*F$4 -> 2295.2 | L109: =Données!$E109*G$4 -> 2174.4 | M109: =Données!$E109*H$4 -> 2053.6 | N109: =Données!$F109*B$4 -> 2411.55 | O109: =Données!$F109*C$4 -> 2306.7 | P109: =Données!$F109*D$4 -> 2201.85 | Q109: =Données!$F109*E$4 -> 2097 | R109: =Données!$F109*F$4 -> 1992.15 | S109: =Données!$F109*G$4 -> 1887.3 | T109: =Données!$F109*H$4 -> 1782.45
B110: 1470 | C110: Genappe | D110: Genappe | E110: 2416 | F110: 2097 | G110: =Données!$E110*B$4 -> 2778.4 | H110: =Données!$E110*C$4 -> 2657.6 | I110: =Données!$E110*D$4 -> 2536.8 | J110: =Données!$E110*E$4 -> 2416 | K110: =Données!$E110*F$4 -> 2295.2 | L110: =Données!$E110*G$4 -> 2174.4 | M110: =Données!$E110*H$4 -> 2053.6 | N110: =Données!$F110*B$4 -> 2411.55 | O110: =Données!$F110*C$4 -> 2306.7 | P110: =Données!$F110*D$4 -> 2201.85 | Q110: =Données!$F110*E$4 -> 2097 | R110: =Données!$F110*F$4 -> 1992.15 | S110: =Données!$F110*G$4 -> 1887.3 | T110: =Données!$F110*H$4 -> 1782.45
B111: 1470 | C111: Bousval | D111: Genappe | E111: 2416 | F111: 2097 | G111: =Données!$E111*B$4 -> 2778.4 | H111: =Données!$E111*C$4 -> 2657.6 | I111: =Données!$E111*D$4 -> 2536.8 | J111: =Données!$E111*E$4 -> 2416 | K111: =Données!$E111*F$4 -> 2295.2 | L111: =Données!$E111*G$4 -> 2174.4 | M111: =Données!$E111*H$4 -> 2053.6 | N111: =Données!$F111*B$4 -> 2411.55 | O111: =Données!$F111*C$4 -> 2306.7 | P111: =Données!$F111*D$4 -> 2201.85 | Q111: =Données!$F111*E$4 -> 2097 | R111: =Données!$F111*F$4 -> 1992.15 | S111: =Données!$F111*G$4 -> 1887.3 | T111: =Données!$F111*H$4 -> 1782.45
B112: 1471 | C112: Loupoigne | D112: Genappe | E112: 2416 | F112: 2097 | G112: =Données!$E112*B$4 -> 2778.4 | H112: =Données!$E112*C$4 -> 2657.6 | I112: =Données!$E112*D$4 -> 2536.8 | J112: =Données!$E112*E$4 -> 2416 | K112: =Données!$E112*F$4 -> 2295.2 | L112: =Données!$E112*G$4 -> 2174.4 | M112: =Données!$E112*H$4 -> 2053.6 | N112: =Données!$F112*B$4 -> 2411.55 | O112: =Données!$F112*C$4 -> 2306.7 | P112: =Données!$F112*D$4 -> 2201.85 | Q112: =Données!$F112*E$4 -> 2097 | R112: =Données!$F112*F$4 -> 1992.15 | S112: =Données!$F112*G$4 -> 1887.3 | T112: =Données!$F112*H$4 -> 1782.45
B113: 1472 | C113: Vieux-Genappe | D113: Genappe | E113: 2416 | F113: 2097 | G113: =Données!$E113*B$4 -> 2778.4 | H113: =Données!$E113*C$4 -> 2657.6 | I113: =Données!$E113*D$4 -> 2536.8 | J113: =Données!$E113*E$4 -> 2416 | K113: =Données!$E113*F$4 -> 2295.2 | L113: =Données!$E113*G$4 -> 2174.4 | M113: =Données!$E113*H$4 -> 2053.6 | N113: =Données!$F113*B$4 -> 2411.55 | O113: =Données!$F113*C$4 -> 2306.7 | P113: =Données!$F113*D$4 -> 2201.85 | Q113: =Données!$F113*E$4 -> 2097 | R113: =Données!$F113*F$4 -> 1992.15 | S113: =Données!$F113*G$4 -> 1887.3 | T113: =Données!$F113*H$4 -> 1782.45
B114: 1473 | C114: Glabais | D114: Genappe | E114: 2416 | F114: 2097 | G114: =Données!$E114*B$4 -> 2778.4 | H114: =Données!$E114*C$4 -> 2657.6 | I114: =Données!$E114*D$4 -> 2536.8 | J114: =Données!$E114*E$4 -> 2416 | K114: =Données!$E114*F$4 -> 2295.2 | L114: =Données!$E114*G$4 -> 2174.4 | M114: =Données!$E114*H$4 -> 2053.6 | N114: =Données!$F114*B$4 -> 2411.55 | O114: =Données!$F114*C$4 -> 2306.7 | P114: =Données!$F114*D$4 -> 2201.85 | Q114: =Données!$F114*E$4 -> 2097 | R114: =Données!$F114*F$4 -> 1992.15 | S114: =Données!$F114*G$4 -> 1887.3 | T114: =Données!$F114*H$4 -> 1782.45
B115: 1474 | C115: Ways | D115: Genappe | E115: 2416 | F115: 2097 | G115: =Données!$E115*B$4 -> 2778.4 | H115: =Données!$E115*C$4 -> 2657.6 | I115: =Données!$E115*D$4 -> 2536.8 | J115: =Données!$E115*E$4 -> 2416 | K115: =Données!$E115*F$4 -> 2295.2 | L115: =Données!$E115*G$4 -> 2174.4 | M115: =Données!$E115*H$4 -> 2053.6 | N115: =Données!$F115*B$4 -> 2411.55 | O115: =Données!$F115*C$4 -> 2306.7 | P115: =Données!$F115*D$4 -> 2201.85 | Q115: =Données!$F115*E$4 -> 2097 | R115: =Données!$F115*F$4 -> 1992.15 | S115: =Données!$F115*G$4 -> 1887.3 | T115: =Données!$F115*H$4 -> 1782.45
B116: 1476 | C116: Houtain-Le-Val | D116: Genappe | E116: 2416 | F116: 2097 | G116: =Données!$E116*B$4 -> 2778.4 | H116: =Données!$E116*C$4 -> 2657.6 | I116: =Données!$E116*D$4 -> 2536.8 | J116: =Données!$E116*E$4 -> 2416 | K116: =Données!$E116*F$4 -> 2295.2 | L116: =Données!$E116*G$4 -> 2174.4 | M116: =Données!$E116*H$4 -> 2053.6 | N116: =Données!$F116*B$4 -> 2411.55 | O116: =Données!$F116*C$4 -> 2306.7 | P116: =Données!$F116*D$4 -> 2201.85 | Q116: =Données!$F116*E$4 -> 2097 | R116: =Données!$F116*F$4 -> 1992.15 | S116: =Données!$F116*G$4 -> 1887.3 | T116: =Données!$F116*H$4 -> 1782.45
B117: 1480 | C117: Oisquercq | D117: Tubize | E117: 2252 | F117: 1946 | G117: =Données!$E117*B$4 -> 2589.8 | H117: =Données!$E117*C$4 -> 2477.2 | I117: =Données!$E117*D$4 -> 2364.6 | J117: =Données!$E117*E$4 -> 2252 | K117: =Données!$E117*F$4 -> 2139.4 | L117: =Données!$E117*G$4 -> 2026.8 | M117: =Données!$E117*H$4 -> 1914.2 | N117: =Données!$F117*B$4 -> 2237.9 | O117: =Données!$F117*C$4 -> 2140.6 | P117: =Données!$F117*D$4 -> 2043.3 | Q117: =Données!$F117*E$4 -> 1946 | R117: =Données!$F117*F$4 -> 1848.7 | S117: =Données!$F117*G$4 -> 1751.4 | T117: =Données!$F117*H$4 -> 1654.1
B118: 1480 | C118: Tubize | D118: Tubize | E118: 2252 | F118: 1946 | G118: =Données!$E118*B$4 -> 2589.8 | H118: =Données!$E118*C$4 -> 2477.2 | I118: =Données!$E118*D$4 -> 2364.6 | J118: =Données!$E118*E$4 -> 2252 | K118: =Données!$E118*F$4 -> 2139.4 | L118: =Données!$E118*G$4 -> 2026.8 | M118: =Données!$E118*H$4 -> 1914.2 | N118: =Données!$F118*B$4 -> 2237.9 | O118: =Données!$F118*C$4 -> 2140.6 | P118: =Données!$F118*D$4 -> 2043.3 | Q118: =Données!$F118*E$4 -> 1946 | R118: =Données!$F118*F$4 -> 1848.7 | S118: =Données!$F118*G$4 -> 1751.4 | T118: =Données!$F118*H$4 -> 1654.1
B119: 1480 | C119: Saintes | D119: Tubize | E119: 2252 | F119: 1946 | G119: =Données!$E119*B$4 -> 2589.8 | H119: =Données!$E119*C$4 -> 2477.2 | I119: =Données!$E119*D$4 -> 2364.6 | J119: =Données!$E119*E$4 -> 2252 | K119: =Données!$E119*F$4 -> 2139.4 | L119: =Données!$E119*G$4 -> 2026.8 | M119: =Données!$E119*H$4 -> 1914.2 | N119: =Données!$F119*B$4 -> 2237.9 | O119: =Données!$F119*C$4 -> 2140.6 | P119: =Données!$F119*D$4 -> 2043.3 | Q119: =Données!$F119*E$4 -> 1946 | R119: =Données!$F119*F$4 -> 1848.7 | S119: =Données!$F119*G$4 -> 1751.4 | T119: =Données!$F119*H$4 -> 1654.1
B120: 1480 | C120: Clabecq | D120: Tubize | E120: 2252 | F120: 1946 | G120: =Données!$E120*B$4 -> 2589.8 | H120: =Données!$E120*C$4 -> 2477.2 | I120: =Données!$E120*D$4 -> 2364.6 | J120: =Données!$E120*E$4 -> 2252 | K120: =Données!$E120*F$4 -> 2139.4 | L120: =Données!$E120*G$4 -> 2026.8 | M120: =Données!$E120*H$4 -> 1914.2 | N120: =Données!$F120*B$4 -> 2237.9 | O120: =Données!$F120*C$4 -> 2140.6 | P120: =Données!$F120*D$4 -> 2043.3 | Q120: =Données!$F120*E$4 -> 1946 | R120: =Données!$F120*F$4 -> 1848.7 | S120: =Données!$F120*G$4 -> 1751.4 | T120: =Données!$F120*H$4 -> 1654.1
B121: 1490 | C121: Court-Saint-Etienne | D121: Court-Saint-Etienne | E121: 2912 | F121: 2082 | G121: =Données!$E121*B$4 -> 3348.8 | H121: =Données!$E121*C$4 -> 3203.2 | I121: =Données!$E121*D$4 -> 3057.6 | J121: =Données!$E121*E$4 -> 2912 | K121: =Données!$E121*F$4 -> 2766.4 | L121: =Données!$E121*G$4 -> 2620.8 | M121: =Données!$E121*H$4 -> 2475.2 | N121: =Données!$F121*B$4 -> 2394.3 | O121: =Données!$F121*C$4 -> 2290.2 | P121: =Données!$F121*D$4 -> 2186.1 | Q121: =Données!$F121*E$4 -> 2082 | R121: =Données!$F121*F$4 -> 1977.9 | S121: =Données!$F121*G$4 -> 1873.8 | T121: =Données!$F121*H$4 -> 1769.7
B122: 1495 | C122: Marbais | D122: Villers-La-Ville | E122: 2016 | F122: 1922 | G122: =Données!$E122*B$4 -> 2318.4 | H122: =Données!$E122*C$4 -> 2217.6 | I122: =Données!$E122*D$4 -> 2116.8 | J122: =Données!$E122*E$4 -> 2016 | K122: =Données!$E122*F$4 -> 1915.2 | L122: =Données!$E122*G$4 -> 1814.4 | M122: =Données!$E122*H$4 -> 1713.6 | N122: =Données!$F122*B$4 -> 2210.3 | O122: =Données!$F122*C$4 -> 2114.2 | P122: =Données!$F122*D$4 -> 2018.1 | Q122: =Données!$F122*E$4 -> 1922 | R122: =Données!$F122*F$4 -> 1825.9 | S122: =Données!$F122*G$4 -> 1729.8 | T122: =Données!$F122*H$4 -> 1633.7
B123: 1495 | C123: Villers-La-Ville | D123: Villers-La-Ville | E123: 2016 | F123: 1922 | G123: =Données!$E123*B$4 -> 2318.4 | H123: =Données!$E123*C$4 -> 2217.6 | I123: =Données!$E123*D$4 -> 2116.8 | J123: =Données!$E123*E$4 -> 2016 | K123: =Données!$E123*F$4 -> 1915.2 | L123: =Données!$E123*G$4 -> 1814.4 | M123: =Données!$E123*H$4 -> 1713.6 | N123: =Données!$F123*B$4 -> 2210.3 | O123: =Données!$F123*C$4 -> 2114.2 | P123: =Données!$F123*D$4 -> 2018.1 | Q123: =Données!$F123*E$4 -> 1922 | R123: =Données!$F123*F$4 -> 1825.9 | S123: =Données!$F123*G$4 -> 1729.8 | T123: =Données!$F123*H$4 -> 1633.7
B124: 1495 | C124: Sart-Dames-Avelines | D124: Villers-La-Ville | E124: 2016 | F124: 1922 | G124: =Données!$E124*B$4 -> 2318.4 | H124: =Données!$E124*C$4 -> 2217.6 | I124: =Données!$E124*D$4 -> 2116.8 | J124: =Données!$E124*E$4 -> 2016 | K124: =Données!$E124*F$4 -> 1915.2 | L124: =Données!$E124*G$4 -> 1814.4 | M124: =Données!$E124*H$4 -> 1713.6 | N124: =Données!$F124*B$4 -> 2210.3 | O124: =Données!$F124*C$4 -> 2114.2 | P124: =Données!$F124*D$4 -> 2018.1 | Q124: =Données!$F124*E$4 -> 1922 | R124: =Données!$F124*F$4 -> 1825.9 | S124: =Données!$F124*G$4 -> 1729.8 | T124: =Données!$F124*H$4 -> 1633.7
B125: 1495 | C125: Mellery | D125: Villers-La-Ville | E125: 2016 | F125: 1922 | G125: =Données!$E125*B$4 -> 2318.4 | H125: =Données!$E125*C$4 -> 2217.6 | I125: =Données!$E125*D$4 -> 2116.8 | J125: =Données!$E125*E$4 -> 2016 | K125: =Données!$E125*F$4 -> 1915.2 | L125: =Données!$E125*G$4 -> 1814.4 | M125: =Données!$E125*H$4 -> 1713.6 | N125: =Données!$F125*B$4 -> 2210.3 | O125: =Données!$F125*C$4 -> 2114.2 | P125: =Données!$F125*D$4 -> 2018.1 | Q125: =Données!$F125*E$4 -> 1922 | R125: =Données!$F125*F$4 -> 1825.9 | S125: =Données!$F125*G$4 -> 1729.8 | T125: =Données!$F125*H$4 -> 1633.7
B126: 1495 | C126: Tilly | D126: Villers-La-Ville | E126: 2016 | F126: 1922 | G126: =Données!$E126*B$4 -> 2318.4 | H126: =Données!$E126*C$4 -> 2217.6 | I126: =Données!$E126*D$4 -> 2116.8 | J126: =Données!$E126*E$4 -> 2016 | K126: =Données!$E126*F$4 -> 1915.2 | L126: =Données!$E126*G$4 -> 1814.4 | M126: =Données!$E126*H$4 -> 1713.6 | N126: =Données!$F126*B$4 -> 2210.3 | O126: =Données!$F126*C$4 -> 2114.2 | P126: =Données!$F126*D$4 -> 2018.1 | Q126: =Données!$F126*E$4 -> 1922 | R126: =Données!$F126*F$4 -> 1825.9 | S126: =Données!$F126*G$4 -> 1729.8 | T126: =Données!$F126*H$4 -> 1633.7
B127: 4000 | C127: Glain | D127: Liège | E127: 2384 | F127: 1707 | G127: =Données!$E127*B$4 -> 2741.6 | H127: =Données!$E127*C$4 -> 2622.4 | I127: =Données!$E127*D$4 -> 2503.2 | J127: =Données!$E127*E$4 -> 2384 | K127: =Données!$E127*F$4 -> 2264.8 | L127: =Données!$E127*G$4 -> 2145.6 | M127: =Données!$E127*H$4 -> 2026.4 | N127: =Données!$F127*B$4 -> 1963.05 | O127: =Données!$F127*C$4 -> 1877.7 | P127: =Données!$F127*D$4 -> 1792.35 | Q127: =Données!$F127*E$4 -> 1707 | R127: =Données!$F127*F$4 -> 1621.65 | S127: =Données!$F127*G$4 -> 1536.3 | T127: =Données!$F127*H$4 -> 1450.95
B128: 4000 | C128: Rocourt | D128: Liège | E128: 2384 | F128: 1707 | G128: =Données!$E128*B$4 -> 2741.6 | H128: =Données!$E128*C$4 -> 2622.4 | I128: =Données!$E128*D$4 -> 2503.2 | J128: =Données!$E128*E$4 -> 2384 | K128: =Données!$E128*F$4 -> 2264.8 | L128: =Données!$E128*G$4 -> 2145.6 | M128: =Données!$E128*H$4 -> 2026.4 | N128: =Données!$F128*B$4 -> 1963.05 | O128: =Données!$F128*C$4 -> 1877.7 | P128: =Données!$F128*D$4 -> 1792.35 | Q128: =Données!$F128*E$4 -> 1707 | R128: =Données!$F128*F$4 -> 1621.65 | S128: =Données!$F128*G$4 -> 1536.3 | T128: =Données!$F128*H$4 -> 1450.95
B129: 4000 | C129: Liège | D129: Liège | E129: 2384 | F129: 1707 | G129: =Données!$E129*B$4 -> 2741.6 | H129: =Données!$E129*C$4 -> 2622.4 | I129: =Données!$E129*D$4 -> 2503.2 | J129: =Données!$E129*E$4 -> 2384 | K129: =Données!$E129*F$4 -> 2264.8 | L129: =Données!$E129*G$4 -> 2145.6 | M129: =Données!$E129*H$4 -> 2026.4 | N129: =Données!$F129*B$4 -> 1963.05 | O129: =Données!$F129*C$4 -> 1877.7 | P129: =Données!$F129*D$4 -> 1792.35 | Q129: =Données!$F129*E$4 -> 1707 | R129: =Données!$F129*F$4 -> 1621.65 | S129: =Données!$F129*G$4 -> 1536.3 | T129: =Données!$F129*H$4 -> 1450.95
B130: 4020 | C130: Jupille-Sur-Meuse | D130: Liège | E130: 2384 | F130: 1707 | G130: =Données!$E130*B$4 -> 2741.6 | H130: =Données!$E130*C$4 -> 2622.4 | I130: =Données!$E130*D$4 -> 2503.2 | J130: =Données!$E130*E$4 -> 2384 | K130: =Données!$E130*F$4 -> 2264.8 | L130: =Données!$E130*G$4 -> 2145.6 | M130: =Données!$E130*H$4 -> 2026.4 | N130: =Données!$F130*B$4 -> 1963.05 | O130: =Données!$F130*C$4 -> 1877.7 | P130: =Données!$F130*D$4 -> 1792.35 | Q130: =Données!$F130*E$4 -> 1707 | R130: =Données!$F130*F$4 -> 1621.65 | S130: =Données!$F130*G$4 -> 1536.3 | T130: =Données!$F130*H$4 -> 1450.95
B131: 4020 | C131: Wandre | D131: Liège | E131: 2384 | F131: 1707 | G131: =Données!$E131*B$4 -> 2741.6 | H131: =Données!$E131*C$4 -> 2622.4 | I131: =Données!$E131*D$4 -> 2503.2 | J131: =Données!$E131*E$4 -> 2384 | K131: =Données!$E131*F$4 -> 2264.8 | L131: =Données!$E131*G$4 -> 2145.6 | M131: =Données!$E131*H$4 -> 2026.4 | N131: =Données!$F131*B$4 -> 1963.05 | O131: =Données!$F131*C$4 -> 1877.7 | P131: =Données!$F131*D$4 -> 1792.35 | Q131: =Données!$F131*E$4 -> 1707 | R131: =Données!$F131*F$4 -> 1621.65 | S131: =Données!$F131*G$4 -> 1536.3 | T131: =Données!$F131*H$4 -> 1450.95
B132: 4020 | C132: Liège | D132: Liège | E132: 2384 | F132: 1707 | G132: =Données!$E132*B$4 -> 2741.6 | H132: =Données!$E132*C$4 -> 2622.4 | I132: =Données!$E132*D$4 -> 2503.2 | J132: =Données!$E132*E$4 -> 2384 | K132: =Données!$E132*F$4 -> 2264.8 | L132: =Données!$E132*G$4 -> 2145.6 | M132: =Données!$E132*H$4 -> 2026.4 | N132: =Données!$F132*B$4 -> 1963.05 | O132: =Données!$F132*C$4 -> 1877.7 | P132: =Données!$F132*D$4 -> 1792.35 | Q132: =Données!$F132*E$4 -> 1707 | R132: =Données!$F132*F$4 -> 1621.65 | S132: =Données!$F132*G$4 -> 1536.3 | T132: =Données!$F132*H$4 -> 1450.95
B133: 4020 | C133: Bressoux | D133: Liège | E133: 2384 | F133: 1707 | G133: =Données!$E133*B$4 -> 2741.6 | H133: =Données!$E133*C$4 -> 2622.4 | I133: =Données!$E133*D$4 -> 2503.2 | J133: =Données!$E133*E$4 -> 2384 | K133: =Données!$E133*F$4 -> 2264.8 | L133: =Données!$E133*G$4 -> 2145.6 | M133: =Données!$E133*H$4 -> 2026.4 | N133: =Données!$F133*B$4 -> 1963.05 | O133: =Données!$F133*C$4 -> 1877.7 | P133: =Données!$F133*D$4 -> 1792.35 | Q133: =Données!$F133*E$4 -> 1707 | R133: =Données!$F133*F$4 -> 1621.65 | S133: =Données!$F133*G$4 -> 1536.3 | T133: =Données!$F133*H$4 -> 1450.95
B134: 4030 | C134: Grivegnee | D134: Liège | E134: 2120 | F134: 1697 | G134: =Données!$E134*B$4 -> 2438 | H134: =Données!$E134*C$4 -> 2332 | I134: =Données!$E134*D$4 -> 2226 | J134: =Données!$E134*E$4 -> 2120 | K134: =Données!$E134*F$4 -> 2014 | L134: =Données!$E134*G$4 -> 1908 | M134: =Données!$E134*H$4 -> 1802 | N134: =Données!$F134*B$4 -> 1951.55 | O134: =Données!$F134*C$4 -> 1866.7 | P134: =Données!$F134*D$4 -> 1781.85 | Q134: =Données!$F134*E$4 -> 1697 | R134: =Données!$F134*F$4 -> 1612.15 | S134: =Données!$F134*G$4 -> 1527.3 | T134: =Données!$F134*H$4 -> 1442.45
B135: 4031 | C135: Angleur | D135: Liège | E135: 2377 | F135: 1730 | G135: =Données!$E135*B$4 -> 2733.55 | H135: =Données!$E135*C$4 -> 2614.7 | I135: =Données!$E135*D$4 -> 2495.85 | J135: =Données!$E135*E$4 -> 2377 | K135: =Données!$E135*F$4 -> 2258.15 | L135: =Données!$E135*G$4 -> 2139.3 | M135: =Données!$E135*H$4 -> 2020.45 | N135: =Données!$F135*B$4 -> 1989.5 | O135: =Données!$F135*C$4 -> 1903 | P135: =Données!$F135*D$4 -> 1816.5 | Q135: =Données!$F135*E$4 -> 1730 | R135: =Données!$F135*F$4 -> 1643.5 | S135: =Données!$F135*G$4 -> 1557 | T135: =Données!$F135*H$4 -> 1470.5
B136: 4032 | C136: Chênee | D136: Liège | E136: 2166 | F136: 1630 | G136: =Données!$E136*B$4 -> 2490.9 | H136: =Données!$E136*C$4 -> 2382.6 | I136: =Données!$E136*D$4 -> 2274.3 | J136: =Données!$E136*E$4 -> 2166 | K136: =Données!$E136*F$4 -> 2057.7 | L136: =Données!$E136*G$4 -> 1949.4 | M136: =Données!$E136*H$4 -> 1841.1 | N136: =Données!$F136*B$4 -> 1874.5 | O136: =Données!$F136*C$4 -> 1793 | P136: =Données!$F136*D$4 -> 1711.5 | Q136: =Données!$F136*E$4 -> 1630 | R136: =Données!$F136*F$4 -> 1548.5 | S136: =Données!$F136*G$4 -> 1467 | T136: =Données!$F136*H$4 -> 1385.5
B137: 4040 | C137: Herstal | D137: Herstal | E137: 1919 | F137: 1607 | G137: =Données!$E137*B$4 -> 2206.85 | H137: =Données!$E137*C$4 -> 2110.9 | I137: =Données!$E137*D$4 -> 2014.95 | J137: =Données!$E137*E$4 -> 1919 | K137: =Données!$E137*F$4 -> 1823.05 | L137: =Données!$E137*G$4 -> 1727.1 | M137: =Données!$E137*H$4 -> 1631.15 | N137: =Données!$F137*B$4 -> 1848.05 | O137: =Données!$F137*C$4 -> 1767.7 | P137: =Données!$F137*D$4 -> 1687.35 | Q137: =Données!$F137*E$4 -> 1607 | R137: =Données!$F137*F$4 -> 1526.65 | S137: =Données!$F137*G$4 -> 1446.3 | T137: =Données!$F137*H$4 -> 1365.95
B138: 4041 | C138: Milmort | D138: Herstal | E138: 1919 | F138: 1607 | G138: =Données!$E138*B$4 -> 2206.85 | H138: =Données!$E138*C$4 -> 2110.9 | I138: =Données!$E138*D$4 -> 2014.95 | J138: =Données!$E138*E$4 -> 1919 | K138: =Données!$E138*F$4 -> 1823.05 | L138: =Données!$E138*G$4 -> 1727.1 | M138: =Données!$E138*H$4 -> 1631.15 | N138: =Données!$F138*B$4 -> 1848.05 | O138: =Données!$F138*C$4 -> 1767.7 | P138: =Données!$F138*D$4 -> 1687.35 | Q138: =Données!$F138*E$4 -> 1607 | R138: =Données!$F138*F$4 -> 1526.65 | S138: =Données!$F138*G$4 -> 1446.3 | T138: =Données!$F138*H$4 -> 1365.95
B139: 4041 | C139: Vottem | D139: Herstal | E139: 1919 | F139: 1607 | G139: =Données!$E139*B$4 -> 2206.85 | H139: =Données!$E139*C$4 -> 2110.9 | I139: =Données!$E139*D$4 -> 2014.95 | J139: =Données!$E139*E$4 -> 1919 | K139: =Données!$E139*F$4 -> 1823.05 | L139: =Données!$E139*G$4 -> 1727.1 | M139: =Données!$E139*H$4 -> 1631.15 | N139: =Données!$F139*B$4 -> 1848.05 | O139: =Données!$F139*C$4 -> 1767.7 | P139: =Données!$F139*D$4 -> 1687.35 | Q139: =Données!$F139*E$4 -> 1607 | R139: =Données!$F139*F$4 -> 1526.65 | S139: =Données!$F139*G$4 -> 1446.3 | T139: =Données!$F139*H$4 -> 1365.95
B140: 4042 | C140: Liers | D140: Herstal | E140: 1919 | F140: 1607 | G140: =Données!$E140*B$4 -> 2206.85 | H140: =Données!$E140*C$4 -> 2110.9 | I140: =Données!$E140*D$4 -> 2014.95 | J140: =Données!$E140*E$4 -> 1919 | K140: =Données!$E140*F$4 -> 1823.05 | L140: =Données!$E140*G$4 -> 1727.1 | M140: =Données!$E140*H$4 -> 1631.15 | N140: =Données!$F140*B$4 -> 1848.05 | O140: =Données!$F140*C$4 -> 1767.7 | P140: =Données!$F140*D$4 -> 1687.35 | Q140: =Données!$F140*E$4 -> 1607 | R140: =Données!$F140*F$4 -> 1526.65 | S140: =Données!$F140*G$4 -> 1446.3 | T140: =Données!$F140*H$4 -> 1365.95
B141: 4050 | C141: Chaudfontaine | D141: Chaudfontaine | E141: 2561 | F141: 1901 | G141: =Données!$E141*B$4 -> 2945.15 | H141: =Données!$E141*C$4 -> 2817.1 | I141: =Données!$E141*D$4 -> 2689.05 | J141: =Données!$E141*E$4 -> 2561 | K141: =Données!$E141*F$4 -> 2432.95 | L141: =Données!$E141*G$4 -> 2304.9 | M141: =Données!$E141*H$4 -> 2176.85 | N141: =Données!$F141*B$4 -> 2186.15 | O141: =Données!$F141*C$4 -> 2091.1 | P141: =Données!$F141*D$4 -> 1996.05 | Q141: =Données!$F141*E$4 -> 1901 | R141: =Données!$F141*F$4 -> 1805.95 | S141: =Données!$F141*G$4 -> 1710.9 | T141: =Données!$F141*H$4 -> 1615.85
B142: 4051 | C142: Vaux-Sous-Chèvremont | D142: Chaudfontaine | E142: 2561 | F142: 1901 | G142: =Données!$E142*B$4 -> 2945.15 | H142: =Données!$E142*C$4 -> 2817.1 | I142: =Données!$E142*D$4 -> 2689.05 | J142: =Données!$E142*E$4 -> 2561 | K142: =Données!$E142*F$4 -> 2432.95 | L142: =Données!$E142*G$4 -> 2304.9 | M142: =Données!$E142*H$4 -> 2176.85 | N142: =Données!$F142*B$4 -> 2186.15 | O142: =Données!$F142*C$4 -> 2091.1 | P142: =Données!$F142*D$4 -> 1996.05 | Q142: =Données!$F142*E$4 -> 1901 | R142: =Données!$F142*F$4 -> 1805.95 | S142: =Données!$F142*G$4 -> 1710.9 | T142: =Données!$F142*H$4 -> 1615.85
B143: 4052 | C143: Beaufays | D143: Chaudfontaine | E143: 2561 | F143: 1901 | G143: =Données!$E143*B$4 -> 2945.15 | H143: =Données!$E143*C$4 -> 2817.1 | I143: =Données!$E143*D$4 -> 2689.05 | J143: =Données!$E143*E$4 -> 2561 | K143: =Données!$E143*F$4 -> 2432.95 | L143: =Données!$E143*G$4 -> 2304.9 | M143: =Données!$E143*H$4 -> 2176.85 | N143: =Données!$F143*B$4 -> 2186.15 | O143: =Données!$F143*C$4 -> 2091.1 | P143: =Données!$F143*D$4 -> 1996.05 | Q143: =Données!$F143*E$4 -> 1901 | R143: =Données!$F143*F$4 -> 1805.95 | S143: =Données!$F143*G$4 -> 1710.9 | T143: =Données!$F143*H$4 -> 1615.85
B144: 4053 | C144: Embourg | D144: Chaudfontaine | E144: 2561 | F144: 1901 | G144: =Données!$E144*B$4 -> 2945.15 | H144: =Données!$E144*C$4 -> 2817.1 | I144: =Données!$E144*D$4 -> 2689.05 | J144: =Données!$E144*E$4 -> 2561 | K144: =Données!$E144*F$4 -> 2432.95 | L144: =Données!$E144*G$4 -> 2304.9 | M144: =Données!$E144*H$4 -> 2176.85 | N144: =Données!$F144*B$4 -> 2186.15 | O144: =Données!$F144*C$4 -> 2091.1 | P144: =Données!$F144*D$4 -> 1996.05 | Q144: =Données!$F144*E$4 -> 1901 | R144: =Données!$F144*F$4 -> 1805.95 | S144: =Données!$F144*G$4 -> 1710.9 | T144: =Données!$F144*H$4 -> 1615.85
B145: 4100 | C145: Boncelles | D145: Seraing | E145: 2113 | F145: 1503 | G145: =Données!$E145*B$4 -> 2429.95 | H145: =Données!$E145*C$4 -> 2324.3 | I145: =Données!$E145*D$4 -> 2218.65 | J145: =Données!$E145*E$4 -> 2113 | K145: =Données!$E145*F$4 -> 2007.35 | L145: =Données!$E145*G$4 -> 1901.7 | M145: =Données!$E145*H$4 -> 1796.05 | N145: =Données!$F145*B$4 -> 1728.45 | O145: =Données!$F145*C$4 -> 1653.3 | P145: =Données!$F145*D$4 -> 1578.15 | Q145: =Données!$F145*E$4 -> 1503 | R145: =Données!$F145*F$4 -> 1427.85 | S145: =Données!$F145*G$4 -> 1352.7 | T145: =Données!$F145*H$4 -> 1277.55
B146: 4100 | C146: Seraing | D146: Seraing | E146: 2113 | F146: 1503 | G146: =Données!$E146*B$4 -> 2429.95 | H146: =Données!$E146*C$4 -> 2324.3 | I146: =Données!$E146*D$4 -> 2218.65 | J146: =Données!$E146*E$4 -> 2113 | K146: =Données!$E146*F$4 -> 2007.35 | L146: =Données!$E146*G$4 -> 1901.7 | M146: =Données!$E146*H$4 -> 1796.05 | N146: =Données!$F146*B$4 -> 1728.45 | O146: =Données!$F146*C$4 -> 1653.3 | P146: =Données!$F146*D$4 -> 1578.15 | Q146: =Données!$F146*E$4 -> 1503 | R146: =Données!$F146*F$4 -> 1427.85 | S146: =Données!$F146*G$4 -> 1352.7 | T146: =Données!$F146*H$4 -> 1277.55
B147: 4101 | C147: Jemeppe-Sur-Meuse | D147: Seraing | E147: 2113 | F147: 1503 | G147: =Données!$E147*B$4 -> 2429.95 | H147: =Données!$E147*C$4 -> 2324.3 | I147: =Données!$E147*D$4 -> 2218.65 | J147: =Données!$E147*E$4 -> 2113 | K147: =Données!$E147*F$4 -> 2007.35 | L147: =Données!$E147*G$4 -> 1901.7 | M147: =Données!$E147*H$4 -> 1796.05 | N147: =Données!$F147*B$4 -> 1728.45 | O147: =Données!$F147*C$4 -> 1653.3 | P147: =Données!$F147*D$4 -> 1578.15 | Q147: =Données!$F147*E$4 -> 1503 | R147: =Données!$F147*F$4 -> 1427.85 | S147: =Données!$F147*G$4 -> 1352.7 | T147: =Données!$F147*H$4 -> 1277.55
B148: 4102 | C148: Ougrée | D148: Seraing | E148: 2113 | F148: 1503 | G148: =Données!$E148*B$4 -> 2429.95 | H148: =Données!$E148*C$4 -> 2324.3 | I148: =Données!$E148*D$4 -> 2218.65 | J148: =Données!$E148*E$4 -> 2113 | K148: =Données!$E148*F$4 -> 2007.35 | L148: =Données!$E148*G$4 -> 1901.7 | M148: =Données!$E148*H$4 -> 1796.05 | N148: =Données!$F148*B$4 -> 1728.45 | O148: =Données!$F148*C$4 -> 1653.3 | P148: =Données!$F148*D$4 -> 1578.15 | Q148: =Données!$F148*E$4 -> 1503 | R148: =Données!$F148*F$4 -> 1427.85 | S148: =Données!$F148*G$4 -> 1352.7 | T148: =Données!$F148*H$4 -> 1277.55
B149: 4120 | C149: Ehein | D149: Neupré | E149: 2569 | F149: 1928 | G149: =Données!$E149*B$4 -> 2954.35 | H149: =Données!$E149*C$4 -> 2825.9 | I149: =Données!$E149*D$4 -> 2697.45 | J149: =Données!$E149*E$4 -> 2569 | K149: =Données!$E149*F$4 -> 2440.55 | L149: =Données!$E149*G$4 -> 2312.1 | M149: =Données!$E149*H$4 -> 2183.65 | N149: =Données!$F149*B$4 -> 2217.2 | O149: =Données!$F149*C$4 -> 2120.8 | P149: =Données!$F149*D$4 -> 2024.4 | Q149: =Données!$F149*E$4 -> 1928 | R149: =Données!$F149*F$4 -> 1831.6 | S149: =Données!$F149*G$4 -> 1735.2 | T149: =Données!$F149*H$4 -> 1638.8
B150: 4120 | C150: Rotheux-Rimière | D150: Neupré | E150: 2569 | F150: 1928 | G150: =Données!$E150*B$4 -> 2954.35 | H150: =Données!$E150*C$4 -> 2825.9 | I150: =Données!$E150*D$4 -> 2697.45 | J150: =Données!$E150*E$4 -> 2569 | K150: =Données!$E150*F$4 -> 2440.55 | L150: =Données!$E150*G$4 -> 2312.1 | M150: =Données!$E150*H$4 -> 2183.65 | N150: =Données!$F150*B$4 -> 2217.2 | O150: =Données!$F150*C$4 -> 2120.8 | P150: =Données!$F150*D$4 -> 2024.4 | Q150: =Données!$F150*E$4 -> 1928 | R150: =Données!$F150*F$4 -> 1831.6 | S150: =Données!$F150*G$4 -> 1735.2 | T150: =Données!$F150*H$4 -> 1638.8
B151: 4120 | C151: Neupré | D151: Neupré | E151: 2569 | F151: 1928 | G151: =Données!$E151*B$4 -> 2954.35 | H151: =Données!$E151*C$4 -> 2825.9 | I151: =Données!$E151*D$4 -> 2697.45 | J151: =Données!$E151*E$4 -> 2569 | K151: =Données!$E151*F$4 -> 2440.55 | L151: =Données!$E151*G$4 -> 2312.1 | M151: =Données!$E151*H$4 -> 2183.65 | N151: =Données!$F151*B$4 -> 2217.2 | O151: =Données!$F151*C$4 -> 2120.8 | P151: =Données!$F151*D$4 -> 2024.4 | Q151: =Données!$F151*E$4 -> 1928 | R151: =Données!$F151*F$4 -> 1831.6 | S151: =Données!$F151*G$4 -> 1735.2 | T151: =Données!$F151*H$4 -> 1638.8
B152: 4121 | C152: Neuville-En-Condroz | D152: Neupré | E152: 2569 | F152: 1928 | G152: =Données!$E152*B$4 -> 2954.35 | H152: =Données!$E152*C$4 -> 2825.9 | I152: =Données!$E152*D$4 -> 2697.45 | J152: =Données!$E152*E$4 -> 2569 | K152: =Données!$E152*F$4 -> 2440.55 | L152: =Données!$E152*G$4 -> 2312.1 | M152: =Données!$E152*H$4 -> 2183.65 | N152: =Données!$F152*B$4 -> 2217.2 | O152: =Données!$F152*C$4 -> 2120.8 | P152: =Données!$F152*D$4 -> 2024.4 | Q152: =Données!$F152*E$4 -> 1928 | R152: =Données!$F152*F$4 -> 1831.6 | S152: =Données!$F152*G$4 -> 1735.2 | T152: =Données!$F152*H$4 -> 1638.8
B153: 4122 | C153: Plainevaux | D153: Neupré | E153: 2569 | F153: 1928 | G153: =Données!$E153*B$4 -> 2954.35 | H153: =Données!$E153*C$4 -> 2825.9 | I153: =Données!$E153*D$4 -> 2697.45 | J153: =Données!$E153*E$4 -> 2569 | K153: =Données!$E153*F$4 -> 2440.55 | L153: =Données!$E153*G$4 -> 2312.1 | M153: =Données!$E153*H$4 -> 2183.65 | N153: =Données!$F153*B$4 -> 2217.2 | O153: =Données!$F153*C$4 -> 2120.8 | P153: =Données!$F153*D$4 -> 2024.4 | Q153: =Données!$F153*E$4 -> 1928 | R153: =Données!$F153*F$4 -> 1831.6 | S153: =Données!$F153*G$4 -> 1735.2 | T153: =Données!$F153*H$4 -> 1638.8
B154: 4130 | C154: Esneux | D154: Esneux | E154: 2726 | F154: 1863 | G154: =Données!$E154*B$4 -> 3134.9 | H154: =Données!$E154*C$4 -> 2998.6 | I154: =Données!$E154*D$4 -> 2862.3 | J154: =Données!$E154*E$4 -> 2726 | K154: =Données!$E154*F$4 -> 2589.7 | L154: =Données!$E154*G$4 -> 2453.4 | M154: =Données!$E154*H$4 -> 2317.1 | N154: =Données!$F154*B$4 -> 2142.45 | O154: =Données!$F154*C$4 -> 2049.3 | P154: =Données!$F154*D$4 -> 1956.15 | Q154: =Données!$F154*E$4 -> 1863 | R154: =Données!$F154*F$4 -> 1769.85 | S154: =Données!$F154*G$4 -> 1676.7 | T154: =Données!$F154*H$4 -> 1583.55
B155: 4130 | C155: Tilff | D155: Esneux | E155: 2726 | F155: 1863 | G155: =Données!$E155*B$4 -> 3134.9 | H155: =Données!$E155*C$4 -> 2998.6 | I155: =Données!$E155*D$4 -> 2862.3 | J155: =Données!$E155*E$4 -> 2726 | K155: =Données!$E155*F$4 -> 2589.7 | L155: =Données!$E155*G$4 -> 2453.4 | M155: =Données!$E155*H$4 -> 2317.1 | N155: =Données!$F155*B$4 -> 2142.45 | O155: =Données!$F155*C$4 -> 2049.3 | P155: =Données!$F155*D$4 -> 1956.15 | Q155: =Données!$F155*E$4 -> 1863 | R155: =Données!$F155*F$4 -> 1769.85 | S155: =Données!$F155*G$4 -> 1676.7 | T155: =Données!$F155*H$4 -> 1583.55
B156: 4140 | C156: Dolembreux | D156: Sprimont | E156: 2467 | F156: 1764 | G156: =Données!$E156*B$4 -> 2837.05 | H156: =Données!$E156*C$4 -> 2713.7 | I156: =Données!$E156*D$4 -> 2590.35 | J156: =Données!$E156*E$4 -> 2467 | K156: =Données!$E156*F$4 -> 2343.65 | L156: =Données!$E156*G$4 -> 2220.3 | M156: =Données!$E156*H$4 -> 2096.95 | N156: =Données!$F156*B$4 -> 2028.6 | O156: =Données!$F156*C$4 -> 1940.4 | P156: =Données!$F156*D$4 -> 1852.2 | Q156: =Données!$F156*E$4 -> 1764 | R156: =Données!$F156*F$4 -> 1675.8 | S156: =Données!$F156*G$4 -> 1587.6 | T156: =Données!$F156*H$4 -> 1499.4
B157: 4140 | C157: Gomzé-Andoumont | D157: Sprimont | E157: 2467 | F157: 1764 | G157: =Données!$E157*B$4 -> 2837.05 | H157: =Données!$E157*C$4 -> 2713.7 | I157: =Données!$E157*D$4 -> 2590.35 | J157: =Données!$E157*E$4 -> 2467 | K157: =Données!$E157*F$4 -> 2343.65 | L157: =Données!$E157*G$4 -> 2220.3 | M157: =Données!$E157*H$4 -> 2096.95 | N157: =Données!$F157*B$4 -> 2028.6 | O157: =Données!$F157*C$4 -> 1940.4 | P157: =Données!$F157*D$4 -> 1852.2 | Q157: =Données!$F157*E$4 -> 1764 | R157: =Données!$F157*F$4 -> 1675.8 | S157: =Données!$F157*G$4 -> 1587.6 | T157: =Données!$F157*H$4 -> 1499.4
B158: 4140 | C158: Sprimont | D158: Sprimont | E158: 2467 | F158: 1764 | G158: =Données!$E158*B$4 -> 2837.05 | H158: =Données!$E158*C$4 -> 2713.7 | I158: =Données!$E158*D$4 -> 2590.35 | J158: =Données!$E158*E$4 -> 2467 | K158: =Données!$E158*F$4 -> 2343.65 | L158: =Données!$E158*G$4 -> 2220.3 | M158: =Données!$E158*H$4 -> 2096.95 | N158: =Données!$F158*B$4 -> 2028.6 | O158: =Données!$F158*C$4 -> 1940.4 | P158: =Données!$F158*D$4 -> 1852.2 | Q158: =Données!$F158*E$4 -> 1764 | R158: =Données!$F158*F$4 -> 1675.8 | S158: =Données!$F158*G$4 -> 1587.6 | T158: =Données!$F158*H$4 -> 1499.4
B159: 4140 | C159: Rouvreux | D159: Sprimont | E159: 2467 | F159: 1764 | G159: =Données!$E159*B$4 -> 2837.05 | H159: =Données!$E159*C$4 -> 2713.7 | I159: =Données!$E159*D$4 -> 2590.35 | J159: =Données!$E159*E$4 -> 2467 | K159: =Données!$E159*F$4 -> 2343.65 | L159: =Données!$E159*G$4 -> 2220.3 | M159: =Données!$E159*H$4 -> 2096.95 | N159: =Données!$F159*B$4 -> 2028.6 | O159: =Données!$F159*C$4 -> 1940.4 | P159: =Données!$F159*D$4 -> 1852.2 | Q159: =Données!$F159*E$4 -> 1764 | R159: =Données!$F159*F$4 -> 1675.8 | S159: =Données!$F159*G$4 -> 1587.6 | T159: =Données!$F159*H$4 -> 1499.4
B160: 4141 | C160: Louveigné | D160: Sprimont | E160: 2467 | F160: 1764 | G160: =Données!$E160*B$4 -> 2837.05 | H160: =Données!$E160*C$4 -> 2713.7 | I160: =Données!$E160*D$4 -> 2590.35 | J160: =Données!$E160*E$4 -> 2467 | K160: =Données!$E160*F$4 -> 2343.65 | L160: =Données!$E160*G$4 -> 2220.3 | M160: =Données!$E160*H$4 -> 2096.95 | N160: =Données!$F160*B$4 -> 2028.6 | O160: =Données!$F160*C$4 -> 1940.4 | P160: =Données!$F160*D$4 -> 1852.2 | Q160: =Données!$F160*E$4 -> 1764 | R160: =Données!$F160*F$4 -> 1675.8 | S160: =Données!$F160*G$4 -> 1587.6 | T160: =Données!$F160*H$4 -> 1499.4
B161: 4160 | C161: Anthisnes | D161: Anthisnes | E161: 2404 | F161: 1686 | G161: =Données!$E161*B$4 -> 2764.6 | H161: =Données!$E161*C$4 -> 2644.4 | I161: =Données!$E161*D$4 -> 2524.2 | J161: =Données!$E161*E$4 -> 2404 | K161: =Données!$E161*F$4 -> 2283.8 | L161: =Données!$E161*G$4 -> 2163.6 | M161: =Données!$E161*H$4 -> 2043.4 | N161: =Données!$F161*B$4 -> 1938.9 | O161: =Données!$F161*C$4 -> 1854.6 | P161: =Données!$F161*D$4 -> 1770.3 | Q161: =Données!$F161*E$4 -> 1686 | R161: =Données!$F161*F$4 -> 1601.7 | S161: =Données!$F161*G$4 -> 1517.4 | T161: =Données!$F161*H$4 -> 1433.1
B162: 4161 | C162: Villers-Aux-Tours | D162: Anthisnes | E162: 2404 | F162: 1686 | G162: =Données!$E162*B$4 -> 2764.6 | H162: =Données!$E162*C$4 -> 2644.4 | I162: =Données!$E162*D$4 -> 2524.2 | J162: =Données!$E162*E$4 -> 2404 | K162: =Données!$E162*F$4 -> 2283.8 | L162: =Données!$E162*G$4 -> 2163.6 | M162: =Données!$E162*H$4 -> 2043.4 | N162: =Données!$F162*B$4 -> 1938.9 | O162: =Données!$F162*C$4 -> 1854.6 | P162: =Données!$F162*D$4 -> 1770.3 | Q162: =Données!$F162*E$4 -> 1686 | R162: =Données!$F162*F$4 -> 1601.7 | S162: =Données!$F162*G$4 -> 1517.4 | T162: =Données!$F162*H$4 -> 1433.1
B163: 4162 | C163: Hody | D163: Anthisnes | E163: 2404 | F163: 1686 | G163: =Données!$E163*B$4 -> 2764.6 | H163: =Données!$E163*C$4 -> 2644.4 | I163: =Données!$E163*D$4 -> 2524.2 | J163: =Données!$E163*E$4 -> 2404 | K163: =Données!$E163*F$4 -> 2283.8 | L163: =Données!$E163*G$4 -> 2163.6 | M163: =Données!$E163*H$4 -> 2043.4 | N163: =Données!$F163*B$4 -> 1938.9 | O163: =Données!$F163*C$4 -> 1854.6 | P163: =Données!$F163*D$4 -> 1770.3 | Q163: =Données!$F163*E$4 -> 1686 | R163: =Données!$F163*F$4 -> 1601.7 | S163: =Données!$F163*G$4 -> 1517.4 | T163: =Données!$F163*H$4 -> 1433.1
B164: 4163 | C164: Tavier | D164: Anthisnes | E164: 2404 | F164: 1686 | G164: =Données!$E164*B$4 -> 2764.6 | H164: =Données!$E164*C$4 -> 2644.4 | I164: =Données!$E164*D$4 -> 2524.2 | J164: =Données!$E164*E$4 -> 2404 | K164: =Données!$E164*F$4 -> 2283.8 | L164: =Données!$E164*G$4 -> 2163.6 | M164: =Données!$E164*H$4 -> 2043.4 | N164: =Données!$F164*B$4 -> 1938.9 | O164: =Données!$F164*C$4 -> 1854.6 | P164: =Données!$F164*D$4 -> 1770.3 | Q164: =Données!$F164*E$4 -> 1686 | R164: =Données!$F164*F$4 -> 1601.7 | S164: =Données!$F164*G$4 -> 1517.4 | T164: =Données!$F164*H$4 -> 1433.1
B165: 4170 | C165: Comblain-Au-Pont | D165: Comblain-Au-Pont | E165: 1750 | F165: 1550 | G165: =Données!$E165*B$4 -> 2012.5 | H165: =Données!$E165*C$4 -> 1925 | I165: =Données!$E165*D$4 -> 1837.5 | J165: =Données!$E165*E$4 -> 1750 | K165: =Données!$E165*F$4 -> 1662.5 | L165: =Données!$E165*G$4 -> 1575 | M165: =Données!$E165*H$4 -> 1487.5 | N165: =Données!$F165*B$4 -> 1782.5 | O165: =Données!$F165*C$4 -> 1705 | P165: =Données!$F165*D$4 -> 1627.5 | Q165: =Données!$F165*E$4 -> 1550 | R165: =Données!$F165*F$4 -> 1472.5 | S165: =Données!$F165*G$4 -> 1395 | T165: =Données!$F165*H$4 -> 1317.5
B166: 4171 | C166: Poulseur | D166: Comblain-Au-Pont | E166: 1750 | F166: 1550 | G166: =Données!$E166*B$4 -> 2012.5 | H166: =Données!$E166*C$4 -> 1925 | I166: =Données!$E166*D$4 -> 1837.5 | J166: =Données!$E166*E$4 -> 1750 | K166: =Données!$E166*F$4 -> 1662.5 | L166: =Données!$E166*G$4 -> 1575 | M166: =Données!$E166*H$4 -> 1487.5 | N166: =Données!$F166*B$4 -> 1782.5 | O166: =Données!$F166*C$4 -> 1705 | P166: =Données!$F166*D$4 -> 1627.5 | Q166: =Données!$F166*E$4 -> 1550 | R166: =Données!$F166*F$4 -> 1472.5 | S166: =Données!$F166*G$4 -> 1395 | T166: =Données!$F166*H$4 -> 1317.5
B167: 4180 | C167: Comblain-La-Tour | D167: Hamoir | E167: 1900 | F167: 1543 | G167: =Données!$E167*B$4 -> 2185 | H167: =Données!$E167*C$4 -> 2090 | I167: =Données!$E167*D$4 -> 1995 | J167: =Données!$E167*E$4 -> 1900 | K167: =Données!$E167*F$4 -> 1805 | L167: =Données!$E167*G$4 -> 1710 | M167: =Données!$E167*H$4 -> 1615 | N167: =Données!$F167*B$4 -> 1774.45 | O167: =Données!$F167*C$4 -> 1697.3 | P167: =Données!$F167*D$4 -> 1620.15 | Q167: =Données!$F167*E$4 -> 1543 | R167: =Données!$F167*F$4 -> 1465.85 | S167: =Données!$F167*G$4 -> 1388.7 | T167: =Données!$F167*H$4 -> 1311.55
B168: 4180 | C168: Hamoir | D168: Hamoir | E168: 1900 | F168: 1543 | G168: =Données!$E168*B$4 -> 2185 | H168: =Données!$E168*C$4 -> 2090 | I168: =Données!$E168*D$4 -> 1995 | J168: =Données!$E168*E$4 -> 1900 | K168: =Données!$E168*F$4 -> 1805 | L168: =Données!$E168*G$4 -> 1710 | M168: =Données!$E168*H$4 -> 1615 | N168: =Données!$F168*B$4 -> 1774.45 | O168: =Données!$F168*C$4 -> 1697.3 | P168: =Données!$F168*D$4 -> 1620.15 | Q168: =Données!$F168*E$4 -> 1543 | R168: =Données!$F168*F$4 -> 1465.85 | S168: =Données!$F168*G$4 -> 1388.7 | T168: =Données!$F168*H$4 -> 1311.55
B169: 4180 | C169: Comblain-Fairon | D169: Hamoir | E169: 1900 | F169: 1543 | G169: =Données!$E169*B$4 -> 2185 | H169: =Données!$E169*C$4 -> 2090 | I169: =Données!$E169*D$4 -> 1995 | J169: =Données!$E169*E$4 -> 1900 | K169: =Données!$E169*F$4 -> 1805 | L169: =Données!$E169*G$4 -> 1710 | M169: =Données!$E169*H$4 -> 1615 | N169: =Données!$F169*B$4 -> 1774.45 | O169: =Données!$F169*C$4 -> 1697.3 | P169: =Données!$F169*D$4 -> 1620.15 | Q169: =Données!$F169*E$4 -> 1543 | R169: =Données!$F169*F$4 -> 1465.85 | S169: =Données!$F169*G$4 -> 1388.7 | T169: =Données!$F169*H$4 -> 1311.55
B170: 4181 | C170: Filot | D170: Hamoir | E170: 1900 | F170: 1543 | G170: =Données!$E170*B$4 -> 2185 | H170: =Données!$E170*C$4 -> 2090 | I170: =Données!$E170*D$4 -> 1995 | J170: =Données!$E170*E$4 -> 1900 | K170: =Données!$E170*F$4 -> 1805 | L170: =Données!$E170*G$4 -> 1710 | M170: =Données!$E170*H$4 -> 1615 | N170: =Données!$F170*B$4 -> 1774.45 | O170: =Données!$F170*C$4 -> 1697.3 | P170: =Données!$F170*D$4 -> 1620.15 | Q170: =Données!$F170*E$4 -> 1543 | R170: =Données!$F170*F$4 -> 1465.85 | S170: =Données!$F170*G$4 -> 1388.7 | T170: =Données!$F170*H$4 -> 1311.55
B171: 4190 | C171: My | D171: Ferrières | E171: 2013 | F171: 1603 | G171: =Données!$E171*B$4 -> 2314.95 | H171: =Données!$E171*C$4 -> 2214.3 | I171: =Données!$E171*D$4 -> 2113.65 | J171: =Données!$E171*E$4 -> 2013 | K171: =Données!$E171*F$4 -> 1912.35 | L171: =Données!$E171*G$4 -> 1811.7 | M171: =Données!$E171*H$4 -> 1711.05 | N171: =Données!$F171*B$4 -> 1843.45 | O171: =Données!$F171*C$4 -> 1763.3 | P171: =Données!$F171*D$4 -> 1683.15 | Q171: =Données!$F171*E$4 -> 1603 | R171: =Données!$F171*F$4 -> 1522.85 | S171: =Données!$F171*G$4 -> 1442.7 | T171: =Données!$F171*H$4 -> 1362.55
B172: 4190 | C172: Xhoris | D172: Ferrières | E172: 2013 | F172: 1603 | G172: =Données!$E172*B$4 -> 2314.95 | H172: =Données!$E172*C$4 -> 2214.3 | I172: =Données!$E172*D$4 -> 2113.65 | J172: =Données!$E172*E$4 -> 2013 | K172: =Données!$E172*F$4 -> 1912.35 | L172: =Données!$E172*G$4 -> 1811.7 | M172: =Données!$E172*H$4 -> 1711.05 | N172: =Données!$F172*B$4 -> 1843.45 | O172: =Données!$F172*C$4 -> 1763.3 | P172: =Données!$F172*D$4 -> 1683.15 | Q172: =Données!$F172*E$4 -> 1603 | R172: =Données!$F172*F$4 -> 1522.85 | S172: =Données!$F172*G$4 -> 1442.7 | T172: =Données!$F172*H$4 -> 1362.55
B173: 4190 | C173: Ferrières | D173: Ferrières | E173: 2013 | F173: 1603 | G173: =Données!$E173*B$4 -> 2314.95 | H173: =Données!$E173*C$4 -> 2214.3 | I173: =Données!$E173*D$4 -> 2113.65 | J173: =Données!$E173*E$4 -> 2013 | K173: =Données!$E173*F$4 -> 1912.35 | L173: =Données!$E173*G$4 -> 1811.7 | M173: =Données!$E173*H$4 -> 1711.05 | N173: =Données!$F173*B$4 -> 1843.45 | O173: =Données!$F173*C$4 -> 1763.3 | P173: =Données!$F173*D$4 -> 1683.15 | Q173: =Données!$F173*E$4 -> 1603 | R173: =Données!$F173*F$4 -> 1522.85 | S173: =Données!$F173*G$4 -> 1442.7 | T173: =Données!$F173*H$4 -> 1362.55
B174: 4190 | C174: Werbomont | D174: Ferrières | E174: 2013 | F174: 1603 | G174: =Données!$E174*B$4 -> 2314.95 | H174: =Données!$E174*C$4 -> 2214.3 | I174: =Données!$E174*D$4 -> 2113.65 | J174: =Données!$E174*E$4 -> 2013 | K174: =Données!$E174*F$4 -> 1912.35 | L174: =Données!$E174*G$4 -> 1811.7 | M174: =Données!$E174*H$4 -> 1711.05 | N174: =Données!$F174*B$4 -> 1843.45 | O174: =Données!$F174*C$4 -> 1763.3 | P174: =Données!$F174*D$4 -> 1683.15 | Q174: =Données!$F174*E$4 -> 1603 | R174: =Données!$F174*F$4 -> 1522.85 | S174: =Données!$F174*G$4 -> 1442.7 | T174: =Données!$F174*H$4 -> 1362.55
B175: 4190 | C175: Vieuxville | D175: Ferrières | E175: 2013 | F175: 1603 | G175: =Données!$E175*B$4 -> 2314.95 | H175: =Données!$E175*C$4 -> 2214.3 | I175: =Données!$E175*D$4 -> 2113.65 | J175: =Données!$E175*E$4 -> 2013 | K175: =Données!$E175*F$4 -> 1912.35 | L175: =Données!$E175*G$4 -> 1811.7 | M175: =Données!$E175*H$4 -> 1711.05 | N175: =Données!$F175*B$4 -> 1843.45 | O175: =Données!$F175*C$4 -> 1763.3 | P175: =Données!$F175*D$4 -> 1683.15 | Q175: =Données!$F175*E$4 -> 1603 | R175: =Données!$F175*F$4 -> 1522.85 | S175: =Données!$F175*G$4 -> 1442.7 | T175: =Données!$F175*H$4 -> 1362.55
B176: 4210 | C176: Marneffe | D176: Burdinne | E176: 2104 | F176: 1616 | G176: =Données!$E176*B$4 -> 2419.6 | H176: =Données!$E176*C$4 -> 2314.4 | I176: =Données!$E176*D$4 -> 2209.2 | J176: =Données!$E176*E$4 -> 2104 | K176: =Données!$E176*F$4 -> 1998.8 | L176: =Données!$E176*G$4 -> 1893.6 | M176: =Données!$E176*H$4 -> 1788.4 | N176: =Données!$F176*B$4 -> 1858.4 | O176: =Données!$F176*C$4 -> 1777.6 | P176: =Données!$F176*D$4 -> 1696.8 | Q176: =Données!$F176*E$4 -> 1616 | R176: =Données!$F176*F$4 -> 1535.2 | S176: =Données!$F176*G$4 -> 1454.4 | T176: =Données!$F176*H$4 -> 1373.6
B177: 4210 | C177: Burdinne | D177: Burdinne | E177: 2104 | F177: 1616 | G177: =Données!$E177*B$4 -> 2419.6 | H177: =Données!$E177*C$4 -> 2314.4 | I177: =Données!$E177*D$4 -> 2209.2 | J177: =Données!$E177*E$4 -> 2104 | K177: =Données!$E177*F$4 -> 1998.8 | L177: =Données!$E177*G$4 -> 1893.6 | M177: =Données!$E177*H$4 -> 1788.4 | N177: =Données!$F177*B$4 -> 1858.4 | O177: =Données!$F177*C$4 -> 1777.6 | P177: =Données!$F177*D$4 -> 1696.8 | Q177: =Données!$F177*E$4 -> 1616 | R177: =Données!$F177*F$4 -> 1535.2 | S177: =Données!$F177*G$4 -> 1454.4 | T177: =Données!$F177*H$4 -> 1373.6
B178: 4210 | C178: Lamontzée | D178: Burdinne | E178: 2104 | F178: 1616 | G178: =Données!$E178*B$4 -> 2419.6 | H178: =Données!$E178*C$4 -> 2314.4 | I178: =Données!$E178*D$4 -> 2209.2 | J178: =Données!$E178*E$4 -> 2104 | K178: =Données!$E178*F$4 -> 1998.8 | L178: =Données!$E178*G$4 -> 1893.6 | M178: =Données!$E178*H$4 -> 1788.4 | N178: =Données!$F178*B$4 -> 1858.4 | O178: =Données!$F178*C$4 -> 1777.6 | P178: =Données!$F178*D$4 -> 1696.8 | Q178: =Données!$F178*E$4 -> 1616 | R178: =Données!$F178*F$4 -> 1535.2 | S178: =Données!$F178*G$4 -> 1454.4 | T178: =Données!$F178*H$4 -> 1373.6
B179: 4210 | C179: Oteppe | D179: Burdinne | E179: 2104 | F179: 1616 | G179: =Données!$E179*B$4 -> 2419.6 | H179: =Données!$E179*C$4 -> 2314.4 | I179: =Données!$E179*D$4 -> 2209.2 | J179: =Données!$E179*E$4 -> 2104 | K179: =Données!$E179*F$4 -> 1998.8 | L179: =Données!$E179*G$4 -> 1893.6 | M179: =Données!$E179*H$4 -> 1788.4 | N179: =Données!$F179*B$4 -> 1858.4 | O179: =Données!$F179*C$4 -> 1777.6 | P179: =Données!$F179*D$4 -> 1696.8 | Q179: =Données!$F179*E$4 -> 1616 | R179: =Données!$F179*F$4 -> 1535.2 | S179: =Données!$F179*G$4 -> 1454.4 | T179: =Données!$F179*H$4 -> 1373.6
B180: 4210 | C180: Hannêche | D180: Burdinne | E180: 2104 | F180: 1616 | G180: =Données!$E180*B$4 -> 2419.6 | H180: =Données!$E180*C$4 -> 2314.4 | I180: =Données!$E180*D$4 -> 2209.2 | J180: =Données!$E180*E$4 -> 2104 | K180: =Données!$E180*F$4 -> 1998.8 | L180: =Données!$E180*G$4 -> 1893.6 | M180: =Données!$E180*H$4 -> 1788.4 | N180: =Données!$F180*B$4 -> 1858.4 | O180: =Données!$F180*C$4 -> 1777.6 | P180: =Données!$F180*D$4 -> 1696.8 | Q180: =Données!$F180*E$4 -> 1616 | R180: =Données!$F180*F$4 -> 1535.2 | S180: =Données!$F180*G$4 -> 1454.4 | T180: =Données!$F180*H$4 -> 1373.6
B181: 4217 | C181: Héron | D181: Héron | E181: 2121 | F181: 1636 | G181: =Données!$E181*B$4 -> 2439.15 | H181: =Données!$E181*C$4 -> 2333.1 | I181: =Données!$E181*D$4 -> 2227.05 | J181: =Données!$E181*E$4 -> 2121 | K181: =Données!$E181*F$4 -> 2014.95 | L181: =Données!$E181*G$4 -> 1908.9 | M181: =Données!$E181*H$4 -> 1802.85 | N181: =Données!$F181*B$4 -> 1881.4 | O181: =Données!$F181*C$4 -> 1799.6 | P181: =Données!$F181*D$4 -> 1717.8 | Q181: =Données!$F181*E$4 -> 1636 | R181: =Données!$F181*F$4 -> 1554.2 | S181: =Données!$F181*G$4 -> 1472.4 | T181: =Données!$F181*H$4 -> 1390.6
B182: 4217 | C182: Lavoir | D182: Héron | E182: 2121 | F182: 1636 | G182: =Données!$E182*B$4 -> 2439.15 | H182: =Données!$E182*C$4 -> 2333.1 | I182: =Données!$E182*D$4 -> 2227.05 | J182: =Données!$E182*E$4 -> 2121 | K182: =Données!$E182*F$4 -> 2014.95 | L182: =Données!$E182*G$4 -> 1908.9 | M182: =Données!$E182*H$4 -> 1802.85 | N182: =Données!$F182*B$4 -> 1881.4 | O182: =Données!$F182*C$4 -> 1799.6 | P182: =Données!$F182*D$4 -> 1717.8 | Q182: =Données!$F182*E$4 -> 1636 | R182: =Données!$F182*F$4 -> 1554.2 | S182: =Données!$F182*G$4 -> 1472.4 | T182: =Données!$F182*H$4 -> 1390.6
B183: 4217 | C183: Waret-L'evêque | D183: Héron | E183: 2121 | F183: 1636 | G183: =Données!$E183*B$4 -> 2439.15 | H183: =Données!$E183*C$4 -> 2333.1 | I183: =Données!$E183*D$4 -> 2227.05 | J183: =Données!$E183*E$4 -> 2121 | K183: =Données!$E183*F$4 -> 2014.95 | L183: =Données!$E183*G$4 -> 1908.9 | M183: =Données!$E183*H$4 -> 1802.85 | N183: =Données!$F183*B$4 -> 1881.4 | O183: =Données!$F183*C$4 -> 1799.6 | P183: =Données!$F183*D$4 -> 1717.8 | Q183: =Données!$F183*E$4 -> 1636 | R183: =Données!$F183*F$4 -> 1554.2 | S183: =Données!$F183*G$4 -> 1472.4 | T183: =Données!$F183*H$4 -> 1390.6
B184: 4218 | C184: Couthuin | D184: Héron | E184: 2121 | F184: 1636 | G184: =Données!$E184*B$4 -> 2439.15 | H184: =Données!$E184*C$4 -> 2333.1 | I184: =Données!$E184*D$4 -> 2227.05 | J184: =Données!$E184*E$4 -> 2121 | K184: =Données!$E184*F$4 -> 2014.95 | L184: =Données!$E184*G$4 -> 1908.9 | M184: =Données!$E184*H$4 -> 1802.85 | N184: =Données!$F184*B$4 -> 1881.4 | O184: =Données!$F184*C$4 -> 1799.6 | P184: =Données!$F184*D$4 -> 1717.8 | Q184: =Données!$F184*E$4 -> 1636 | R184: =Données!$F184*F$4 -> 1554.2 | S184: =Données!$F184*G$4 -> 1472.4 | T184: =Données!$F184*H$4 -> 1390.6
B185: 4219 | C185: Acosse | D185: Wasseiges | E185: 2338 | F185: 1631 | G185: =Données!$E185*B$4 -> 2688.7 | H185: =Données!$E185*C$4 -> 2571.8 | I185: =Données!$E185*D$4 -> 2454.9 | J185: =Données!$E185*E$4 -> 2338 | K185: =Données!$E185*F$4 -> 2221.1 | L185: =Données!$E185*G$4 -> 2104.2 | M185: =Données!$E185*H$4 -> 1987.3 | N185: =Données!$F185*B$4 -> 1875.65 | O185: =Données!$F185*C$4 -> 1794.1 | P185: =Données!$F185*D$4 -> 1712.55 | Q185: =Données!$F185*E$4 -> 1631 | R185: =Données!$F185*F$4 -> 1549.45 | S185: =Données!$F185*G$4 -> 1467.9 | T185: =Données!$F185*H$4 -> 1386.35
B186: 4219 | C186: Ambresin | D186: Wasseiges | E186: 2338 | F186: 1631 | G186: =Données!$E186*B$4 -> 2688.7 | H186: =Données!$E186*C$4 -> 2571.8 | I186: =Données!$E186*D$4 -> 2454.9 | J186: =Données!$E186*E$4 -> 2338 | K186: =Données!$E186*F$4 -> 2221.1 | L186: =Données!$E186*G$4 -> 2104.2 | M186: =Données!$E186*H$4 -> 1987.3 | N186: =Données!$F186*B$4 -> 1875.65 | O186: =Données!$F186*C$4 -> 1794.1 | P186: =Données!$F186*D$4 -> 1712.55 | Q186: =Données!$F186*E$4 -> 1631 | R186: =Données!$F186*F$4 -> 1549.45 | S186: =Données!$F186*G$4 -> 1467.9 | T186: =Données!$F186*H$4 -> 1386.35
B187: 4219 | C187: Meeffe | D187: Wasseiges | E187: 2338 | F187: 1631 | G187: =Données!$E187*B$4 -> 2688.7 | H187: =Données!$E187*C$4 -> 2571.8 | I187: =Données!$E187*D$4 -> 2454.9 | J187: =Données!$E187*E$4 -> 2338 | K187: =Données!$E187*F$4 -> 2221.1 | L187: =Données!$E187*G$4 -> 2104.2 | M187: =Données!$E187*H$4 -> 1987.3 | N187: =Données!$F187*B$4 -> 1875.65 | O187: =Données!$F187*C$4 -> 1794.1 | P187: =Données!$F187*D$4 -> 1712.55 | Q187: =Données!$F187*E$4 -> 1631 | R187: =Données!$F187*F$4 -> 1549.45 | S187: =Données!$F187*G$4 -> 1467.9 | T187: =Données!$F187*H$4 -> 1386.35
B188: 4219 | C188: Wasseiges | D188: Wasseiges | E188: 2338 | F188: 1631 | G188: =Données!$E188*B$4 -> 2688.7 | H188: =Données!$E188*C$4 -> 2571.8 | I188: =Données!$E188*D$4 -> 2454.9 | J188: =Données!$E188*E$4 -> 2338 | K188: =Données!$E188*F$4 -> 2221.1 | L188: =Données!$E188*G$4 -> 2104.2 | M188: =Données!$E188*H$4 -> 1987.3 | N188: =Données!$F188*B$4 -> 1875.65 | O188: =Données!$F188*C$4 -> 1794.1 | P188: =Données!$F188*D$4 -> 1712.55 | Q188: =Données!$F188*E$4 -> 1631 | R188: =Données!$F188*F$4 -> 1549.45 | S188: =Données!$F188*G$4 -> 1467.9 | T188: =Données!$F188*H$4 -> 1386.35
B189: 4250 | C189: Boëlhe | D189: Geer | E189: 2071 | F189: 1612 | G189: =Données!$E189*B$4 -> 2381.65 | H189: =Données!$E189*C$4 -> 2278.1 | I189: =Données!$E189*D$4 -> 2174.55 | J189: =Données!$E189*E$4 -> 2071 | K189: =Données!$E189*F$4 -> 1967.45 | L189: =Données!$E189*G$4 -> 1863.9 | M189: =Données!$E189*H$4 -> 1760.35 | N189: =Données!$F189*B$4 -> 1853.8 | O189: =Données!$F189*C$4 -> 1773.2 | P189: =Données!$F189*D$4 -> 1692.6 | Q189: =Données!$F189*E$4 -> 1612 | R189: =Données!$F189*F$4 -> 1531.4 | S189: =Données!$F189*G$4 -> 1450.8 | T189: =Données!$F189*H$4 -> 1370.2
B190: 4250 | C190: Geer | D190: Geer | E190: 2071 | F190: 1612 | G190: =Données!$E190*B$4 -> 2381.65 | H190: =Données!$E190*C$4 -> 2278.1 | I190: =Données!$E190*D$4 -> 2174.55 | J190: =Données!$E190*E$4 -> 2071 | K190: =Données!$E190*F$4 -> 1967.45 | L190: =Données!$E190*G$4 -> 1863.9 | M190: =Données!$E190*H$4 -> 1760.35 | N190: =Données!$F190*B$4 -> 1853.8 | O190: =Données!$F190*C$4 -> 1773.2 | P190: =Données!$F190*D$4 -> 1692.6 | Q190: =Données!$F190*E$4 -> 1612 | R190: =Données!$F190*F$4 -> 1531.4 | S190: =Données!$F190*G$4 -> 1450.8 | T190: =Données!$F190*H$4 -> 1370.2
B191: 4250 | C191: Hollogne-Sur-Geer | D191: Geer | E191: 2071 | F191: 1612 | G191: =Données!$E191*B$4 -> 2381.65 | H191: =Données!$E191*C$4 -> 2278.1 | I191: =Données!$E191*D$4 -> 2174.55 | J191: =Données!$E191*E$4 -> 2071 | K191: =Données!$E191*F$4 -> 1967.45 | L191: =Données!$E191*G$4 -> 1863.9 | M191: =Données!$E191*H$4 -> 1760.35 | N191: =Données!$F191*B$4 -> 1853.8 | O191: =Données!$F191*C$4 -> 1773.2 | P191: =Données!$F191*D$4 -> 1692.6 | Q191: =Données!$F191*E$4 -> 1612 | R191: =Données!$F191*F$4 -> 1531.4 | S191: =Données!$F191*G$4 -> 1450.8 | T191: =Données!$F191*H$4 -> 1370.2
B192: 4250 | C192: Lens-Saint-Servais | D192: Geer | E192: 2071 | F192: 1612 | G192: =Données!$E192*B$4 -> 2381.65 | H192: =Données!$E192*C$4 -> 2278.1 | I192: =Données!$E192*D$4 -> 2174.55 | J192: =Données!$E192*E$4 -> 2071 | K192: =Données!$E192*F$4 -> 1967.45 | L192: =Données!$E192*G$4 -> 1863.9 | M192: =Données!$E192*H$4 -> 1760.35 | N192: =Données!$F192*B$4 -> 1853.8 | O192: =Données!$F192*C$4 -> 1773.2 | P192: =Données!$F192*D$4 -> 1692.6 | Q192: =Données!$F192*E$4 -> 1612 | R192: =Données!$F192*F$4 -> 1531.4 | S192: =Données!$F192*G$4 -> 1450.8 | T192: =Données!$F192*H$4 -> 1370.2
B193: 4252 | C193: Omal | D193: Geer | E193: 2071 | F193: 1612 | G193: =Données!$E193*B$4 -> 2381.65 | H193: =Données!$E193*C$4 -> 2278.1 | I193: =Données!$E193*D$4 -> 2174.55 | J193: =Données!$E193*E$4 -> 2071 | K193: =Données!$E193*F$4 -> 1967.45 | L193: =Données!$E193*G$4 -> 1863.9 | M193: =Données!$E193*H$4 -> 1760.35 | N193: =Données!$F193*B$4 -> 1853.8 | O193: =Données!$F193*C$4 -> 1773.2 | P193: =Données!$F193*D$4 -> 1692.6 | Q193: =Données!$F193*E$4 -> 1612 | R193: =Données!$F193*F$4 -> 1531.4 | S193: =Données!$F193*G$4 -> 1450.8 | T193: =Données!$F193*H$4 -> 1370.2
B194: 4253 | C194: Darion | D194: Geer | E194: 2071 | F194: 1612 | G194: =Données!$E194*B$4 -> 2381.65 | H194: =Données!$E194*C$4 -> 2278.1 | I194: =Données!$E194*D$4 -> 2174.55 | J194: =Données!$E194*E$4 -> 2071 | K194: =Données!$E194*F$4 -> 1967.45 | L194: =Données!$E194*G$4 -> 1863.9 | M194: =Données!$E194*H$4 -> 1760.35 | N194: =Données!$F194*B$4 -> 1853.8 | O194: =Données!$F194*C$4 -> 1773.2 | P194: =Données!$F194*D$4 -> 1692.6 | Q194: =Données!$F194*E$4 -> 1612 | R194: =Données!$F194*F$4 -> 1531.4 | S194: =Données!$F194*G$4 -> 1450.8 | T194: =Données!$F194*H$4 -> 1370.2
B195: 4254 | C195: Ligney | D195: Geer | E195: 2071 | F195: 1612 | G195: =Données!$E195*B$4 -> 2381.65 | H195: =Données!$E195*C$4 -> 2278.1 | I195: =Données!$E195*D$4 -> 2174.55 | J195: =Données!$E195*E$4 -> 2071 | K195: =Données!$E195*F$4 -> 1967.45 | L195: =Données!$E195*G$4 -> 1863.9 | M195: =Données!$E195*H$4 -> 1760.35 | N195: =Données!$F195*B$4 -> 1853.8 | O195: =Données!$F195*C$4 -> 1773.2 | P195: =Données!$F195*D$4 -> 1692.6 | Q195: =Données!$F195*E$4 -> 1612 | R195: =Données!$F195*F$4 -> 1531.4 | S195: =Données!$F195*G$4 -> 1450.8 | T195: =Données!$F195*H$4 -> 1370.2
B196: 4257 | C196: Berloz | D196: Berloz | E196: 2060 | F196: 1591 | G196: =Données!$E196*B$4 -> 2369 | H196: =Données!$E196*C$4 -> 2266 | I196: =Données!$E196*D$4 -> 2163 | J196: =Données!$E196*E$4 -> 2060 | K196: =Données!$E196*F$4 -> 1957 | L196: =Données!$E196*G$4 -> 1854 | M196: =Données!$E196*H$4 -> 1751 | N196: =Données!$F196*B$4 -> 1829.65 | O196: =Données!$F196*C$4 -> 1750.1 | P196: =Données!$F196*D$4 -> 1670.55 | Q196: =Données!$F196*E$4 -> 1591 | R196: =Données!$F196*F$4 -> 1511.45 | S196: =Données!$F196*G$4 -> 1431.9 | T196: =Données!$F196*H$4 -> 1352.35
B197: 4257 | C197: Corswarem | D197: Berloz | E197: 2060 | F197: 1591 | G197: =Données!$E197*B$4 -> 2369 | H197: =Données!$E197*C$4 -> 2266 | I197: =Données!$E197*D$4 -> 2163 | J197: =Données!$E197*E$4 -> 2060 | K197: =Données!$E197*F$4 -> 1957 | L197: =Données!$E197*G$4 -> 1854 | M197: =Données!$E197*H$4 -> 1751 | N197: =Données!$F197*B$4 -> 1829.65 | O197: =Données!$F197*C$4 -> 1750.1 | P197: =Données!$F197*D$4 -> 1670.55 | Q197: =Données!$F197*E$4 -> 1591 | R197: =Données!$F197*F$4 -> 1511.45 | S197: =Données!$F197*G$4 -> 1431.9 | T197: =Données!$F197*H$4 -> 1352.35
B198: 4260 | C198: Avennes | D198: Braives | E198: 2066 | F198: 1597 | G198: =Données!$E198*B$4 -> 2375.9 | H198: =Données!$E198*C$4 -> 2272.6 | I198: =Données!$E198*D$4 -> 2169.3 | J198: =Données!$E198*E$4 -> 2066 | K198: =Données!$E198*F$4 -> 1962.7 | L198: =Données!$E198*G$4 -> 1859.4 | M198: =Données!$E198*H$4 -> 1756.1 | N198: =Données!$F198*B$4 -> 1836.55 | O198: =Données!$F198*C$4 -> 1756.7 | P198: =Données!$F198*D$4 -> 1676.85 | Q198: =Données!$F198*E$4 -> 1597 | R198: =Données!$F198*F$4 -> 1517.15 | S198: =Données!$F198*G$4 -> 1437.3 | T198: =Données!$F198*H$4 -> 1357.45
B199: 4260 | C199: Braives | D199: Braives | E199: 2066 | F199: 1597 | G199: =Données!$E199*B$4 -> 2375.9 | H199: =Données!$E199*C$4 -> 2272.6 | I199: =Données!$E199*D$4 -> 2169.3 | J199: =Données!$E199*E$4 -> 2066 | K199: =Données!$E199*F$4 -> 1962.7 | L199: =Données!$E199*G$4 -> 1859.4 | M199: =Données!$E199*H$4 -> 1756.1 | N199: =Données!$F199*B$4 -> 1836.55 | O199: =Données!$F199*C$4 -> 1756.7 | P199: =Données!$F199*D$4 -> 1676.85 | Q199: =Données!$F199*E$4 -> 1597 | R199: =Données!$F199*F$4 -> 1517.15 | S199: =Données!$F199*G$4 -> 1437.3 | T199: =Données!$F199*H$4 -> 1357.45
B200: 4260 | C200: Ville-En-Hesbaye | D200: Braives | E200: 2066 | F200: 1597 | G200: =Données!$E200*B$4 -> 2375.9 | H200: =Données!$E200*C$4 -> 2272.6 | I200: =Données!$E200*D$4 -> 2169.3 | J200: =Données!$E200*E$4 -> 2066 | K200: =Données!$E200*F$4 -> 1962.7 | L200: =Données!$E200*G$4 -> 1859.4 | M200: =Données!$E200*H$4 -> 1756.1 | N200: =Données!$F200*B$4 -> 1836.55 | O200: =Données!$F200*C$4 -> 1756.7 | P200: =Données!$F200*D$4 -> 1676.85 | Q200: =Données!$F200*E$4 -> 1597 | R200: =Données!$F200*F$4 -> 1517.15 | S200: =Données!$F200*G$4 -> 1437.3 | T200: =Données!$F200*H$4 -> 1357.45
B201: 4260 | C201: Fallais | D201: Braives | E201: 2066 | F201: 1597 | G201: =Données!$E201*B$4 -> 2375.9 | H201: =Données!$E201*C$4 -> 2272.6 | I201: =Données!$E201*D$4 -> 2169.3 | J201: =Données!$E201*E$4 -> 2066 | K201: =Données!$E201*F$4 -> 1962.7 | L201: =Données!$E201*G$4 -> 1859.4 | M201: =Données!$E201*H$4 -> 1756.1 | N201: =Données!$F201*B$4 -> 1836.55 | O201: =Données!$F201*C$4 -> 1756.7 | P201: =Données!$F201*D$4 -> 1676.85 | Q201: =Données!$F201*E$4 -> 1597 | R201: =Données!$F201*F$4 -> 1517.15 | S201: =Données!$F201*G$4 -> 1437.3 | T201: =Données!$F201*H$4 -> 1357.45
... 3850 more rows

Sheet listes (hidden)
B2: type | C2: PEB avant | D2: PEB après | E2: CP | F2: finition avant | G2: finition après | H2: VecteursEnergétiques | I2: Prix énergie | J2: Column1 | K2: PV | L2: Column2
B3: Maison | C3: [Choisir une valeur] | D3: [Choisir une valeur] | E3: [Choisir une valeur] | F3: [Choisir une valeur] | G3: [Choisir une valeur] | H3: Aucun | I3: =CalculFinancier!E36 -> 0.107 | J3: pas d'application | K3: [Choisir une valeur] | L3: [Choisir une valeur]
B4: Appartement | C4: G | D4: A | E4: 1300 | F4: 1- premium | G4: 1- premium | H4: Mazout | I4: =I3 -> 0.107 | J4: litres/an | K4: panneaux | L4: Oui
C5: F | D5: B | E5: 1301 | F5: 2 - rénové | G5: 2 - rénové | H5: Gaz | I5: =CalculFinancier!E37 -> 0.393 | J5: kWh/an | K5: kWc | L5: Non
C6: E | D6: C | E6: 1310 | F6: 3 - correctes | G6: 3 - correctes | H6: Electricité | I6: =CalculFinancier!E38 -> 0.045 | J6: kWh/an
C7: D | D7: D | E7: 1315 | F7: 4 - à rafraîchir | G7: 4 - à rafraîchir | H7: Bois (pellets) | I7: 0.1 | J7: kg/an
C8: C | D8: E | E8: 1320 | F8: 5 - à rénover | G8: 5 - à rénover | H8: Bois (buches) | J8: stères/an
C9: B | D9: F | E9: 1325
C10: A | D10: G | E10: 1330
E11: 1331
E12: 1332
E13: 1340
E14: 1341
E15: 1342
E16: 1348
E17: 1350
E18: 1357
E19: 1360
E20: 1367
E21: 1370
E22: 1380
E23: 1390
E24: 1400
E25: 1401
E26: 1402
E27: 1404
E28: 1410
E29: 1420
E30: 1421
E31: 1428
E32: 1430
E33: 1435
E34: 1440
E35: 1450
E36: 1457
E37: 1460
E38: 1461
E39: 1470
E40: 1471
E41: 1472
E42: 1473
E43: 1474
E44: 1476
E45: 1480
E46: 1490
E47: 1495
E48: 4000
E49: 4020
E50: 4030
E51: 4031
E52: 4032
E53: 4040
E54: 4041
E55: 4042
E56: 4050
E57: 4051
E58: 4052
E59: 4053
E60: 4100
E61: 4101
E62: 4102
E63: 4120
E64: 4121
E65: 4122
E66: 4130
E67: 4140
E68: 4141
E69: 4160
E70: 4161
E71: 4162
E72: 4163
E73: 4170
E74: 4171
E75: 4180
E76: 4181
E77: 4190
E78: 4210
E79: 4217
E80: 4218
E81: 4219
E82: 4250
E83: 4252
E84: 4253
E85: 4254
E86: 4257
E87: 4260
E88: 4261
E89: 4263
E90: 4280
E91: 4287
E92: 4300
E93: 4317
E94: 4340
E95: 4342
E96: 4347
E97: 4350
E98: 4351
E99: 4357
E100: 4360
E101: 4367
E102: 4400
E103: 4420
E104: 4430
E105: 4431
E106: 4432
E107: 4450
E108: 4451
E109: 4452
E110: 4453
E111: 4458
E112: 4460
E113: 4470
E114: 4480
E115: 4500
E116: 4520
E117: 4530
E118: 4537
E119: 4540
E120: 4550
E121: 4557
E122: 4560
E123: 4570
E124: 4577
E125: 4590
E126: 4600
E127: 4601
E128: 4602
E129: 4606
E130: 4607
E131: 4608
E132: 4610
E133: 4620
E134: 4621
E135: 4623
E136: 4624
E137: 4630
E138: 4631
E139: 4632
E140: 4633
E141: 4650
E142: 4651
E143: 4652
E144: 4653
E145: 4654
E146: 4670
E147: 4671
E148: 4672
E149: 4680
E150: 4681
E151: 4682
E152: 4683
E153: 4684
E154: 4690
E155: 4700
E156: 4701
E157: 4710
E158: 4711
E159: 4720
E160: 4721
E161: 4728
E162: 4730
E163: 4731
E164: 4750
E165: 4760
E166: 4761
E167: 4770
E168: 4771
E169: 4780
E170: 4782
E171: 4783
E172: 4784
E173: 4790
E174: 4791
E175: 4800
E176: 4801
E177: 4802
E178: 4820
E179: 4821
E180: 4830
E181: 4831
E182: 4834
E183: 4837
E184: 4840
E185: 4841
E186: 4845
E187: 4850
E188: 4851
E189: 4852
E190: 4860
E191: 4861
E192: 4870
E193: 4877
E194: 4880
E195: 4890
E196: 4900
E197: 4910
E198: 4920
E199: 4950
E200: 4960
E201: 4970
... 406 more rows

Sheet 1.t.de.fi (hidden)
P1: Tableaux de financement
Q2: calculé via macro
Q3: calcul dans la feuille
Q4: Eléments liés à une autre feuille
P6: Taux d'emprunt | Q6: =CalculFinancier!$E$43 -> 0.04
P7: Durée de l'emprunt | Q7: =Données!$AC$17 -> 240 | R7: mois
P8: Montant à financer (hors prime) | Q8: =CalculFinancier!$E$31 -> 120000 | R8: €
O13: Années | P13: Mois | Q13: Capital restant du | R13: Mensualité (K+i) | S13: dont K | T13: dont i | V13: Années | W13: Capital remboursé | X13: Intérêts remboursés | Y13: Annuités
O15: 1 | P15: 1 | Q15: 119672.8236 | R15: =($Q$8*$Q$6/12)/(1-(1+($Q$6/12))^-$Q$7) -> 727.1763952 | S15: 327.1763952 | T15: 400 | V15: 1 | W15: =SUM(S15:S26) -> 3998.901344 | X15: =SUM(T15:T26) -> 4727.215398 | Y15: =W15+X15 -> 8726.116742
P16: 2 | Q16: =Q15-S16 -> 119344.5566 | R16: =IF(T16=0,0,$R$15) -> 727.1763952 | S16: =IF(T16=0,0,R16-T16) -> 328.2669831 | T16: =IF(($Q$6/12)*Q15<=0,0,($Q$6/12)*Q15) -> 398.909412 | V16: 2 | W16: =SUM(S27:S38) -> 4161.822754 | X16: =SUM(T27:T38) -> 4564.293987 | Y16: =W16+X16 -> 8726.116742
P17: 3 | Q17: =Q16-S17 -> 119015.1954 | R17: =IF(T17=0,0,$R$15) -> 727.1763952 | S17: =IF(T17=0,0,R17-T17) -> 329.3612064 | T17: =IF(($Q$6/12)*Q16<=0,0,($Q$6/12)*Q16) -> 397.8151887 | V17: 3 | W17: =SUM(S39:S50) -> 4331.381835 | X17: =SUM(T39:T50) -> 4394.734907 | Y17: 8726.116742
P18: 4 | Q18: 118684.7363 | R18: 727.1763952 | S18: 330.4590771 | T18: 396.7173181 | V18: 4 | W18: =SUM(S51:S62) -> 4507.849014 | X18: =SUM(T51:T62) -> 4218.267728 | Y18: =W18+X18 -> 8726.116742
P19: 5 | Q19: 118353.1757 | R19: 727.1763952 | S19: 331.5606074 | T19: 395.6157878 | V19: 5 | W19: =SUM(S63:S74) -> 4691.505738 | X19: =SUM(T63:T74) -> 4034.611004 | Y19: 8726.116742
P20: 6 | Q20: 118020.5099 | R20: 727.1763952 | S20: 332.6658094 | T20: 394.5105858 | V20: 6 | W20: =SUM(S75:S86) -> 4882.64492 | X20: =SUM(T75:T86) -> 3843.471822 | Y20: =W20+X20 -> 8726.116742
P21: 7 | Q21: 117686.7352 | R21: 727.1763952 | S21: 333.7746954 | T21: 393.4016997 | V21: 7 | W21: =SUM(S87:S98) -> 5081.571408 | X21: =SUM(T87:T98) -> 3644.545334 | Y21: =W21+X21 -> 8726.116742
P22: 8 | Q22: 117351.8479 | R22: 727.1763952 | S22: 334.8872777 | T22: 392.2891174 | V22: 8 | W22: =SUM(S99:S110) -> 5288.602467 | X22: =SUM(T99:T110) -> 3437.514275 | Y22: 8726.116742
P23: 9 | Q23: 117015.8444 | R23: 727.1763952 | S23: 336.0035687 | T23: 391.1728265 | V23: 9 | W23: =SUM(S111:S122) -> 5504.068292 | X23: =SUM(T111:T122) -> 3222.04845 | Y23: 8726.116742
P24: 10 | Q24: 116678.7208 | R24: 727.1763952 | S24: 337.1235806 | T24: 390.0528146 | V24: 10 | W24: =SUM(S123:S134) -> 5728.312526 | X24: =SUM(T123:T134) -> 2997.804216 | Y24: 8726.116742
P25: 11 | Q25: 116340.4735 | R25: 727.1763952 | S25: 338.2473258 | T25: 388.9290693 | V25: 11 | W25: =SUM(S135:S146) -> 5961.692817 | X25: =SUM(T135:T146) -> 2764.423925 | Y25: 8726.116742
P26: 12 | Q26: 116001.0987 | R26: 727.1763952 | S26: 339.3748169 | T26: 387.8015782 | V26: 12 | W26: =SUM(S147:S158) -> 6204.581381 | X26: =SUM(T147:T158) -> 2521.535361 | Y26: 8726.116742
O27: 2 | P27: 13 | Q27: 115660.5926 | R27: 727.1763952 | S27: 340.5060663 | T27: 386.6703289 | V27: 13 | W27: =SUM(S159:S170) -> 6457.365599 | X27: =SUM(T159:T170) -> 2268.751143 | Y27: 8726.116742
P28: 14 | Q28: 115318.9515 | R28: 727.1763952 | S28: 341.6410865 | T28: 385.5353086 | V28: 14 | W28: =SUM(S171:S182) -> 6720.448637 | X28: =SUM(T171:T182) -> 2005.668105 | Y28: 8726.116742
P29: 15 | Q29: 114976.1716 | R29: 727.1763952 | S29: 342.7798901 | T29: 384.396505 | V29: 15 | W29: =SUM(S183:S194) -> 6994.250084 | X29: =SUM(T183:T194) -> 1731.866658 | Y29: 8726.116742
P30: 16 | Q30: 114632.2491 | R30: 727.1763952 | S30: 343.9224898 | T30: 383.2539054 | V30: 16 | W30: =SUM(S195:S206) -> 7279.206624 | X30: =SUM(T195:T206) -> 1446.910118 | Y30: 8726.116742
P31: 17 | Q31: 114287.1802 | R31: 727.1763952 | S31: 345.0688981 | T31: 382.1074971 | V31: 17 | W31: =SUM(S207:S218) -> 7575.772733 | X31: =SUM(T207:T218) -> 1150.344009 | Y31: 8726.116742
P32: 18 | Q32: 113940.9611 | R32: 727.1763952 | S32: 346.2191277 | T32: 380.9572674 | V32: 18 | W32: =SUM(S219:S230) -> 7884.421403 | X32: =SUM(T219:T230) -> 841.6953392 | Y32: 8726.116742
P33: 19 | Q33: 113593.5879 | R33: 727.1763952 | S33: 347.3731915 | T33: 379.8032037 | V33: 19 | W33: =SUM(S231:S242) -> 8205.644896 | X33: =SUM(T231:T242) -> 520.4718463 | Y33: 8726.116742
P34: 20 | Q34: 113245.0568 | R34: 727.1763952 | S34: 348.5311021 | T34: 378.645293 | V34: 20 | W34: =SUM(S243:S254) -> 8539.955529 | X34: =SUM(T243:T254) -> 186.1612126 | Y34: 8726.116742
P35: 21 | Q35: 112895.3639 | R35: 727.1763952 | S35: 349.6928725 | T35: 377.4835227 | V35: Total | W35: =SUM(W15:W34) -> 120000 | X35: =SUM(X15:X34) -> 54522.33484 | Y35: =SUM(Y15:Y34) -> 174522.3348
P36: 22 | Q36: 112544.5054 | R36: 727.1763952 | S36: 350.8585154 | T36: 376.3178798
P37: 23 | Q37: 112192.4774 | R37: 727.1763952 | S37: 352.0280438 | T37: 375.1483514
P38: 24 | Q38: 111839.2759 | R38: 727.1763952 | S38: 353.2014706 | T38: 373.9749246
O39: 3 | P39: 25 | Q39: 111484.8971 | R39: 727.1763952 | S39: 354.3788088 | T39: 372.7975863
P40: 26 | Q40: 111129.337 | R40: 727.1763952 | S40: 355.5600715 | T40: 371.6163236
P41: 27 | Q41: 110772.5917 | R41: 727.1763952 | S41: 356.7452718 | T41: 370.4311234
P42: 28 | Q42: 110414.6573 | R42: 727.1763952 | S42: 357.9344227 | T42: 369.2419725
P43: 29 | Q43: 110055.5298 | R43: 727.1763952 | S43: 359.1275374 | T43: 368.0488578
P44: 30 | Q44: 109695.2052 | R44: 727.1763952 | S44: 360.3246292 | T44: 366.851766
P45: 31 | Q45: 109333.6794 | R45: 727.1763952 | S45: 361.5257113 | T45: 365.6506839
P46: 32 | Q46: 108970.9487 | R46: 727.1763952 | S46: 362.730797 | T46: 364.4455982
P47: 33 | Q47: 108607.0088 | R47: 727.1763952 | S47: 363.9398997 | T47: 363.2364955
P48: 34 | Q48: 108241.8557 | R48: 727.1763952 | S48: 365.1530327 | T48: 362.0233625
P49: 35 | Q49: 107875.4855 | R49: 727.1763952 | S49: 366.3702094 | T49: 360.8061857
P50: 36 | Q50: 107507.8941 | R50: 727.1763952 | S50: 367.5914435 | T50: 359.5849517
O51: 4 | P51: 37 | Q51: 107139.0773 | R51: 727.1763952 | S51: 368.8167483 | T51: 358.3596469
P52: 38 | Q52: 106769.0312 | R52: 727.1763952 | S52: 370.0461374 | T52: 357.1302577
P53: 39 | Q53: 106397.7516 | R53: 727.1763952 | S53: 371.2796246 | T53: 355.8967706
P54: 40 | Q54: 106025.2343 | R54: 727.1763952 | S54: 372.5172233 | T54: 354.6591719
P55: 41 | Q55: 105651.4754 | R55: 727.1763952 | S55: 373.7589474 | T55: 353.4174478
P56: 42 | Q56: 105276.4706 | R56: 727.1763952 | S56: 375.0048105 | T56: 352.1715846
P57: 43 | Q57: 104900.2157 | R57: 727.1763952 | S57: 376.2548266 | T57: 350.9215686
P58: 44 | Q58: 104522.7067 | R58: 727.1763952 | S58: 377.5090093 | T58: 349.6673858
P59: 45 | Q59: 104143.9394 | R59: 727.1763952 | S59: 378.7673727 | T59: 348.4090225
P60: 46 | Q60: 103763.9094 | R60: 727.1763952 | S60: 380.0299306 | T60: 347.1464646
P61: 47 | Q61: 103382.6127 | R61: 727.1763952 | S61: 381.296697 | T61: 345.8796981
P62: 48 | Q62: 103000.0451 | R62: 727.1763952 | S62: 382.567686 | T62: 344.6087091
O63: 5 | P63: 49 | Q63: 102616.2021 | R63: 727.1763952 | S63: 383.8429116 | T63: 343.3334835
P64: 50 | Q64: 102231.0798 | R64: 727.1763952 | S64: 385.122388 | T64: 342.0540071
P65: 51 | Q65: 101844.6736 | R65: 727.1763952 | S65: 386.4061293 | T65: 340.7702658
P66: 52 | Q66: 101456.9795 | R66: 727.1763952 | S66: 387.6941497 | T66: 339.4822454
P67: 53 | Q67: 101067.993 | R67: 727.1763952 | S67: 388.9864636 | T67: 338.1899316
P68: 54 | Q68: 100677.7099 | R68: 727.1763952 | S68: 390.2830851 | T68: 336.89331
P69: 55 | Q69: 100286.1259 | R69: 727.1763952 | S69: 391.5840287 | T69: 335.5923664
P70: 56 | Q70: 99893.23659 | R70: 727.1763952 | S70: 392.8893088 | T70: 334.2870863
P71: 57 | Q71: 99499.03765 | R71: 727.1763952 | S71: 394.1989399 | T71: 332.9774553
P72: 58 | Q72: 99103.52471 | R72: 727.1763952 | S72: 395.5129363 | T72: 331.6634588
P73: 59 | Q73: 98706.6934 | R73: 727.1763952 | S73: 396.8313128 | T73: 330.3450824
P74: 60 | Q74: 98308.53932 | R74: 727.1763952 | S74: 398.1540838 | T74: 329.0223113
O75: 6 | P75: 61 | Q75: 97909.05805 | R75: 727.1763952 | S75: 399.4812641 | T75: 327.6951311
P76: 62 | Q76: 97508.24518 | R76: 727.1763952 | S76: 400.8128683 | T76: 326.3635268
P77: 63 | Q77: 97106.09627 | R77: 727.1763952 | S77: 402.1489112 | T77: 325.0274839
P78: 64 | Q78: 96702.60686 | R78: 727.1763952 | S78: 403.4894076 | T78: 323.6869876
P79: 65 | Q79: 96297.77249 | R79: 727.1763952 | S79: 404.8343723 | T79: 322.3420229
P80: 66 | Q80: 95891.58867 | R80: 727.1763952 | S80: 406.1838202 | T80: 320.992575
P81: 67 | Q81: =Q80-S81 -> 95484.05091 | R81: =IF(T81=0,0,$R$15) -> 727.1763952 | S81: =IF(T81=0,0,R81-T81) -> 407.5377663 | T81: =IF(($Q$6/12)*Q80<=0,0,($Q$6/12)*Q80) -> 319.6386289
P82: 68 | Q82: 95075.15468 | R82: 727.1763952 | S82: 408.8962255 | T82: 318.2801697
P83: 69 | Q83: 94664.89547 | R83: 727.1763952 | S83: 410.2592129 | T83: 316.9171823
P84: 70 | Q84: 94253.26872 | R84: 727.1763952 | S84: 411.6267436 | T84: 315.5496516
P85: 71 | Q85: 93840.26989 | R85: 727.1763952 | S85: 412.9988327 | T85: 314.1775624
P86: 72 | Q86: 93425.8944 | R86: 727.1763952 | S86: 414.3754955 | T86: 312.8008996
O87: 7 | P87: 73 | Q87: 93010.13765 | R87: 727.1763952 | S87: 415.7567472 | T87: 311.419648
P88: 74 | Q88: 92592.99505 | R88: 727.1763952 | S88: 417.142603 | T88: 310.0337922
P89: 75 | Q89: 92174.46197 | R89: 727.1763952 | S89: 418.5330783 | T89: 308.6433168
P90: 76 | Q90: 91754.53378 | R90: 727.1763952 | S90: 419.9281886 | T90: 307.2482066
P91: 77 | Q91: 91333.20583 | R91: 727.1763952 | S91: 421.3279492 | T91: 305.8484459
P92: 78 | Q92: 90910.47345 | R92: 727.1763952 | S92: 422.7323757 | T92: 304.4440194
P93: 79 | Q93: 90486.33197 | R93: 727.1763952 | S93: 424.1414836 | T93: 303.0349115
P94: 80 | Q94: 90060.77668 | R94: 727.1763952 | S94: 425.5552886 | T94: 301.6211066
P95: 81 | Q95: 89633.80287 | R95: 727.1763952 | S95: 426.9738062 | T95: 300.2025889
P96: 82 | Q96: 89205.40582 | R96: 727.1763952 | S96: 428.3970522 | T96: 298.7793429
P97: 83 | Q97: 88775.58078 | R97: 727.1763952 | S97: 429.8250424 | T97: 297.3513527
P98: 84 | Q98: 88344.32299 | R98: 727.1763952 | S98: 431.2577926 | T98: 295.9186026
O99: 8 | P99: 85 | Q99: 87911.62767 | R99: 727.1763952 | S99: 432.6953185 | T99: 294.4810766
P100: 86 | Q100: 87477.49003 | R100: 727.1763952 | S100: 434.1376363 | T100: 293.0387589
P101: 87 | Q101: 87041.90527 | R101: 727.1763952 | S101: 435.5847617 | T101: 291.5916334
P102: 88 | Q102: 86604.86856 | R102: 727.1763952 | S102: 437.0367109 | T102: 290.1396842
P103: 89 | Q103: 86166.37506 | R103: 727.1763952 | S103: 438.4935 | T103: 288.6828952
P104: 90 | Q104: 85726.41992 | R104: 727.1763952 | S104: 439.955145 | T104: 287.2212502
P105: 91 | Q105: 85284.99825 | R105: 727.1763952 | S105: 441.4216621 | T105: 285.7547331
P106: 92 | Q106: 84842.10519 | R106: 727.1763952 | S106: 442.8930676 | T106: 284.2833275
P107: 93 | Q107: 84397.73581 | R107: 727.1763952 | S107: 444.3693779 | T107: 282.8070173
P108: 94 | Q108: 83951.8852 | R108: 727.1763952 | S108: 445.8506091 | T108: 281.325786
P109: 95 | Q109: 83504.54842 | R109: 727.1763952 | S109: 447.3367778 | T109: 279.8396173
P110: 96 | Q110: 83055.72052 | R110: 727.1763952 | S110: 448.8279004 | T110: 278.3484947
O111: 9 | P111: 97 | Q111: 82605.39653 | R111: 727.1763952 | S111: 450.3239934 | T111: 276.8524017
P112: 98 | Q112: 82153.57145 | R112: 727.1763952 | S112: 451.8250734 | T112: 275.3513218
P113: 99 | Q113: 81700.2403 | R113: 727.1763952 | S113: 453.331157 | T113: 273.8452382
P114: 100 | Q114: 81245.39804 | R114: 727.1763952 | S114: 454.8422608 | T114: 272.3341343
P115: 101 | Q115: 80789.03963 | R115: 727.1763952 | S115: 456.3584017 | T115: 270.8179935
P116: 102 | Q116: 80331.16004 | R116: 727.1763952 | S116: 457.8795964 | T116: 269.2967988
P117: 103 | Q117: 79871.75418 | R117: 727.1763952 | S117: 459.4058617 | T117: 267.7705335
P118: 104 | Q118: 79410.81696 | R118: 727.1763952 | S118: 460.9372146 | T118: 266.2391806
P119: 105 | Q119: 78948.34329 | R119: 727.1763952 | S119: 462.473672 | T119: 264.7027232
P120: 106 | Q120: 78484.32804 | R120: 727.1763952 | S120: 464.0152509 | T120: 263.1611443
P121: 107 | Q121: 78018.76607 | R121: 727.1763952 | S121: 465.5619684 | T121: 261.6144268
P122: 108 | Q122: 77551.65223 | R122: 727.1763952 | S122: 467.1138416 | T122: 260.0625536
O123: 10 | P123: 109 | Q123: 77082.98134 | R123: 727.1763952 | S123: 468.6708877 | T123: 258.5055074
P124: 110 | Q124: 76612.74822 | R124: 727.1763952 | S124: 470.233124 | T124: 256.9432711
P125: 111 | Q125: 76140.94765 | R125: 727.1763952 | S125: 471.8005678 | T125: 255.3758274
P126: 112 | Q126: 75667.57441 | R126: 727.1763952 | S126: 473.3732363 | T126: 253.8031588
P127: 113 | Q127: 75192.62327 | R127: 727.1763952 | S127: 474.9511471 | T127: 252.225248
P128: 114 | Q128: 74716.08895 | R128: 727.1763952 | S128: 476.5343176 | T128: 250.6420776
P129: 115 | Q129: 74237.96618 | R129: 727.1763952 | S129: 478.1227653 | T129: 249.0536298
P130: 116 | Q130: 73758.24967 | R130: 727.1763952 | S130: 479.7165079 | T130: 247.4598873
P131: 117 | Q131: 73276.93411 | R131: 727.1763952 | S131: 481.3155629 | T131: 245.8608322
P132: 118 | Q132: 72794.01416 | R132: 727.1763952 | S132: 482.9199481 | T132: 244.256447
P133: 119 | Q133: 72309.48448 | R133: 727.1763952 | S133: 484.5296813 | T133: 242.6467139
P134: 120 | Q134: 71823.3397 | R134: 727.1763952 | S134: 486.1447802 | T134: 241.0316149
O135: 11 | P135: 121 | Q135: 71335.57444 | R135: 727.1763952 | S135: 487.7652628 | T135: 239.4111323
P136: 122 | Q136: 70846.18329 | R136: 727.1763952 | S136: 489.391147 | T136: 237.7852481
P137: 123 | Q137: 70355.16084 | R137: 727.1763952 | S137: 491.0224509 | T137: 236.1539443
P138: 124 | Q138: 69862.50165 | R138: 727.1763952 | S138: 492.6591924 | T138: 234.5172028
P139: 125 | Q139: 69368.20026 | R139: 727.1763952 | S139: 494.3013897 | T139: 232.8750055
P140: 126 | Q140: 68872.2512 | R140: 727.1763952 | S140: 495.949061 | T140: 231.2273342
P141: 127 | Q141: 68374.64897 | R141: 727.1763952 | S141: 497.6022245 | T141: 229.5741707
P142: 128 | Q142: 67875.38808 | R142: 727.1763952 | S142: 499.2608986 | T142: 227.9154966
P143: 129 | Q143: 67374.46297 | R143: 727.1763952 | S143: 500.9251016 | T143: 226.2512936
P144: 130 | Q144: 66871.86812 | R144: 727.1763952 | S144: 502.5948519 | T144: 224.5815432
P145: 131 | Q145: =Q144-S145 -> 66367.59795 | R145: =IF(T145=0,0,$R$15) -> 727.1763952 | S145: =IF(T145=0,0,R145-T145) -> 504.2701681 | T145: =IF(($Q$6/12)*Q144<=0,0,($Q$6/12)*Q144) -> 222.9062271
P146: 132 | Q146: 65861.64689 | R146: 727.1763952 | S146: 505.9510686 | T146: 221.2253265
O147: 12 | P147: 133 | Q147: 65354.00931 | R147: 727.1763952 | S147: 507.6375722 | T147: 219.538823
P148: 134 | Q148: 64844.67962 | R148: 727.1763952 | S148: 509.3296974 | T148: 217.8466977
P149: 135 | Q149: 64333.65215 | R149: 727.1763952 | S149: 511.0274631 | T149: 216.1489321
P150: 136 | Q150: 63820.92126 | R150: 727.1763952 | S150: 512.730888 | T150: 214.4455072
P151: 137 | Q151: 63306.48127 | R151: 727.1763952 | S151: 514.4399909 | T151: 212.7364042
P152: 138 | Q152: 62790.32648 | R152: 727.1763952 | S152: 516.1547909 | T152: 211.0216042
P153: 139 | Q153: 62272.45118 | R153: 727.1763952 | S153: 517.8753069 | T153: 209.3010883
P154: 140 | Q154: 61752.84962 | R154: 727.1763952 | S154: 519.6015579 | T154: 207.5748373
P155: 141 | Q155: 61231.51605 | R155: 727.1763952 | S155: 521.3335631 | T155: 205.8428321
P156: 142 | Q156: 60708.44471 | R156: 727.1763952 | S156: 523.0713416 | T156: 204.1050535
P157: 143 | Q157: 60183.6298 | R157: 727.1763952 | S157: 524.8149128 | T157: 202.3614824
P158: 144 | Q158: 59657.0655 | R158: 727.1763952 | S158: 526.5642958 | T158: 200.6120993
O159: 13 | P159: 145 | Q159: 59128.74599 | R159: 727.1763952 | S159: 528.3195101 | T159: 198.856885
P160: 146 | Q160: 58598.66542 | R160: 727.1763952 | S160: 530.0805752 | T160: 197.09582
P161: 147 | Q161: 58066.81791 | R161: 727.1763952 | S161: 531.8475104 | T161: 195.3288847
P162: 148 | Q162: 57533.19757 | R162: 727.1763952 | S162: 533.6203355 | T162: 193.5560597
P163: 149 | Q163: 56997.7985 | R163: 727.1763952 | S163: 535.3990699 | T163: 191.7773252
P164: 150 | Q164: 56460.61477 | R164: 727.1763952 | S164: 537.1837335 | T164: 189.9926617
P165: 151 | Q165: 55921.64042 | R165: 727.1763952 | S165: 538.9743459 | T165: 188.2020492
P166: 152 | Q166: 55380.8695 | R166: 727.1763952 | S166: 540.7709271 | T166: 186.4054681
P167: 153 | Q167: 54838.296 | R167: 727.1763952 | S167: 542.5734968 | T167: 184.6028983
P168: 154 | Q168: 54293.91392 | R168: 727.1763952 | S168: 544.3820752 | T168: 182.79432
P169: 155 | Q169: 53747.71724 | R169: 727.1763952 | S169: 546.1966821 | T169: 180.9797131
P170: 156 | Q170: 53199.6999 | R170: 727.1763952 | S170: 548.0173377 | T170: 179.1590575
O171: 14 | P171: 157 | Q171: 52649.85584 | R171: 727.1763952 | S171: 549.8440621 | T171: 177.332333
P172: 158 | Q172: 52098.17897 | R172: 727.1763952 | S172: 551.6768757 | T172: 175.4995195
P173: 159 | Q173: 51544.66317 | R173: 727.1763952 | S173: 553.5157986 | T173: 173.6605966
P174: 160 | Q174: 50989.30232 | R174: 727.1763952 | S174: 555.3608513 | T174: 171.8155439
P175: 161 | Q175: 50432.09026 | R175: 727.1763952 | S175: 557.2120541 | T175: 169.9643411
P176: 162 | Q176: 49873.02084 | R176: 727.1763952 | S176: 559.0694276 | T176: 168.1069675
P177: 163 | Q177: 49312.08784 | R177: 727.1763952 | S177: 560.9329924 | T177: 166.2434028
P178: 164 | Q178: 48749.28507 | R178: 727.1763952 | S178: 562.802769 | T178: 164.3736261
P179: 165 | Q179: 48184.6063 | R179: 727.1763952 | S179: 564.6787782 | T179: 162.4976169
P180: 166 | Q180: 47618.04526 | R180: 727.1763952 | S180: 566.5610408 | T180: 160.6153543
P181: 167 | Q181: 47049.59568 | R181: 727.1763952 | S181: 568.4495776 | T181: 158.7268175
P182: 168 | Q182: 46479.25127 | R182: 727.1763952 | S182: 570.3444096 | T182: 156.8319856
O183: 15 | P183: 169 | Q183: 45907.00571 | R183: 727.1763952 | S183: 572.2455576 | T183: 154.9308376
P184: 170 | Q184: 45332.85267 | R184: 727.1763952 | S184: 574.1530428 | T184: 153.0233524
P185: 171 | Q185: 44756.78578 | R185: 727.1763952 | S185: 576.0668863 | T185: 151.1095089
P186: 172 | Q186: 44178.79867 | R186: 727.1763952 | S186: 577.9871092 | T186: 149.1892859
P187: 173 | Q187: 43598.88494 | R187: 727.1763952 | S187: 579.9137329 | T187: 147.2626622
P188: 174 | Q188: 43017.03816 | R188: 727.1763952 | S188: 581.8467787 | T188: 145.3296165
P189: 175 | Q189: 42433.25189 | R189: 727.1763952 | S189: 583.786268 | T189: 143.3901272
P190: 176 | Q190: 41847.51967 | R190: 727.1763952 | S190: 585.7322222 | T190: 141.444173
P191: 177 | Q191: 41259.83501 | R191: 727.1763952 | S191: 587.6846629 | T191: 139.4917322
P192: 178 | Q192: 40670.1914 | R192: 727.1763952 | S192: 589.6436118 | T192: 137.5327834
P193: 179 | Q193: 40078.5823 | R193: 727.1763952 | S193: 591.6090905 | T193: 135.5673047
P194: 180 | Q194: 39485.00118 | R194: 727.1763952 | S194: 593.5811208 | T194: 133.5952743
O195: 16 | P195: 181 | Q195: 38889.44146 | R195: 727.1763952 | S195: 595.5597245 | T195: 131.6166706
P196: 182 | Q196: 38291.89654 | R196: 727.1763952 | S196: 597.5449236 | T196: 129.6314715
P197: 183 | Q197: 37692.3598 | R197: 727.1763952 | S197: 599.53674 | T197: 127.6396551
P198: 184 | Q198: 37090.8246 | R198: 727.1763952 | S198: 601.5351958 | T198: 125.6411993
P199: 185 | Q199: 36487.28429 | R199: 727.1763952 | S199: 603.5403132 | T199: 123.636082
P200: 186 | Q200: 35881.73217 | R200: 727.1763952 | S200: 605.5521142 | T200: 121.624281
P201: 187 | Q201: 35274.16155 | R201: 727.1763952 | S201: 607.5706213 | T201: 119.6057739
P202: 188 | Q202: 34664.56569 | R202: 727.1763952 | S202: 609.5958567 | T202: 117.5805385
P203: 189 | Q203: 34052.93785 | R203: 727.1763952 | S203: 611.6278428 | T203: 115.5485523
P204: 190 | Q204: 33439.27125 | R204: 727.1763952 | S204: 613.6666023 | T204: 113.5097928
P205: 191 | Q205: 32823.55909 | R205: 727.1763952 | S205: 615.7121577 | T205: 111.4642375
P206: 192 | Q206: 32205.79456 | R206: 727.1763952 | S206: 617.7645315 | T206: 109.4118636
... 48 more rows

Sheet 1.t.de.fi (2) (hidden)
C2: Tableaux de financement
D6: Taux d'emprunt | E6: =CalculFinancier!E45 -> 1e-11 | I6: calculé via macro | P6: Taux d'emprunt | Q6: =CalculFinancier!$E$43 -> 0.04
D7: Durée de l'emprunt | E7: =Données!$AE$17 -> 240 | F7: mois | I7: calcul dans la feuille | P7: Durée de l'emprunt | Q7: =Données!$AF$17 -> 240 | R7: mois
D8: Montant à financer (avec prime) | E8: =CalculFinancier!H30 -> 60000 | F8: € | I8: Eléments liés à une autre feuille | P8: Montant à financer (avec prime) | Q8: =CalculFinancier!$I$30 -> 40000 | R8: €
C13: Années | D13: Mois | E13: Capital restant du | F13: Mensualité (K+i) | G13: dont K | H13: dont i | J13: Années | K13: Capital remboursé | L13: Intérêts remboursés | M13: Annuités | O13: Années | P13: Mois | Q13: Capital restant du | R13: Mensualité (K+i) | S13: dont K | T13: dont i | V13: Années | W13: Capital remboursé | X13: Intérêts remboursés | Y13: Annuités | AA13: Années | AB13: Mois | AC13: Capital restant du | AD13: Mensualité (K+i) | AE13: dont K | AF13: dont i | AH13: Années | AI13: Capital remboursé | AJ13: Intérêts remboursés | AK13: Annuités
C15: 1 | D15: 1 | E15: 59750.00002 | F15: =($E$8*$E$6/12)/(1-(1+($E$6/12))^-$E$7) -> 249.9999793 | G15: 249.9999793 | H15: 0 | J15: 1 | K15: =SUM(G15:G26) -> 2999.999752 | L15: =SUM(H15:H26) -> 0 | M15: =K15+L15 -> 2999.999752 | O15: 1 | P15: 1 | Q15: 39890.9412 | R15: =IF(Q8=0,0,($Q$8*$Q$6/12)/(1-(1+($Q$6/12))^-$Q$7)) -> 242.3921317 | S15: 109.0587984 | T15: 133.3333333 | V15: 1 | W15: =SUM(S15:S26) -> 1332.967115 | X15: =SUM(T15:T26) -> 1575.738466 | Y15: =W15+X15 -> 2908.705581 | AA15: 1 | AB15: 1 | AC15: =Q15+E15 -> 99640.94122 | AD15: =R15+F15 -> 492.392111 | AE15: =S15+G15 -> 359.0587777 | AF15: 133.3333333 | AH15: 1 | AI15: =W15+K15 -> 4332.966866 | AJ15: =X15+L15 -> 1575.738466 | AK15: =Y15+M15 -> 5908.705332
D16: 2 | E16: =E15-G16 -> 59500.00004 | F16: =$F$15 -> 249.9999793 | G16: =$G$15 -> 249.9999793 | H16: 0 | J16: 2 | K16: =SUM(G27:G38) -> 2999.999752 | L16: =SUM(H27:H38) -> 0 | M16: =K16+L16 -> 2999.999752 | P16: 2 | Q16: =Q15-S16 -> 39781.51887 | R16: =IF(T16=0,0,$R$15) -> 242.3921317 | S16: =IF(T16=0,0,R16-T16) -> 109.4223277 | T16: =IF(($Q$6/12)*Q15<=0,0,($Q$6/12)*Q15) -> 132.969804 | V16: 2 | W16: =SUM(S27:S38) -> 1387.274251 | X16: =SUM(T27:T38) -> 1521.431329 | Y16: =W16+X16 -> 2908.705581 | AB16: 2 | AC16: =Q16+E16 -> 99281.51892 | AD16: 492.392111 | AE16: 359.422307 | AF16: 132.969804 | AH16: 2 | AI16: =W16+K16 -> 4387.274003 | AJ16: 1521.431329 | AK16: 5908.705332
D17: 3 | E17: =E16-G17 -> 59250.00006 | F17: =$F$15 -> 249.9999793 | G17: =$G$15 -> 249.9999793 | H17: 0 | J17: 3 | K17: =SUM(G39:G50) -> 2999.999752 | L17: =SUM(H39:H50) -> 0 | M17: 2999.999752 | P17: 3 | Q17: =Q16-S17 -> 39671.73181 | R17: =IF(T17=0,0,$R$15) -> 242.3921317 | S17: =IF(T17=0,0,R17-T17) -> 109.7870688 | T17: =IF(($Q$6/12)*Q16<=0,0,($Q$6/12)*Q16) -> 132.6050629 | V17: 3 | W17: =SUM(S39:S50) -> 1443.793945 | X17: =SUM(T39:T50) -> 1464.911636 | Y17: 2908.705581 | AB17: 3 | AC17: =Q17+E17 -> 98921.73187 | AD17: 492.392111 | AE17: 359.7870481 | AF17: 132.6050629 | AH17: 3 | AI17: 4443.793697 | AJ17: 1464.911636 | AK17: 5908.705332
D18: 4 | E18: 59000.00008 | F18: 249.9999793 | G18: 249.9999793 | H18: 0 | J18: 4 | K18: =SUM(G51:G62) -> 2999.999752 | L18: =SUM(H51:H62) -> 0 | M18: 2999.999752 | P18: 4 | Q18: 39561.57878 | R18: 242.3921317 | S18: 110.1530257 | T18: 132.239106 | V18: 4 | W18: =SUM(S51:S62) -> 1502.616338 | X18: =SUM(T51:T62) -> 1406.089243 | Y18: 2908.705581 | AB18: 4 | AC18: 98561.57886 | AD18: 492.392111 | AE18: 360.153005 | AF18: 132.239106 | AH18: 4 | AI18: 4502.61609 | AJ18: 1406.089243 | AK18: 5908.705332
D19: 5 | E19: 58750.0001 | F19: 249.9999793 | G19: 249.9999793 | H19: 0 | J19: 5 | K19: =SUM(G63:G74) -> 2999.999752 | L19: =SUM(H63:H74) -> 0 | M19: 2999.999752 | P19: 5 | Q19: 39451.05858 | R19: 242.3921317 | S19: 110.5202025 | T19: 131.8719293 | V19: 5 | W19: =SUM(S63:S74) -> 1563.835246 | X19: =SUM(T63:T74) -> 1344.870335 | Y19: 2908.705581 | AB19: 5 | AC19: 98201.05868 | AD19: 492.392111 | AE19: 360.5201818 | AF19: 131.8719293 | AH19: 5 | AI19: 4563.834998 | AJ19: 1344.870335 | AK19: 5908.705332
D20: 6 | E20: 58500.00012 | F20: 249.9999793 | G20: 249.9999793 | H20: 0 | J20: 6 | K20: =SUM(G75:G86) -> 2999.999752 | L20: =SUM(H75:H86) -> 0 | M20: 2999.999752 | P20: 6 | Q20: 39340.16997 | R20: 242.3921317 | S20: 110.8886031 | T20: 131.5035286 | V20: 6 | W20: =SUM(S75:S86) -> 1627.548307 | X20: =SUM(T75:T86) -> 1281.157274 | Y20: =W20+X20 -> 2908.705581 | AB20: 6 | AC20: 97840.1701 | AD20: 492.392111 | AE20: 360.8885824 | AF20: 131.5035286 | AH20: 6 | AI20: 4627.548059 | AJ20: 1281.157274 | AK20: 5908.705332
D21: 7 | E21: 58250.00014 | F21: 249.9999793 | G21: 249.9999793 | H21: 0 | J21: 7 | K21: =SUM(G87:G98) -> 2999.999752 | L21: =SUM(H87:H98) -> 0 | M21: 2999.999752 | P21: 7 | Q21: 39228.91174 | R21: 242.3921317 | S21: 111.2582318 | T21: 131.1338999 | V21: 7 | W21: =SUM(S87:S98) -> 1693.857136 | X21: =SUM(T87:T98) -> 1214.848445 | Y21: =W21+X21 -> 2908.705581 | AB21: 7 | AC21: 97478.91189 | AD21: 492.392111 | AE21: 361.2582111 | AF21: 131.1338999 | AH21: 7 | AI21: 4693.856888 | AJ21: 1214.848445 | AK21: 5908.705332
D22: 8 | E22: 58000.00017 | F22: 249.9999793 | G22: 249.9999793 | H22: 0 | J22: 8 | K22: =SUM(G99:G110) -> 2999.999752 | L22: =SUM(H99:H110) -> 0 | M22: 2999.999752 | P22: 8 | Q22: 39117.28265 | R22: 242.3921317 | S22: 111.6290926 | T22: 130.7630391 | V22: 8 | W22: =SUM(S99:S110) -> 1762.867489 | X22: =SUM(T99:T110) -> 1145.838092 | Y22: 2908.705581 | AB22: 8 | AC22: 97117.28281 | AD22: 492.392111 | AE22: 361.6290719 | AF22: 130.7630391 | AH22: 8 | AI22: 4762.867241 | AJ22: 1145.838092 | AK22: =Y22+M22 -> 5908.705332
D23: 9 | E23: 57750.00019 | F23: 249.9999793 | G23: 249.9999793 | H23: 0 | J23: 9 | K23: =SUM(G111:G122) -> 2999.999752 | L23: =SUM(H111:H122) -> 0 | M23: 2999.999752 | P23: 9 | Q23: 39005.28146 | R23: 242.3921317 | S23: 112.0011896 | T23: 130.3909422 | V23: 9 | W23: =SUM(S111:S122) -> 1834.689431 | X23: =SUM(T111:T122) -> 1074.01615 | Y23: 2908.705581 | AB23: 9 | AC23: 96755.28165 | AD23: 492.392111 | AE23: 362.0011689 | AF23: 130.3909422 | AH23: 9 | AI23: 4834.689182 | AJ23: 1074.01615 | AK23: 5908.705332
D24: 10 | E24: 57500.00021 | F24: 249.9999793 | G24: 249.9999793 | H24: 0 | J24: 10 | K24: =SUM(G123:G134) -> 2999.999752 | L24: =SUM(H123:H134) -> 0 | M24: 2999.999752 | P24: 10 | Q24: 38892.90693 | R24: 242.3921317 | S24: 112.3745269 | T24: 130.0176049 | V24: 10 | W24: =SUM(S123:S134) -> 1909.437509 | X24: =SUM(T123:T134) -> 999.2680719 | Y24: 2908.705581 | AB24: 10 | AC24: 96392.90714 | AD24: 492.392111 | AE24: 362.3745062 | AF24: 130.0176049 | AH24: 10 | AI24: 4909.437261 | AJ24: 999.2680719 | AK24: 5908.705332
D25: 11 | E25: 57250.00023 | F25: 249.9999793 | G25: 249.9999793 | H25: 0 | J25: 11 | K25: =SUM(G135:G146) -> 2999.999752 | L25: =SUM(H135:H146) -> 0 | M25: 2999.999752 | P25: 11 | Q25: 38780.15782 | R25: 242.3921317 | S25: 112.7491086 | T25: 129.6430231 | V25: 11 | W25: =SUM(S135:S146) -> 1987.230939 | X25: =SUM(T135:T146) -> 921.4746416 | Y25: 2908.705581 | AB25: 11 | AC25: 96030.15805 | AD25: 492.392111 | AE25: 362.7490879 | AF25: 129.6430231 | AH25: 11 | AI25: 4987.230691 | AJ25: 921.4746416 | AK25: 5908.705332
D26: 12 | E26: 57000.00025 | F26: 249.9999793 | G26: 249.9999793 | H26: 0 | J26: 12 | K26: =SUM(G147:G158) -> 2999.999752 | L26: =SUM(H147:H158) -> 0 | M26: 2999.999752 | P26: 12 | Q26: 38667.03289 | R26: 242.3921317 | S26: 113.124939 | T26: 129.2671927 | V26: 12 | W26: =SUM(S147:S158) -> 2068.193794 | X26: =SUM(T147:T158) -> 840.5117871 | Y26: 2908.705581 | AB26: 12 | AC26: 95667.03313 | AD26: 492.392111 | AE26: 363.1249183 | AF26: 129.2671927 | AH26: 12 | AI26: 5068.193545 | AJ26: 840.5117871 | AK26: 5908.705332
C27: 2 | D27: 13 | E27: 56750.00027 | F27: 249.9999793 | G27: 249.9999793 | H27: 0 | J27: 13 | K27: =SUM(G159:G170) -> 2999.999752 | L27: =SUM(H159:H170) -> 0 | M27: 2999.999752 | O27: 2 | P27: 13 | Q27: 38553.53086 | R27: 242.3921317 | S27: 113.5020221 | T27: 128.8901096 | V27: 13 | W27: =SUM(S159:S170) -> 2152.4552 | X27: =SUM(T159:T170) -> 756.2503808 | Y27: 2908.705581 | AA27: 2 | AB27: 13 | AC27: 95303.53113 | AD27: 492.392111 | AE27: 363.5020014 | AF27: 128.8901096 | AH27: 13 | AI27: 5152.454952 | AJ27: 756.2503808 | AK27: 5908.705332
D28: 14 | E28: 56500.00029 | F28: 249.9999793 | G28: 249.9999793 | H28: 0 | J28: 14 | K28: =SUM(G171:G182) -> 2999.999752 | L28: =SUM(H171:H182) -> 0 | M28: 2999.999752 | P28: 14 | Q28: 38439.6505 | R28: 242.3921317 | S28: 113.8803622 | T28: 128.5117695 | V28: 14 | W28: =SUM(S171:S182) -> 2240.149546 | X28: =SUM(T171:T182) -> 668.5560349 | Y28: 2908.705581 | AB28: 14 | AC28: 94939.65079 | AD28: 492.392111 | AE28: 363.8803415 | AF28: 128.5117695 | AH28: 14 | AI28: 5240.149297 | AJ28: 668.5560349 | AK28: 5908.705332
D29: 15 | E29: 56250.00031 | F29: 249.9999793 | G29: 249.9999793 | H29: 0 | J29: 15 | K29: =SUM(G183:G194) -> 2999.999752 | L29: =SUM(H183:H194) -> 0 | M29: 2999.999752 | P29: 15 | Q29: 38325.39054 | R29: 242.3921317 | S29: 114.2599634 | T29: 128.1321683 | V29: 15 | W29: =SUM(S183:S194) -> 2331.416695 | X29: =SUM(T183:T194) -> 577.2888861 | Y29: 2908.705581 | AB29: 15 | AC29: 94575.39085 | AD29: 492.392111 | AE29: 364.2599427 | AF29: 128.1321683 | AH29: 15 | AI29: 5331.416446 | AJ29: 577.2888861 | AK29: 5908.705332
D30: 16 | E30: 56000.00033 | F30: 249.9999793 | G30: 249.9999793 | H30: 0 | J30: 16 | K30: =SUM(G195:G206) -> 2999.999752 | L30: =SUM(H195:H206) -> 0 | M30: 2999.999752 | P30: 16 | Q30: 38210.74971 | R30: 242.3921317 | S30: 114.6408299 | T30: 127.7513018 | V30: 16 | W30: =SUM(S195:S206) -> 2426.402208 | X30: =SUM(T195:T206) -> 482.3033727 | Y30: 2908.705581 | AB30: 16 | AC30: 94210.75004 | AD30: 492.392111 | AE30: 364.6408092 | AF30: 127.7513018 | AH30: 16 | AI30: 5426.40196 | AJ30: 482.3033727 | AK30: 5908.705332
D31: 17 | E31: 55750.00035 | F31: 249.9999793 | G31: 249.9999793 | H31: 0 | J31: 17 | K31: =SUM(G207:G218) -> 2999.999752 | L31: =SUM(H207:H218) -> 0 | M31: 2999.999752 | P31: 17 | Q31: 38095.72674 | R31: 242.3921317 | S31: 115.022966 | T31: 127.3691657 | V31: 17 | W31: =SUM(S207:S218) -> 2525.257578 | X31: =SUM(T207:T218) -> 383.4480031 | Y31: 2908.705581 | AB31: 17 | AC31: 93845.72709 | AD31: 492.392111 | AE31: 365.0229453 | AF31: 127.3691657 | AH31: 17 | AI31: 5525.257329 | AJ31: 383.4480031 | AK31: 5908.705332
D32: 18 | E32: 55500.00037 | F32: 249.9999793 | G32: 249.9999793 | H32: 0 | J32: 18 | K32: =SUM(G219:G230) -> 2999.999752 | L32: =SUM(H219:H230) -> 0 | M32: 2999.999752 | P32: 18 | Q32: 37980.32037 | R32: 242.3921317 | S32: 115.4063759 | T32: 126.9857558 | V32: 18 | W32: =SUM(S219:S230) -> 2628.140468 | X32: =SUM(T219:T230) -> 280.5651131 | Y32: 2908.705581 | AB32: 18 | AC32: 93480.32074 | AD32: 492.392111 | AE32: 365.4063552 | AF32: 126.9857558 | AH32: 18 | AI32: 5628.140219 | AJ32: 280.5651131 | AK32: 5908.705332
D33: 19 | E33: 55250.00039 | F33: 249.9999793 | G33: 249.9999793 | H33: 0 | J33: 19 | K33: =SUM(G231:G242) -> 2999.999752 | L33: =SUM(H231:H242) -> 0 | M33: 2999.999752 | P33: 19 | Q33: 37864.5293 | R33: 242.3921317 | S33: 115.7910638 | T33: 126.6010679 | V33: 19 | W33: =SUM(S231:S242) -> 2735.214965 | X33: =SUM(T231:T242) -> 173.4906154 | Y33: 2908.705581 | AB33: 19 | AC33: 93114.5297 | AD33: 492.392111 | AE33: 365.7910431 | AF33: 126.6010679 | AH33: 19 | AI33: 5735.214717 | AJ33: 173.4906154 | AK33: 5908.705332
D34: 20 | E34: 55000.00041 | F34: 249.9999793 | G34: 249.9999793 | H34: 0 | J34: 20 | K34: =SUM(G243:G254) -> 2999.999752 | L34: =SUM(H243:H254) -> 0 | M34: 2999.999752 | P34: 20 | Q34: 37748.35227 | R34: 242.3921317 | S34: 116.177034 | T34: 126.2150977 | V34: 20 | W34: =SUM(S243:S254) -> 2846.651843 | X34: =SUM(T243:T254) -> 62.05373752 | Y34: 2908.705581 | AB34: 20 | AC34: 92748.35268 | AD34: 492.392111 | AE34: 366.1770134 | AF34: 126.2150977 | AH34: 20 | AI34: 5846.651595 | AJ34: 62.05373752 | AK34: 5908.705332
D35: 21 | E35: 54750.00043 | F35: 249.9999793 | G35: 249.9999793 | H35: 0 | J35: Total | K35: =SUM(K15:K34) -> 59999.99504 | L35: =SUM(L15:L34) -> 0 | M35: =SUM(M15:M34) -> 59999.99504 | P35: 21 | Q35: 37631.78798 | R35: 242.3921317 | S35: 116.5642908 | T35: 125.8278409 | V35: Total | W35: =SUM(W15:W34) -> 40000 | X35: =SUM(X15:X34) -> 18174.11161 | Y35: =SUM(Y15:Y34) -> 58174.11161 | AB35: 21 | AC35: 92381.78841 | AD35: 492.392111 | AE35: 366.5642701 | AF35: 125.8278409 | AH35: Total | AI35: =SUM(AI15:AI34) -> 99999.99504 | AJ35: =SUM(AJ15:AJ34) -> 18174.11161 | AK35: =SUM(AK15:AK34) -> 118174.1066
D36: 22 | E36: 54500.00046 | F36: 249.9999793 | G36: 249.9999793 | H36: 0 | P36: 22 | Q36: 37514.83514 | R36: 242.3921317 | S36: 116.9528385 | T36: 125.4392933 | AB36: 22 | AC36: 92014.83559 | AD36: 492.392111 | AE36: 366.9528178 | AF36: 125.4392933
D37: 23 | E37: 54250.00048 | F37: 249.9999793 | G37: 249.9999793 | H37: 0 | P37: 23 | Q37: 37397.49246 | R37: 242.3921317 | S37: 117.3426813 | T37: 125.0494505 | AB37: 23 | AC37: 91647.49293 | AD37: 492.392111 | AE37: 367.3426606 | AF37: 125.0494505
D38: 24 | E38: 54000.0005 | F38: 249.9999793 | G38: 249.9999793 | H38: 0 | P38: 24 | Q38: 37279.75863 | R38: 242.3921317 | S38: 117.7338235 | T38: 124.6583082 | AB38: 24 | AC38: 91279.75913 | AD38: 492.392111 | AE38: 367.7338028 | AF38: 124.6583082
C39: 3 | D39: 25 | E39: 53750.00052 | F39: 249.9999793 | G39: 249.9999793 | H39: 0 | O39: 3 | P39: 25 | Q39: 37161.63236 | R39: 242.3921317 | S39: 118.1262696 | T39: 124.2658621 | AA39: 3 | AB39: 25 | AC39: 90911.63288 | AD39: 492.392111 | AE39: 368.1262489 | AF39: 124.2658621
D40: 26 | E40: 53500.00054 | F40: 249.9999793 | G40: 249.9999793 | H40: 0 | P40: 26 | Q40: 37043.11234 | R40: 242.3921317 | S40: 118.5200238 | T40: 123.8721079 | AB40: 26 | AC40: 90543.11288 | AD40: 492.392111 | AE40: 368.5200032 | AF40: 123.8721079
D41: 27 | E41: 53250.00056 | F41: 249.9999793 | G41: 249.9999793 | H41: 0 | P41: 27 | Q41: 36924.19725 | R41: 242.3921317 | S41: 118.9150906 | T41: 123.4770411 | AB41: 27 | AC41: 90174.19781 | AD41: 492.392111 | AE41: 368.9150699 | AF41: 123.4770411
D42: 28 | E42: 53000.00058 | F42: 249.9999793 | G42: 249.9999793 | H42: 0 | P42: 28 | Q42: 36804.88578 | R42: 242.3921317 | S42: 119.3114742 | T42: 123.0806575 | AB42: 28 | AC42: 89804.88635 | AD42: 492.392111 | AE42: 369.3114535 | AF42: 123.0806575
D43: 29 | E43: 52750.0006 | F43: 249.9999793 | G43: 249.9999793 | H43: 0 | P43: 29 | Q43: 36685.1766 | R43: 242.3921317 | S43: 119.7091791 | T43: 122.6829526 | AB43: 29 | AC43: 89435.1772 | AD43: 492.392111 | AE43: 369.7091584 | AF43: 122.6829526
D44: 30 | E44: 52500.00062 | F44: 249.9999793 | G44: 249.9999793 | H44: 0 | P44: 30 | Q44: 36565.06839 | R44: 242.3921317 | S44: 120.1082097 | T44: 122.283922 | AB44: 30 | AC44: 89065.06901 | AD44: 492.392111 | AE44: 370.108189 | AF44: 122.283922
D45: 31 | E45: 52250.00064 | F45: 249.9999793 | G45: 249.9999793 | H45: 0 | P45: 31 | Q45: 36444.55982 | R45: 242.3921317 | S45: 120.5085704 | T45: 121.8835613 | AB45: 31 | AC45: 88694.56046 | AD45: 492.392111 | AE45: 370.5085497 | AF45: 121.8835613
D46: 32 | E46: 52000.00066 | F46: 249.9999793 | G46: 249.9999793 | H46: 0 | P46: 32 | Q46: 36323.64955 | R46: 242.3921317 | S46: 120.9102657 | T46: 121.4818661 | AB46: 32 | AC46: 88323.65021 | AD46: 492.392111 | AE46: 370.910245 | AF46: 121.4818661
D47: 33 | E47: 51750.00068 | F47: 249.9999793 | G47: 249.9999793 | H47: 0 | P47: 33 | Q47: 36202.33625 | R47: 242.3921317 | S47: 121.3132999 | T47: 121.0788318 | AB47: 33 | AC47: 87952.33693 | AD47: 492.392111 | AE47: 371.3132792 | AF47: 121.0788318
D48: 34 | E48: 51500.0007 | F48: 249.9999793 | G48: 249.9999793 | H48: 0 | P48: 34 | Q48: 36080.61857 | R48: 242.3921317 | S48: 121.7176776 | T48: 120.6744542 | AB48: 34 | AC48: 87580.61928 | AD48: 492.392111 | AE48: 371.7176569 | AF48: 120.6744542
D49: 35 | E49: 51250.00072 | F49: 249.9999793 | G49: 249.9999793 | H49: 0 | P49: 35 | Q49: 35958.49517 | R49: 242.3921317 | S49: 122.1234031 | T49: 120.2687286 | AB49: 35 | AC49: 87208.49589 | AD49: 492.392111 | AE49: 372.1233825 | AF49: 120.2687286
D50: 36 | E50: 51000.00074 | F50: 249.9999793 | G50: 249.9999793 | H50: 0 | P50: 36 | Q50: 35835.96469 | R50: 242.3921317 | S50: 122.5304812 | T50: 119.8616506 | AB50: 36 | AC50: 86835.96543 | AD50: 492.392111 | AE50: 372.5304605 | AF50: 119.8616506
C51: 4 | D51: 37 | E51: 50750.00077 | F51: 249.9999793 | G51: 249.9999793 | H51: 0 | O51: 4 | P51: 37 | Q51: 35713.02577 | R51: 242.3921317 | S51: 122.9389161 | T51: 119.4532156 | AA51: 4 | AB51: 37 | AC51: 86463.02654 | AD51: 492.392111 | AE51: 372.9388954 | AF51: 119.4532156
D52: 38 | E52: 50500.00079 | F52: 249.9999793 | G52: 249.9999793 | H52: 0 | P52: 38 | Q52: 35589.67706 | R52: 242.3921317 | S52: 123.3487125 | T52: 119.0434192 | AB52: 38 | AC52: 86089.67785 | AD52: 492.392111 | AE52: 373.3486918 | AF52: 119.0434192
D53: 39 | E53: 50250.00081 | F53: 249.9999793 | G53: 249.9999793 | H53: 0 | P53: 39 | Q53: 35465.91719 | R53: 242.3921317 | S53: 123.7598749 | T53: 118.6322569 | AB53: 39 | AC53: 85715.91799 | AD53: 492.392111 | AE53: 373.7598542 | AF53: 118.6322569
D54: 40 | E54: 50000.00083 | F54: 249.9999793 | G54: 249.9999793 | H54: 0 | P54: 40 | Q54: 35341.74478 | R54: 242.3921317 | S54: 124.1724078 | T54: 118.219724 | AB54: 40 | AC54: 85341.74561 | AD54: 492.392111 | AE54: 374.1723871 | AF54: 118.219724
D55: 41 | E55: 49750.00085 | F55: 249.9999793 | G55: 249.9999793 | H55: 0 | P55: 41 | Q55: 35217.15846 | R55: 242.3921317 | S55: 124.5863158 | T55: 117.8058159 | AB55: 41 | AC55: 84967.15931 | AD55: 492.392111 | AE55: 374.5862951 | AF55: 117.8058159
D56: 42 | E56: 49500.00087 | F56: 249.9999793 | G56: 249.9999793 | H56: 0 | P56: 42 | Q56: 35092.15686 | R56: 242.3921317 | S56: 125.0016035 | T56: 117.3905282 | AB56: 42 | AC56: 84592.15773 | AD56: 492.392111 | AE56: 375.0015828 | AF56: 117.3905282
D57: 43 | E57: 49250.00089 | F57: 249.9999793 | G57: 249.9999793 | H57: 0 | P57: 43 | Q57: 34966.73858 | R57: 242.3921317 | S57: 125.4182755 | T57: 116.9738562 | AB57: 43 | AC57: 84216.73947 | AD57: 492.392111 | AE57: 375.4182548 | AF57: 116.9738562
D58: 44 | E58: 49000.00091 | F58: 249.9999793 | G58: 249.9999793 | H58: 0 | P58: 44 | Q58: 34840.90225 | R58: 242.3921317 | S58: 125.8363364 | T58: 116.5557953 | AB58: 44 | AC58: 83840.90316 | AD58: 492.392111 | AE58: 375.8363158 | AF58: 116.5557953
D59: 45 | E59: 48750.00093 | F59: 249.9999793 | G59: 249.9999793 | H59: 0 | P59: 45 | Q59: 34714.64646 | R59: 242.3921317 | S59: 126.2557909 | T59: 116.1363408 | AB59: 45 | AC59: 83464.64739 | AD59: 492.392111 | AE59: 376.2557702 | AF59: 116.1363408
D60: 46 | E60: 48500.00095 | F60: 249.9999793 | G60: 249.9999793 | H60: 0 | P60: 46 | Q60: 34587.96981 | R60: 242.3921317 | S60: 126.6766435 | T60: 115.7154882 | AB60: 46 | AC60: 83087.97076 | AD60: 492.392111 | AE60: 376.6766228 | AF60: 115.7154882
D61: 47 | E61: 48250.00097 | F61: 249.9999793 | G61: 249.9999793 | H61: 0 | P61: 47 | Q61: 34460.87091 | R61: 242.3921317 | S61: 127.098899 | T61: 115.2932327 | AB61: 47 | AC61: 82710.87189 | AD61: 492.392111 | AE61: 377.0988783 | AF61: 115.2932327
D62: 48 | E62: 48000.00099 | F62: 249.9999793 | G62: 249.9999793 | H62: 0 | P62: 48 | Q62: 34333.34835 | R62: 242.3921317 | S62: 127.522562 | T62: 114.8695697 | AB62: 48 | AC62: 82333.34934 | AD62: 492.392111 | AE62: 377.5225413 | AF62: 114.8695697
C63: 5 | D63: 49 | E63: 47750.00101 | F63: 249.9999793 | G63: 249.9999793 | H63: 0 | O63: 5 | P63: 49 | Q63: 34205.40071 | R63: 242.3921317 | S63: 127.9476372 | T63: 114.4444945 | AA63: 5 | AB63: 49 | AC63: 81955.40173 | AD63: 492.392111 | AE63: 377.9476165 | AF63: 114.4444945
D64: 50 | E64: 47500.00103 | F64: 249.9999793 | G64: 249.9999793 | H64: 0 | P64: 50 | Q64: 34077.02658 | R64: 242.3921317 | S64: 128.3741293 | T64: 114.0180024 | AB64: 50 | AC64: 81577.02762 | AD64: 492.392111 | AE64: 378.3741087 | AF64: 114.0180024
D65: 51 | E65: 47250.00105 | F65: 249.9999793 | G65: 249.9999793 | H65: 0 | P65: 51 | Q65: 33948.22454 | R65: 242.3921317 | S65: 128.8020431 | T65: 113.5900886 | AB65: 51 | AC65: 81198.2256 | AD65: 492.392111 | AE65: 378.8020224 | AF65: 113.5900886
D66: 52 | E66: 47000.00108 | F66: 249.9999793 | G66: 249.9999793 | H66: 0 | P66: 52 | Q66: 33818.99316 | R66: 242.3921317 | S66: 129.2313832 | T66: 113.1607485 | AB66: 52 | AC66: 80818.99423 | AD66: 492.392111 | AE66: 379.2313626 | AF66: 113.1607485
D67: 53 | E67: 46750.0011 | F67: 249.9999793 | G67: 249.9999793 | H67: 0 | P67: 53 | Q67: 33689.331 | R67: 242.3921317 | S67: 129.6621545 | T67: 112.7299772 | AB67: 53 | AC67: 80439.3321 | AD67: 492.392111 | AE67: 379.6621338 | AF67: 112.7299772
D68: 54 | E68: 46500.00112 | F68: 249.9999793 | G68: 249.9999793 | H68: 0 | P68: 54 | Q68: 33559.23664 | R68: 242.3921317 | S68: 130.0943617 | T68: 112.29777 | AB68: 54 | AC68: 80059.23776 | AD68: 492.392111 | AE68: 380.094341 | AF68: 112.29777
D69: 55 | E69: 46250.00114 | F69: 249.9999793 | G69: 249.9999793 | H69: 0 | P69: 55 | Q69: 33428.70863 | R69: 242.3921317 | S69: 130.5280096 | T69: 111.8641221 | AB69: 55 | AC69: 79678.70977 | AD69: 492.392111 | AE69: 380.5279889 | AF69: 111.8641221
D70: 56 | E70: 46000.00116 | F70: 249.9999793 | G70: 249.9999793 | H70: 0 | P70: 56 | Q70: 33297.74553 | R70: 242.3921317 | S70: 130.9631029 | T70: 111.4290288 | AB70: 56 | AC70: 79297.74669 | AD70: 492.392111 | AE70: 380.9630823 | AF70: 111.4290288
D71: 57 | E71: 45750.00118 | F71: 249.9999793 | G71: 249.9999793 | H71: 0 | P71: 57 | Q71: 33166.34588 | R71: 242.3921317 | S71: 131.3996466 | T71: 110.9924851 | AB71: 57 | AC71: 78916.34706 | AD71: 492.392111 | AE71: 381.3996259 | AF71: 110.9924851
D72: 58 | E72: 45500.0012 | F72: 249.9999793 | G72: 249.9999793 | H72: 0 | P72: 58 | Q72: 33034.50824 | R72: 242.3921317 | S72: 131.8376454 | T72: 110.5544863 | AB72: 58 | AC72: 78534.50944 | AD72: 492.392111 | AE72: 381.8376248 | AF72: 110.5544863
D73: 59 | E73: 45250.00122 | F73: 249.9999793 | G73: 249.9999793 | H73: 0 | P73: 59 | Q73: 32902.23113 | R73: 242.3921317 | S73: 132.2771043 | T73: 110.1150275 | AB73: 59 | AC73: 78152.23235 | AD73: 492.392111 | AE73: 382.2770836 | AF73: 110.1150275
D74: 60 | E74: 45000.00124 | F74: 249.9999793 | G74: 249.9999793 | H74: 0 | P74: 60 | Q74: 32769.51311 | R74: 242.3921317 | S74: 132.7180279 | T74: 109.6741038 | AB74: 60 | AC74: 77769.51435 | AD74: 492.392111 | AE74: 382.7180073 | AF74: 109.6741038
C75: 6 | D75: 61 | E75: 44750.00126 | F75: 249.9999793 | G75: 249.9999793 | H75: 0 | O75: 6 | P75: 61 | Q75: 32636.35268 | R75: 242.3921317 | S75: 133.1604214 | T75: 109.2317104 | AA75: 6 | AB75: 61 | AC75: 77386.35395 | AD75: 492.392111 | AE75: 383.1604007 | AF75: 109.2317104
D76: 62 | E76: 44500.00128 | F76: 249.9999793 | G76: 249.9999793 | H76: 0 | P76: 62 | Q76: 32502.74839 | R76: 242.3921317 | S76: 133.6042894 | T76: 108.7878423 | AB76: 62 | AC76: 77002.74968 | AD76: 492.392111 | AE76: 383.6042688 | AF76: 108.7878423
D77: 63 | E77: 44250.0013 | F77: 249.9999793 | G77: 249.9999793 | H77: 0 | P77: 63 | Q77: 32368.69876 | R77: 242.3921317 | S77: 134.0496371 | T77: 108.3424946 | AB77: 63 | AC77: 76618.70006 | AD77: 492.392111 | AE77: 384.0496164 | AF77: 108.3424946
D78: 64 | E78: 44000.00132 | F78: 249.9999793 | G78: 249.9999793 | H78: 0 | P78: 64 | Q78: 32234.20229 | R78: 242.3921317 | S78: 134.4964692 | T78: 107.8956625 | AB78: 64 | AC78: 76234.20361 | AD78: 492.392111 | AE78: 384.4964485 | AF78: 107.8956625
D79: 65 | E79: 43750.00134 | F79: 249.9999793 | G79: 249.9999793 | H79: 0 | P79: 65 | Q79: 32099.2575 | R79: 242.3921317 | S79: 134.9447908 | T79: 107.447341 | AB79: 65 | AC79: 75849.25884 | AD79: 492.392111 | AE79: 384.9447701 | AF79: 107.447341
D80: 66 | E80: 43500.00137 | F80: 249.9999793 | G80: 249.9999793 | H80: 0 | P80: 66 | Q80: 31963.86289 | R80: 242.3921317 | S80: 135.3946067 | T80: 106.997525 | AB80: 66 | AC80: =Q80+E80 -> 75463.86426 | AD80: 492.392111 | AE80: 385.394586 | AF80: 106.997525
D81: 67 | E81: =E80-G81 -> 43250.00139 | F81: =$F$15 -> 249.9999793 | G81: =$G$15 -> 249.9999793 | H81: 0 | P81: 67 | Q81: =Q80-S81 -> 31828.01697 | R81: =IF(T81=0,0,$R$15) -> 242.3921317 | S81: =IF(T81=0,0,R81-T81) -> 135.8459221 | T81: =IF(($Q$6/12)*Q80<=0,0,($Q$6/12)*Q80) -> 106.5462096 | AB81: 67 | AC81: 75078.01835 | AD81: 492.392111 | AE81: 385.8459014 | AF81: 106.5462096
D82: 68 | E82: 43000.00141 | F82: 249.9999793 | G82: 249.9999793 | H82: 0 | P82: 68 | Q82: 31691.71823 | R82: 242.3921317 | S82: 136.2987418 | T82: 106.0933899 | AB82: 68 | AC82: 74691.71963 | AD82: 492.392111 | AE82: 386.2987211 | AF82: 106.0933899
D83: 69 | E83: 42750.00143 | F83: 249.9999793 | G83: 249.9999793 | H83: 0 | P83: 69 | Q83: 31554.96516 | R83: 242.3921317 | S83: 136.753071 | T83: 105.6390608 | AB83: 69 | AC83: 74304.96658 | AD83: 492.392111 | AE83: 386.7530503 | AF83: 105.6390608
D84: 70 | E84: 42500.00145 | F84: 249.9999793 | G84: 249.9999793 | H84: 0 | P84: 70 | Q84: 31417.75624 | R84: 242.3921317 | S84: 137.2089145 | T84: 105.1832172 | AB84: 70 | AC84: 73917.75769 | AD84: 492.392111 | AE84: 387.2088938 | AF84: 105.1832172
D85: 71 | E85: 42250.00147 | F85: 249.9999793 | G85: 249.9999793 | H85: 0 | P85: 71 | Q85: 31280.08996 | R85: 242.3921317 | S85: 137.6662776 | T85: 104.7258541 | AB85: 71 | AC85: 73530.09143 | AD85: 492.392111 | AE85: 387.6662569 | AF85: 104.7258541
D86: 72 | E86: 42000.00149 | F86: 249.9999793 | G86: 249.9999793 | H86: 0 | P86: 72 | Q86: 31141.9648 | R86: 242.3921317 | S86: 138.1251652 | T86: 104.2669665 | AB86: 72 | AC86: 73141.96629 | AD86: 492.392111 | AE86: 388.1251445 | AF86: 104.2669665
C87: 7 | D87: 73 | E87: 41750.00151 | F87: 249.9999793 | G87: 249.9999793 | H87: 0 | O87: 7 | P87: 73 | Q87: 31003.37922 | R87: 242.3921317 | S87: 138.5855824 | T87: 103.8065493 | AA87: 7 | AB87: 73 | AC87: 72753.38073 | AD87: 492.392111 | AE87: 388.5855617 | AF87: 103.8065493
D88: 74 | E88: 41500.00153 | F88: 249.9999793 | G88: 249.9999793 | H88: 0 | P88: 74 | Q88: 30864.33168 | R88: 242.3921317 | S88: 139.0475343 | T88: 103.3445974 | AB88: 74 | AC88: 72364.33321 | AD88: 492.392111 | AE88: 389.0475136 | AF88: 103.3445974
D89: 75 | E89: 41250.00155 | F89: 249.9999793 | G89: 249.9999793 | H89: 0 | P89: 75 | Q89: 30724.82066 | R89: 242.3921317 | S89: 139.5110261 | T89: 102.8811056 | AB89: 75 | AC89: 71974.82221 | AD89: 492.392111 | AE89: 389.5110054 | AF89: 102.8811056
D90: 76 | E90: 41000.00157 | F90: 249.9999793 | G90: 249.9999793 | H90: 0 | P90: 76 | Q90: 30584.84459 | R90: 242.3921317 | S90: 139.9760629 | T90: 102.4160689 | AB90: 76 | AC90: 71584.84616 | AD90: 492.392111 | AE90: 389.9760422 | AF90: 102.4160689
D91: 77 | E91: 40750.00159 | F91: 249.9999793 | G91: 249.9999793 | H91: 0 | P91: 77 | Q91: 30444.40194 | R91: 242.3921317 | S91: 140.4426497 | T91: 101.949482 | AB91: 77 | AC91: 71194.40354 | AD91: 492.392111 | AE91: 390.4426291 | AF91: 101.949482
D92: 78 | E92: 40500.00161 | F92: 249.9999793 | G92: 249.9999793 | H92: 0 | P92: 78 | Q92: 30303.49115 | R92: 242.3921317 | S92: 140.9107919 | T92: 101.4813398 | AB92: 78 | AC92: 70803.49276 | AD92: 492.392111 | AE92: 390.9107712 | AF92: 101.4813398
D93: 79 | E93: 40250.00163 | F93: 249.9999793 | G93: 249.9999793 | H93: 0 | P93: 79 | Q93: 30162.11066 | R93: 242.3921317 | S93: 141.3804945 | T93: 101.0116372 | AB93: 79 | AC93: 70412.11229 | AD93: 492.392111 | AE93: 391.3804739 | AF93: 101.0116372
D94: 80 | E94: 40000.00165 | F94: 249.9999793 | G94: 249.9999793 | H94: 0 | P94: 80 | Q94: 30020.25889 | R94: 242.3921317 | S94: 141.8517629 | T94: 100.5403689 | AB94: 80 | AC94: 70020.26055 | AD94: 492.392111 | AE94: 391.8517422 | AF94: 100.5403689
D95: 81 | E95: 39750.00168 | F95: 249.9999793 | G95: 249.9999793 | H95: 0 | P95: 81 | Q95: 29877.93429 | R95: 242.3921317 | S95: 142.3246021 | T95: 100.0675296 | AB95: 81 | AC95: 69627.93597 | AD95: 492.392111 | AE95: 392.3245814 | AF95: 100.0675296
D96: 82 | E96: 39500.0017 | F96: 249.9999793 | G96: 249.9999793 | H96: 0 | P96: 82 | Q96: 29735.13527 | R96: 242.3921317 | S96: 142.7990174 | T96: 99.59311431 | AB96: 82 | AC96: 69235.13697 | AD96: 492.392111 | AE96: 392.7989967 | AF96: 99.59311431
D97: 83 | E97: 39250.00172 | F97: 249.9999793 | G97: 249.9999793 | H97: 0 | P97: 83 | Q97: 29591.86026 | R97: 242.3921317 | S97: 143.2750141 | T97: 99.11711758 | AB97: 83 | AC97: 68841.86198 | AD97: 492.392111 | AE97: 393.2749935 | AF97: 99.11711758
D98: 84 | E98: 39000.00174 | F98: 249.9999793 | G98: 249.9999793 | H98: 0 | P98: 84 | Q98: =Q97-S98 -> 29448.10766 | R98: 242.3921317 | S98: 143.7525975 | T98: 98.6395342 | AB98: 84 | AC98: 68448.1094 | AD98: 492.392111 | AE98: 393.7525768 | AF98: 98.6395342
C99: 8 | D99: 85 | E99: 38750.00176 | F99: 249.9999793 | G99: 249.9999793 | H99: 0 | O99: 8 | P99: 85 | Q99: =Q98-S99 -> 29303.87589 | R99: 242.3921317 | S99: 144.2317728 | T99: 98.16035888 | AA99: 8 | AB99: 85 | AC99: 68053.87765 | AD99: 492.392111 | AE99: 394.2317522 | AF99: 98.16035888
D100: 86 | E100: 38500.00178 | F100: 249.9999793 | G100: 249.9999793 | H100: 0 | P100: 86 | Q100: 29159.16334 | R100: 242.3921317 | S100: 144.7125454 | T100: 97.6795863 | AB100: 86 | AC100: 67659.16512 | AD100: 492.392111 | AE100: 394.7125247 | AF100: 97.6795863
D101: 87 | E101: 38250.0018 | F101: 249.9999793 | G101: 249.9999793 | H101: 0 | P101: 87 | Q101: 29013.96842 | R101: 242.3921317 | S101: 145.1949206 | T101: 97.19721115 | AB101: 87 | AC101: 67263.97022 | AD101: 492.392111 | AE101: 395.1948999 | AF101: 97.19721115
D102: 88 | E102: 38000.00182 | F102: 249.9999793 | G102: 249.9999793 | H102: 0 | P102: 88 | Q102: 28868.28952 | R102: 242.3921317 | S102: 145.6789036 | T102: 96.71322808 | AB102: 88 | AC102: 66868.29134 | AD102: 492.392111 | AE102: 395.678883 | AF102: 96.71322808
D103: 89 | E103: 37750.00184 | F103: 249.9999793 | G103: 249.9999793 | H103: 0 | P103: 89 | Q103: 28722.12502 | R103: 242.3921317 | S103: 146.1645 | T103: 96.22763173 | AB103: 89 | AC103: 66472.12686 | AD103: 492.392111 | AE103: 396.1644793 | AF103: 96.22763173
D104: 90 | E104: 37500.00186 | F104: 249.9999793 | G104: 249.9999793 | H104: 0 | P104: 90 | Q104: 28575.47331 | R104: 242.3921317 | S104: 146.651715 | T104: 95.74041673 | AB104: 90 | AC104: 66075.47517 | AD104: 492.392111 | AE104: 396.6516943 | AF104: 95.74041673
D105: 91 | E105: 37250.00188 | F105: 249.9999793 | G105: 249.9999793 | H105: 0 | P105: 91 | Q105: 28428.33275 | R105: 242.3921317 | S105: 147.140554 | T105: 95.25157768 | AB105: 91 | AC105: 65678.33463 | AD105: 492.392111 | AE105: 397.1405334 | AF105: 95.25157768
D106: 92 | E106: 37000.0019 | F106: 249.9999793 | G106: 249.9999793 | H106: 0 | P106: 92 | Q106: 28280.70173 | R106: 242.3921317 | S106: 147.6310225 | T106: 94.76110917 | AB106: 92 | AC106: 65280.70363 | AD106: 492.392111 | AE106: 397.6310019 | AF106: 94.76110917
D107: 93 | E107: 36750.00192 | F107: 249.9999793 | G107: 249.9999793 | H107: 0 | P107: 93 | Q107: 28132.5786 | R107: 242.3921317 | S107: 148.123126 | T107: 94.26900576 | AB107: 93 | AC107: 64882.58053 | AD107: 492.392111 | AE107: 398.1231053 | AF107: 94.26900576
D108: 94 | E108: 36500.00194 | F108: 249.9999793 | G108: 249.9999793 | H108: 0 | P108: 94 | Q108: 27983.96173 | R108: 242.3921317 | S108: 148.6168697 | T108: 93.77526201 | AB108: 94 | AC108: 64483.96368 | AD108: 492.392111 | AE108: 398.616849 | AF108: 93.77526201
D109: 95 | E109: 36250.00197 | F109: 249.9999793 | G109: 249.9999793 | H109: 0 | P109: 95 | Q109: 27834.84947 | R109: 242.3921317 | S109: 149.1122593 | T109: 93.27987244 | AB109: 95 | AC109: 64084.85144 | AD109: 492.392111 | AE109: 399.1122386 | AF109: 93.27987244
D110: 96 | E110: 36000.00199 | F110: 249.9999793 | G110: 249.9999793 | H110: 0 | P110: 96 | Q110: 27685.24017 | R110: 242.3921317 | S110: 149.6093001 | T110: 92.78283158 | AB110: 96 | AC110: 63685.24216 | AD110: 492.392111 | AE110: 399.6092795 | AF110: 92.78283158
C111: 9 | D111: 97 | E111: 35750.00201 | F111: 249.9999793 | G111: 249.9999793 | H111: 0 | O111: 9 | P111: 97 | Q111: 27535.13218 | R111: 242.3921317 | S111: 150.1079978 | T111: 92.28413391 | AA111: 9 | AB111: 97 | AC111: 63285.13418 | AD111: 492.392111 | AE111: 400.1079771 | AF111: 92.28413391
D112: 98 | E112: 35500.00203 | F112: 249.9999793 | G112: 249.9999793 | H112: 0 | P112: 98 | Q112: 27384.52382 | R112: 242.3921317 | S112: 150.6083578 | T112: 91.78377392 | AB112: 98 | AC112: 62884.52584 | AD112: 492.392111 | AE112: 400.6083371 | AF112: 91.78377392
D113: 99 | E113: 35250.00205 | F113: 249.9999793 | G113: 249.9999793 | H113: 0 | P113: 99 | Q113: 27233.41343 | R113: 242.3921317 | S113: 151.1103857 | T113: 91.28174606 | AB113: 99 | AC113: 62483.41548 | AD113: 492.392111 | AE113: 401.110365 | AF113: 91.28174606
D114: 100 | E114: 35000.00207 | F114: 249.9999793 | G114: 249.9999793 | H114: 0 | P114: 100 | Q114: 27081.79935 | R114: 242.3921317 | S114: 151.6140869 | T114: 90.77804477 | AB114: 100 | AC114: 62081.80141 | AD114: 492.392111 | AE114: 401.6140663 | AF114: 90.77804477
D115: 101 | E115: 34750.00209 | F115: 249.9999793 | G115: 249.9999793 | H115: 0 | P115: 101 | Q115: 26929.67988 | R115: 242.3921317 | S115: 152.1194672 | T115: 90.27266448 | AB115: 101 | AC115: 61679.68197 | AD115: 492.392111 | AE115: 402.1194466 | AF115: 90.27266448
D116: 102 | E116: 34500.00211 | F116: 249.9999793 | G116: 249.9999793 | H116: 0 | P116: 102 | Q116: 26777.05335 | R116: 242.3921317 | S116: 152.6265321 | T116: 89.76559959 | AB116: 102 | AC116: 61277.05546 | AD116: 492.392111 | AE116: 402.6265114 | AF116: 89.76559959
D117: 103 | E117: 34250.00213 | F117: 249.9999793 | G117: 249.9999793 | H117: 0 | P117: 103 | Q117: 26623.91806 | R117: 242.3921317 | S117: 153.1352872 | T117: 89.25684449 | AB117: 103 | AC117: 60873.92019 | AD117: 492.392111 | AE117: 403.1352665 | AF117: 89.25684449
D118: 104 | E118: 34000.00215 | F118: 249.9999793 | G118: 249.9999793 | H118: 0 | P118: 104 | Q118: 26470.27232 | R118: 242.3921317 | S118: 153.6457382 | T118: 88.74639353 | AB118: 104 | AC118: 60470.27447 | AD118: 492.392111 | AE118: 403.6457175 | AF118: 88.74639353
D119: 105 | E119: 33750.00217 | F119: 249.9999793 | G119: 249.9999793 | H119: 0 | P119: 105 | Q119: 26316.11443 | R119: 242.3921317 | S119: 154.1578907 | T119: 88.23424107 | AB119: 105 | AC119: 60066.1166 | AD119: 492.392111 | AE119: 404.15787 | AF119: 88.23424107
D120: 106 | E120: 33500.00219 | F120: 249.9999793 | G120: 249.9999793 | H120: 0 | P120: 106 | Q120: 26161.44268 | R120: 242.3921317 | S120: 154.6717503 | T120: 87.72038143 | AB120: 106 | AC120: 59661.44487 | AD120: 492.392111 | AE120: 404.6717296 | AF120: 87.72038143
D121: 107 | E121: 33250.00221 | F121: 249.9999793 | G121: 249.9999793 | H121: 0 | P121: 107 | Q121: 26006.25536 | R121: 242.3921317 | S121: 155.1873228 | T121: 87.20480893 | AB121: 107 | AC121: 59256.25757 | AD121: 492.392111 | AE121: 405.1873021 | AF121: 87.20480893
D122: 108 | E122: 33000.00223 | F122: 249.9999793 | G122: 249.9999793 | H122: 0 | P122: 108 | Q122: 25850.55074 | R122: 242.3921317 | S122: 155.7046139 | T122: 86.68751786 | AB122: 108 | AC122: 58850.55298 | AD122: 492.392111 | AE122: 405.7045932 | AF122: 86.68751786
C123: 10 | D123: 109 | E123: 32750.00225 | F123: 249.9999793 | G123: 249.9999793 | H123: 0 | O123: 10 | P123: 109 | Q123: 25694.32711 | R123: 242.3921317 | S123: 156.2236292 | T123: 86.16850248 | AA123: 10 | AB123: 109 | AC123: 58444.32937 | AD123: 492.392111 | AE123: 406.2236086 | AF123: 86.16850248
D124: 110 | E124: 32500.00228 | F124: 249.9999793 | G124: 249.9999793 | H124: 0 | P124: 110 | Q124: 25537.58274 | R124: 242.3921317 | S124: 156.7443747 | T124: 85.64775705 | AB124: 110 | AC124: 58037.58501 | AD124: 492.392111 | AE124: 406.744354 | AF124: 85.64775705
D125: 111 | E125: 32250.0023 | F125: 249.9999793 | G125: 249.9999793 | H125: 0 | P125: 111 | Q125: 25380.31588 | R125: 242.3921317 | S125: 157.2668559 | T125: 85.1252758 | AB125: 111 | AC125: 57630.31818 | AD125: 492.392111 | AE125: 407.2668352 | AF125: 85.1252758
D126: 112 | E126: 32000.00232 | F126: 249.9999793 | G126: 249.9999793 | H126: 0 | P126: 112 | Q126: 25222.5248 | R126: 242.3921317 | S126: 157.7910788 | T126: 84.60105294 | AB126: 112 | AC126: 57222.52712 | AD126: 492.392111 | AE126: 407.7910581 | AF126: 84.60105294
D127: 113 | E127: 31750.00234 | F127: 249.9999793 | G127: 249.9999793 | H127: 0 | P127: 113 | Q127: 25064.20776 | R127: 242.3921317 | S127: 158.317049 | T127: 84.07508268 | AB127: 113 | AC127: 56814.21009 | AD127: 492.392111 | AE127: 408.3170284 | AF127: 84.07508268
D128: 114 | E128: 31500.00236 | F128: 249.9999793 | G128: 249.9999793 | H128: 0 | P128: 114 | Q128: 24905.36298 | R128: 242.3921317 | S128: 158.8447725 | T128: 83.54735918 | AB128: 114 | AC128: 56405.36534 | AD128: 492.392111 | AE128: 408.8447519 | AF128: 83.54735918
D129: 115 | E129: 31250.00238 | F129: 249.9999793 | G129: 249.9999793 | H129: 0 | P129: 115 | Q129: 24745.98873 | R129: 242.3921317 | S129: 159.3742551 | T129: 83.01787661 | AB129: 115 | AC129: 55995.99111 | AD129: 492.392111 | AE129: 409.3742344 | AF129: 83.01787661
D130: 116 | E130: 31000.0024 | F130: 249.9999793 | G130: 249.9999793 | H130: 0 | P130: 116 | Q130: 24586.08322 | R130: 242.3921317 | S130: 159.9055026 | T130: 82.48662909 | AB130: 116 | AC130: 55586.08562 | AD130: 492.392111 | AE130: 409.9054819 | AF130: 82.48662909
D131: 117 | E131: 30750.00242 | F131: 249.9999793 | G131: 249.9999793 | H131: 0 | P131: 117 | Q131: 24425.6447 | R131: 242.3921317 | S131: 160.438521 | T131: 81.95361075 | AB131: 117 | AC131: 55175.64712 | AD131: 492.392111 | AE131: 410.4385003 | AF131: 81.95361075
D132: 118 | E132: 30500.00244 | F132: 249.9999793 | G132: 249.9999793 | H132: 0 | P132: 118 | Q132: 24264.67139 | R132: 242.3921317 | S132: 160.973316 | T132: 81.41881568 | AB132: 118 | AC132: 54764.67383 | AD132: 492.392111 | AE132: 410.9732954 | AF132: 81.41881568
D133: 119 | E133: 30250.00246 | F133: 249.9999793 | G133: 249.9999793 | H133: 0 | P133: 119 | Q133: 24103.16149 | R133: 242.3921317 | S133: 161.5098938 | T133: 80.88223796 | AB133: 119 | AC133: 54353.16396 | AD133: 492.392111 | AE133: 411.5098731 | AF133: 80.88223796
D134: 120 | E134: 30000.00248 | F134: 249.9999793 | G134: 249.9999793 | H134: 0 | P134: 120 | Q134: 23941.11323 | R134: 242.3921317 | S134: 162.0482601 | T134: 80.34387165 | AB134: 120 | AC134: 53941.11572 | AD134: 492.392111 | AE134: 412.0482394 | AF134: 80.34387165
C135: 11 | D135: 121 | E135: 29750.0025 | F135: 249.9999793 | G135: 249.9999793 | H135: 0 | O135: 11 | P135: 121 | Q135: 23778.52481 | R135: 242.3921317 | S135: 162.5884209 | T135: 79.80371078 | AA135: 11 | AB135: 121 | AC135: 53528.52732 | AD135: 492.392111 | AE135: 412.5884003 | AF135: 79.80371078
D136: 122 | E136: 29500.00252 | F136: 249.9999793 | G136: 249.9999793 | H136: 0 | P136: 122 | Q136: 23615.39443 | R136: 242.3921317 | S136: 163.1303823 | T136: 79.26174938 | AB136: 122 | AC136: 53115.39695 | AD136: 492.392111 | AE136: 413.1303617 | AF136: 79.26174938
D137: 123 | E137: 29250.00254 | F137: 249.9999793 | G137: 249.9999793 | H137: 0 | P137: 123 | Q137: 23451.72028 | R137: 242.3921317 | S137: 163.6741503 | T137: 78.71798144 | AB137: 123 | AC137: 52701.72282 | AD137: 492.392111 | AE137: 413.6741296 | AF137: 78.71798144
D138: 124 | E138: 29000.00256 | F138: 249.9999793 | G138: 249.9999793 | H138: 0 | P138: 124 | Q138: 23287.50055 | R138: 242.3921317 | S138: 164.2197308 | T138: 78.17240093 | AB138: 124 | AC138: 52287.50311 | AD138: 492.392111 | AE138: 414.2197101 | AF138: 78.17240093
D139: 125 | E139: 28750.00259 | F139: 249.9999793 | G139: 249.9999793 | H139: 0 | P139: 125 | Q139: 23122.73342 | R139: 242.3921317 | S139: 164.7671299 | T139: 77.62500183 | AB139: 125 | AC139: 51872.73601 | AD139: 492.392111 | AE139: 414.7671092 | AF139: 77.62500183
D140: 126 | E140: 28500.00261 | F140: 249.9999793 | G140: 249.9999793 | H140: 0 | P140: 126 | Q140: 22957.41707 | R140: 242.3921317 | S140: 165.3163537 | T140: 77.07577807 | AB140: 126 | AC140: 51457.41967 | AD140: 492.392111 | AE140: 415.316333 | AF140: 77.07577807
D141: 127 | E141: 28250.00263 | F141: 249.9999793 | G141: 249.9999793 | H141: 0 | P141: 127 | Q141: 22791.54966 | R141: 242.3921317 | S141: 165.8674082 | T141: 76.52472355 | AB141: 127 | AC141: 51041.55228 | AD141: 492.392111 | AE141: 415.8673875 | AF141: 76.52472355
D142: 128 | E142: 28000.00265 | F142: 249.9999793 | G142: 249.9999793 | H142: 0 | P142: 128 | Q142: 22625.12936 | R142: 242.3921317 | S142: 166.4202995 | T142: 75.97183219 | AB142: 128 | AC142: 50625.13201 | AD142: 492.392111 | AE142: 416.4202788 | AF142: 75.97183219
D143: 129 | E143: 27750.00267 | F143: 249.9999793 | G143: 249.9999793 | H143: 0 | P143: 129 | Q143: 22458.15432 | R143: 242.3921317 | S143: 166.9750339 | T143: 75.41709786 | AB143: 129 | AC143: 50208.15699 | AD143: 492.392111 | AE143: 416.9750132 | AF143: =T143+H143 -> 75.41709786
D144: 130 | E144: 27500.00269 | F144: 249.9999793 | G144: 249.9999793 | H144: 0 | P144: 130 | Q144: 22290.62271 | R144: 242.3921317 | S144: 167.5316173 | T144: 74.86051442 | AB144: 130 | AC144: =Q144+E144 -> 49790.6254 | AD144: 492.392111 | AE144: 417.5315966 | AF144: 74.86051442
D145: 131 | E145: =E144-G145 -> 27250.00271 | F145: =$F$15 -> 249.9999793 | G145: =$G$15 -> 249.9999793 | H145: 0 | P145: 131 | Q145: 22122.53265 | R145: =IF(T145=0,0,$R$15) -> 242.3921317 | S145: =IF(T145=0,0,R145-T145) -> 168.090056 | T145: =IF(($Q$6/12)*Q144<=0,0,($Q$6/12)*Q144) -> 74.30207569 | AB145: 131 | AC145: 49372.53536 | AD145: 492.392111 | AE145: 418.0900353 | AF145: 74.30207569
D146: 132 | E146: 27000.00273 | F146: 249.9999793 | G146: 249.9999793 | H146: 0 | P146: 132 | Q146: 21953.8823 | R146: 242.3921317 | S146: 168.6503562 | T146: 73.7417755 | AB146: 132 | AC146: 48953.88503 | AD146: 492.392111 | AE146: 418.6503355 | AF146: 73.7417755
C147: 12 | D147: 133 | E147: 26750.00275 | F147: 249.9999793 | G147: 249.9999793 | H147: 0 | O147: 12 | P147: 133 | Q147: 21784.66977 | R147: 242.3921317 | S147: 169.2125241 | T147: 73.17960765 | AA147: 12 | AB147: 133 | AC147: 48534.67252 | AD147: 492.392111 | AE147: 419.2125034 | AF147: 73.17960765
D148: 134 | E148: 26500.00277 | F148: 249.9999793 | G148: 249.9999793 | H148: 0 | P148: 134 | Q148: 21614.89321 | R148: 242.3921317 | S148: 169.7765658 | T148: 72.6155659 | AB148: 134 | AC148: 48114.89598 | AD148: 492.392111 | AE148: 419.7765451 | AF148: 72.6155659
D149: 135 | E149: 26250.00279 | F149: 249.9999793 | G149: 249.9999793 | H149: 0 | P149: 135 | Q149: 21444.55072 | R149: 242.3921317 | S149: 170.3424877 | T149: 72.04964402 | AB149: 135 | AC149: 47694.55351 | AD149: 492.392111 | AE149: 420.342467 | AF149: 72.04964402
D150: 136 | E150: 26000.00281 | F150: 249.9999793 | G150: 249.9999793 | H150: 0 | P150: 136 | Q150: 21273.64042 | R150: 242.3921317 | S150: 170.910296 | T150: 71.48183572 | AB150: 136 | AC150: 47273.64323 | AD150: 492.392111 | AE150: 420.9102753 | AF150: 71.48183572
D151: 137 | E151: 25750.00283 | F151: 249.9999793 | G151: 249.9999793 | H151: 0 | P151: 137 | Q151: 21102.16042 | R151: 242.3921317 | S151: 171.479997 | T151: 70.91213474 | AB151: 137 | AC151: 46852.16326 | AD151: 492.392111 | AE151: 421.4799763 | AF151: 70.91213474
D152: 138 | E152: 25500.00285 | F152: 249.9999793 | G152: 249.9999793 | H152: 0 | P152: 138 | Q152: 20930.10883 | R152: 242.3921317 | S152: 172.051597 | T152: 70.34053475 | AB152: 138 | AC152: 46430.11168 | AD152: 492.392111 | AE152: 422.0515763 | AF152: 70.34053475
D153: 139 | E153: 25250.00288 | F153: 249.9999793 | G153: 249.9999793 | H153: 0 | P153: 139 | Q153: 20757.48373 | R153: 242.3921317 | S153: 172.6251023 | T153: 69.76702942 | AB153: 139 | AC153: 46007.4866 | AD153: 492.392111 | AE153: 422.6250816 | AF153: 69.76702942
D154: 140 | E154: 25000.0029 | F154: 249.9999793 | G154: 249.9999793 | H154: 0 | P154: 140 | Q154: 20584.28321 | R154: 242.3921317 | S154: 173.2005193 | T154: 69.19161242 | AB154: 140 | AC154: 45584.2861 | AD154: 492.392111 | AE154: 423.2004986 | AF154: 69.19161242
D155: 141 | E155: 24750.00292 | F155: 249.9999793 | G155: 249.9999793 | H155: 0 | P155: 141 | Q155: 20410.50535 | R155: 242.3921317 | S155: 173.7778544 | T155: 68.61427735 | AB155: 141 | AC155: 45160.50827 | AD155: 492.392111 | AE155: 423.7778337 | AF155: 68.61427735
D156: 142 | E156: 24500.00294 | F156: 249.9999793 | G156: 249.9999793 | H156: 0 | P156: 142 | Q156: 20236.14824 | R156: 242.3921317 | S156: 174.3571139 | T156: 68.03501784 | AB156: 142 | AC156: 44736.15117 | AD156: 492.392111 | AE156: 424.3570932 | AF156: 68.03501784
D157: 143 | E157: 24250.00296 | F157: 249.9999793 | G157: 249.9999793 | H157: 0 | P157: 143 | Q157: 20061.20993 | R157: 242.3921317 | S157: 174.9383043 | T157: 67.45382746 | AB157: 143 | AC157: 44311.21289 | AD157: 492.392111 | AE157: 424.9382836 | AF157: 67.45382746
D158: 144 | E158: 24000.00298 | F158: 249.9999793 | G158: 249.9999793 | H158: 0 | P158: 144 | Q158: 19885.6885 | R158: 242.3921317 | S158: 175.5214319 | T158: 66.87069978 | AB158: 144 | AC158: 43885.69148 | AD158: 492.392111 | AE158: 425.5214113 | AF158: 66.87069978
C159: 13 | D159: 145 | E159: 23750.003 | F159: 249.9999793 | G159: 249.9999793 | H159: 0 | O159: 13 | P159: 145 | Q159: 19709.582 | R159: 242.3921317 | S159: 176.1065034 | T159: 66.28562834 | AA159: 13 | AB159: 145 | AC159: 43459.585 | AD159: 492.392111 | AE159: 426.1064827 | AF159: 66.28562834
D160: 146 | E160: 23500.00302 | F160: 249.9999793 | G160: 249.9999793 | H160: 0 | P160: 146 | Q160: 19532.88847 | R160: 242.3921317 | S160: 176.6935251 | T160: 65.69860666 | AB160: 146 | AC160: 43032.89149 | AD160: 492.392111 | AE160: 426.6935044 | AF160: 65.69860666
D161: 147 | E161: 23250.00304 | F161: 249.9999793 | G161: 249.9999793 | H161: 0 | P161: 147 | Q161: 19355.60597 | R161: 242.3921317 | S161: 177.2825035 | T161: 65.10962824 | AB161: 147 | AC161: 42605.60901 | AD161: 492.392111 | AE161: 427.2824828 | AF161: 65.10962824
D162: 148 | E162: 23000.00306 | F162: 249.9999793 | G162: 249.9999793 | H162: 0 | P162: 148 | Q162: 19177.73252 | R162: 242.3921317 | S162: 177.8734452 | T162: 64.51868657 | AB162: 148 | AC162: 42177.73559 | AD162: 492.392111 | AE162: 427.8734245 | AF162: 64.51868657
D163: 149 | E163: 22750.00308 | F163: 249.9999793 | G163: 249.9999793 | H163: 0 | P163: 149 | Q163: =Q162-S163 -> 18999.26617 | R163: 242.3921317 | S163: 178.4663566 | T163: 63.92577508 | AB163: 149 | AC163: 41749.26925 | AD163: 492.392111 | AE163: 428.466336 | AF163: 63.92577508
D164: 150 | E164: 22500.0031 | F164: 249.9999793 | G164: 249.9999793 | H164: 0 | P164: 150 | Q164: 18820.20492 | R164: 242.3921317 | S164: 179.0612445 | T164: 63.33088723 | AB164: 150 | AC164: 41320.20803 | AD164: 492.392111 | AE164: 429.0612238 | AF164: 63.33088723
D165: 151 | E165: 22250.00312 | F165: 249.9999793 | G165: 249.9999793 | H165: 0 | P165: 151 | Q165: 18640.54681 | R165: 242.3921317 | S165: 179.6581153 | T165: 62.73401641 | AB165: 151 | AC165: 40890.54993 | AD165: 492.392111 | AE165: 429.6580946 | AF165: 62.73401641
D166: 152 | E166: 22000.00314 | F166: 249.9999793 | G166: 249.9999793 | H166: 0 | P166: 152 | Q166: 18460.28983 | R166: 242.3921317 | S166: 180.2569757 | T166: 62.13515603 | AB166: 152 | AC166: 40460.29298 | AD166: 492.392111 | AE166: 430.256955 | AF166: 62.13515603
D167: 153 | E167: 21750.00316 | F167: 249.9999793 | G167: 249.9999793 | H167: 0 | P167: 153 | Q167: 18279.432 | R167: 242.3921317 | S167: 180.8578323 | T167: 61.53429944 | AB167: 153 | AC167: 40029.43516 | AD167: 492.392111 | AE167: 430.8578116 | AF167: 61.53429944
D168: 154 | E168: 21500.00319 | F168: 249.9999793 | G168: 249.9999793 | H168: 0 | P168: 154 | Q168: 18097.97131 | R168: 242.3921317 | S168: 181.4606917 | T168: 60.93144 | AB168: 154 | AC168: 39597.97449 | AD168: 492.392111 | AE168: 431.460671 | AF168: 60.93144
D169: 155 | E169: 21250.00321 | F169: 249.9999793 | G169: 249.9999793 | H169: 0 | P169: 155 | Q169: 17915.90575 | R169: 242.3921317 | S169: 182.0655607 | T169: 60.32657103 | AB169: 155 | AC169: 39165.90895 | AD169: 492.392111 | AE169: 432.06554 | AF169: 60.32657103
D170: 156 | E170: 21000.00323 | F170: 249.9999793 | G170: 249.9999793 | H170: 0 | P170: 156 | Q170: 17733.2333 | R170: 242.3921317 | S170: 182.6724459 | T170: 59.71968583 | AB170: 156 | AC170: 38733.23653 | AD170: 492.392111 | AE170: 432.6724252 | AF170: 59.71968583
C171: 14 | D171: 157 | E171: 20750.00325 | F171: 249.9999793 | G171: 249.9999793 | H171: 0 | O171: 14 | P171: 157 | Q171: 17549.95195 | R171: 242.3921317 | S171: 183.281354 | T171: 59.11077767 | AA171: 14 | AB171: 157 | AC171: 38299.9552 | AD171: 492.392111 | AE171: 433.2813334 | AF171: 59.11077767
D172: 158 | E172: 20500.00327 | F172: 249.9999793 | G172: 249.9999793 | H172: 0 | P172: 158 | Q172: 17366.05966 | R172: 242.3921317 | S172: 183.8922919 | T172: 58.49983983 | AB172: 158 | AC172: 37866.06292 | AD172: 492.392111 | AE172: 433.8922712 | AF172: 58.49983983
D173: 159 | E173: 20250.00329 | F173: 249.9999793 | G173: 249.9999793 | H173: 0 | P173: 159 | Q173: 17181.55439 | R173: 242.3921317 | S173: 184.5052662 | T173: 57.88686552 | AB173: 159 | AC173: 37431.55768 | AD173: 492.392111 | AE173: 434.5052455 | AF173: 57.88686552
D174: 160 | E174: 20000.00331 | F174: 249.9999793 | G174: 249.9999793 | H174: 0 | P174: 160 | Q174: 16996.43411 | R174: 242.3921317 | S174: 185.1202838 | T174: 57.27184796 | AB174: 160 | AC174: 36996.43742 | AD174: 492.392111 | AE174: 435.1202631 | AF174: 57.27184796
D175: 161 | E175: 19750.00333 | F175: 249.9999793 | G175: 249.9999793 | H175: 0 | P175: 161 | Q175: 16810.69675 | R175: 242.3921317 | S175: 185.7373514 | T175: 56.65478035 | AB175: 161 | AC175: 36560.70008 | AD175: 492.392111 | AE175: 435.7373307 | AF175: 56.65478035
D176: 162 | E176: 19500.00335 | F176: 249.9999793 | G176: 249.9999793 | H176: 0 | P176: 162 | Q176: 16624.34028 | R176: 242.3921317 | S176: 186.3564759 | T176: 56.03565585 | AB176: 162 | AC176: 36124.34363 | AD176: 492.392111 | AE176: 436.3564552 | AF176: 56.03565585
D177: 163 | E177: 19250.00337 | F177: 249.9999793 | G177: 249.9999793 | H177: 0 | P177: 163 | Q177: 16437.36261 | R177: 242.3921317 | S177: 186.9776641 | T177: 55.41446759 | AB177: 163 | AC177: 35687.36599 | AD177: 492.392111 | AE177: 436.9776434 | AF177: 55.41446759
D178: 164 | E178: 19000.00339 | F178: 249.9999793 | G178: 249.9999793 | H178: 0 | P178: 164 | Q178: 16249.76169 | R178: 242.3921317 | S178: 187.600923 | T178: 54.79120871 | AB178: 164 | AC178: 35249.76508 | AD178: 492.392111 | AE178: 437.6009023 | AF178: 54.79120871
D179: 165 | E179: 18750.00341 | F179: 249.9999793 | G179: 249.9999793 | H179: 0 | P179: 165 | Q179: 16061.53543 | R179: 242.3921317 | S179: 188.2262594 | T179: 54.1658723 | AB179: 165 | AC179: 34811.53884 | AD179: 492.392111 | AE179: 438.2262387 | AF179: 54.1658723
D180: 166 | E180: 18500.00343 | F180: 249.9999793 | G180: 249.9999793 | H180: 0 | P180: 166 | Q180: 15872.68175 | R180: 242.3921317 | S180: 188.8536803 | T180: 53.53845144 | AB180: 166 | AC180: 34372.68519 | AD180: 492.392111 | AE180: 438.8536596 | AF180: 53.53845144
D181: 167 | E181: 18250.00345 | F181: 249.9999793 | G181: 249.9999793 | H181: 0 | P181: 167 | Q181: 15683.19856 | R181: 242.3921317 | S181: 189.4831925 | T181: 52.90893917 | AB181: 167 | AC181: 33933.20201 | AD181: 492.392111 | AE181: 439.4831719 | AF181: 52.90893917
D182: 168 | E182: 18000.00348 | F182: 249.9999793 | G182: 249.9999793 | H182: 0 | P182: 168 | Q182: 15493.08376 | R182: 242.3921317 | S182: 190.1148032 | T182: 52.27732853 | AB182: 168 | AC182: 33493.08723 | AD182: 492.392111 | AE182: 440.1147825 | AF182: 52.27732853
C183: 15 | D183: 169 | E183: 17750.0035 | F183: 249.9999793 | G183: 249.9999793 | H183: 0 | O183: 15 | P183: 169 | Q183: 15302.33524 | R183: 242.3921317 | S183: 190.7485192 | T183: 51.64361252 | AA183: 15 | AB183: 169 | AC183: 33052.33873 | AD183: 492.392111 | AE183: 440.7484985 | AF183: 51.64361252
D184: 170 | E184: 17500.00352 | F184: 249.9999793 | G184: 249.9999793 | H184: 0 | P184: 170 | Q184: 15110.95089 | R184: 242.3921317 | S184: 191.3843476 | T184: 51.00778412 | AB184: 170 | AC184: 32610.95441 | AD184: 492.392111 | AE184: 441.3843269 | AF184: 51.00778412
D185: 171 | E185: 17250.00354 | F185: 249.9999793 | G185: 249.9999793 | H185: 0 | P185: 171 | Q185: 14918.92859 | R185: 242.3921317 | S185: 192.0222954 | T185: 50.3698363 | AB185: 171 | AC185: 32168.93213 | AD185: 492.392111 | AE185: 442.0222747 | AF185: 50.3698363
D186: 172 | E186: 17000.00356 | F186: 249.9999793 | G186: 249.9999793 | H186: 0 | P186: 172 | Q186: 14726.26622 | R186: 242.3921317 | S186: 192.6623697 | T186: 49.72976198 | AB186: 172 | AC186: 31726.26978 | AD186: 492.392111 | AE186: 442.6623491 | AF186: 49.72976198
D187: 173 | E187: 16750.00358 | F187: 249.9999793 | G187: 249.9999793 | H187: 0 | P187: 173 | Q187: 14532.96165 | R187: 242.3921317 | S187: 193.3045776 | T187: 49.08755408 | AB187: 173 | AC187: 31282.96522 | AD187: 492.392111 | AE187: 443.304557 | AF187: 49.08755408
D188: 174 | E188: 16500.0036 | F188: 249.9999793 | G188: 249.9999793 | H188: 0 | P188: 174 | Q188: 14339.01272 | R188: 242.3921317 | S188: 193.9489262 | T188: 48.44320549 | AB188: 174 | AC188: 30839.01632 | AD188: 492.392111 | AE188: 443.9489055 | AF188: 48.44320549
D189: 175 | E189: 16250.00362 | F189: 249.9999793 | G189: 249.9999793 | H189: 0 | P189: 175 | Q189: 14144.4173 | R189: 242.3921317 | S189: 194.5954227 | T189: 47.79670907 | AB189: 175 | AC189: 30394.42092 | AD189: 492.392111 | AE189: 444.595402 | AF189: 47.79670907
D190: 176 | E190: 16000.00364 | F190: 249.9999793 | G190: 249.9999793 | H190: 0 | P190: 176 | Q190: 13949.17322 | R190: 242.3921317 | S190: 195.2440741 | T190: 47.14805766 | AB190: 176 | AC190: 29949.17686 | AD190: 492.392111 | AE190: 445.2440534 | AF190: 47.14805766
D191: 177 | E191: 15750.00366 | F191: 249.9999793 | G191: 249.9999793 | H191: 0 | P191: 177 | Q191: 13753.27834 | R191: 242.3921317 | S191: 195.8948876 | T191: 46.49724408 | AB191: 177 | AC191: 29503.282 | AD191: 492.392111 | AE191: 445.894867 | AF191: 46.49724408
D192: 178 | E192: 15500.00368 | F192: 249.9999793 | G192: 249.9999793 | H192: 0 | P192: 178 | Q192: 13556.73047 | R192: 242.3921317 | S192: 196.5478706 | T192: 45.84426112 | AB192: 178 | AC192: 29056.73415 | AD192: 492.392111 | AE192: 446.5478499 | AF192: 45.84426112
D193: 179 | E193: 15250.0037 | F193: 249.9999793 | G193: 249.9999793 | H193: 0 | P193: 179 | Q193: 13359.52743 | R193: 242.3921317 | S193: 197.2030302 | T193: 45.18910155 | AB193: 179 | AC193: 28609.53114 | AD193: 492.392111 | AE193: 447.2030095 | AF193: 45.18910155
D194: 180 | E194: 15000.00372 | F194: 249.9999793 | G194: 249.9999793 | H194: 0 | P194: 180 | Q194: 13161.66706 | R194: 242.3921317 | S194: 197.8603736 | T194: 44.53175812 | AB194: 180 | AC194: 28161.67078 | AD194: 492.392111 | AE194: 447.8603529 | AF194: 44.53175812
C195: 16 | D195: 181 | E195: 14750.00374 | F195: 249.9999793 | G195: 249.9999793 | H195: 0 | O195: 16 | P195: 181 | Q195: 12963.14715 | R195: 242.3921317 | S195: 198.5199082 | T195: 43.87222354 | AA195: 16 | AB195: 181 | AC195: 27713.1509 | AD195: 492.392111 | AE195: 448.5198875 | AF195: 43.87222354
D196: 182 | E196: 14500.00376 | F196: 249.9999793 | G196: 249.9999793 | H196: 0 | P196: 182 | Q196: 12763.96551 | R196: 242.3921317 | S196: 199.1816412 | T196: 43.21049051 | AB196: 182 | AC196: 27263.96928 | AD196: 492.392111 | AE196: 449.1816205 | AF196: 43.21049051
D197: 183 | E197: 14250.00379 | F197: 249.9999793 | G197: 249.9999793 | H197: 0 | P197: 183 | Q197: 12564.11993 | R197: 242.3921317 | S197: 199.84558 | T197: 42.54655171 | AB197: 183 | AC197: 26814.12372 | AD197: 492.392111 | AE197: 449.8455593 | AF197: 42.54655171
D198: 184 | E198: 14000.00381 | F198: 249.9999793 | G198: 249.9999793 | H198: 0 | P198: 184 | Q198: 12363.6082 | R198: 242.3921317 | S198: 200.5117319 | T198: 41.88039977 | AB198: 184 | AC198: 26363.61201 | AD198: 492.392111 | AE198: 450.5117113 | AF198: 41.88039977
D199: 185 | E199: 13750.00383 | F199: 249.9999793 | G199: 249.9999793 | H199: 0 | P199: 185 | Q199: 12162.4281 | R199: 242.3921317 | S199: 201.1801044 | T199: 41.21202733 | AB199: 185 | AC199: 25912.43192 | AD199: 492.392111 | AE199: 451.1800837 | AF199: 41.21202733
D200: 186 | E200: 13500.00385 | F200: 249.9999793 | G200: 249.9999793 | H200: 0 | P200: 186 | Q200: 11960.57739 | R200: 242.3921317 | S200: 201.8507047 | T200: 40.54142699 | AB200: 186 | AC200: 25460.58124 | AD200: 492.392111 | AE200: 451.850684 | AF200: 40.54142699
D201: 187 | E201: 13250.00387 | F201: 249.9999793 | G201: 249.9999793 | H201: 0 | P201: 187 | Q201: 11758.05385 | R201: 242.3921317 | S201: 202.5235404 | T201: 39.8685913 | AB201: 187 | AC201: 25008.05772 | AD201: 492.392111 | AE201: 452.5235197 | AF201: 39.8685913
D202: 188 | E202: 13000.00389 | F202: 249.9999793 | G202: 249.9999793 | H202: 0 | P202: 188 | Q202: 11554.85523 | R202: 242.3921317 | S202: 203.1986189 | T202: 39.19351283 | AB202: 188 | AC202: 24554.85912 | AD202: 492.392111 | AE202: 453.1985982 | AF202: 39.19351283
D203: 189 | E203: 12750.00391 | F203: 249.9999793 | G203: 249.9999793 | H203: 0 | P203: 189 | Q203: 11350.97928 | R203: 242.3921317 | S203: 203.8759476 | T203: 38.51618411 | AB203: 189 | AC203: 24100.98319 | AD203: 492.392111 | AE203: 453.8759269 | AF203: 38.51618411
D204: 190 | E204: 12500.00393 | F204: 249.9999793 | G204: 249.9999793 | H204: 0 | P204: 190 | Q204: 11146.42375 | R204: 242.3921317 | S204: 204.5555341 | T204: 37.83659761 | AB204: 190 | AC204: 23646.42768 | AD204: 492.392111 | AE204: 454.5555134 | AF204: 37.83659761
D205: 191 | E205: 12250.00395 | F205: 249.9999793 | G205: 249.9999793 | H205: 0 | P205: 191 | Q205: 10941.18636 | R205: 242.3921317 | S205: 205.2373859 | T205: 37.15474583 | AB205: 191 | AC205: 23191.19031 | AD205: 492.392111 | AE205: 455.2373652 | AF205: 37.15474583
D206: 192 | E206: 12000.00397 | F206: 249.9999793 | G206: 249.9999793 | H206: 0 | P206: 192 | Q206: 10735.26485 | R206: 242.3921317 | S206: 205.9215105 | T206: 36.47062121 | AB206: 192 | AC206: 22735.26883 | AD206: 492.392111 | AE206: 455.9214898 | AF206: 36.47062121
C207: 17 | D207: 193 | E207: 11750.00399 | F207: 249.9999793 | G207: 249.9999793 | H207: 0 | O207: 17 | P207: 193 | Q207: 10528.65694 | R207: 242.3921317 | S207: 206.6079155 | T207: 35.78421618 | AA207: 17 | AB207: 193 | AC207: 22278.66093 | AD207: 492.392111 | AE207: 456.6078949 | AF207: 35.78421618
D208: 194 | E208: 11500.00401 | F208: 249.9999793 | G208: 249.9999793 | H208: 0 | P208: 194 | Q208: 10321.36033 | R208: 242.3921317 | S208: 207.2966086 | T208: 35.09552313 | AB208: 194 | AC208: =Q208+E208 -> 21821.36434 | AD208: 492.392111 | AE208: 457.2965879 | AF208: 35.09552313
D209: 195 | E209: =E208-G209 -> 11250.00403 | F209: =$F$15 -> 249.9999793 | G209: =$G$15 -> 249.9999793 | H209: 0 | P209: 195 | Q209: 10113.37273 | R209: =IF(T209=0,0,$R$15) -> 242.3921317 | S209: =IF(T209=0,0,R209-T209) -> 207.9875973 | T209: =IF(($Q$6/12)*Q208<=0,0,($Q$6/12)*Q208) -> 34.40453443 | AB209: 195 | AC209: 21363.37677 | AD209: 492.392111 | AE209: 457.9875766 | AF209: 34.40453443
... 45 more rows
